Workbook

Sheet PGC
A1: GRUPO 1 | B1: FINANCIACIÓN BÁSICA
A2: 10. | B2: CAPITAL
A3: 1000000001 | B3: CAPITAL SOCIAL
A4: 101 | B4: FONDO SOCIAL
A5: 1020000001 | B5: CAPITAL
A6: 103 | B6: SOCIOS POR DESEMBOLSOS NO EXIGIDOS
A7: 1030 | B7: SOCIOS POR DESEMBOLSOS NO EXIGIDOS, CAPITAL SOCIAL
A8: 1034 | B8: SOCIOS POR DESEMBOLSOS NO EXIGIDOS, CAPITAL PENDIENTE DE INSCRIPCIÓN
A9: 104 | B9: SOCIOS POR APORTACIONES NO DINERARIAS PENDIENTES
A10: 1040 | B10: SOCIOS POR APORTACIONES NO DINERARIAS PENDIENTES, CAPITAL SOCIAL
A11: 1044 | B11: SOCIOS POR APORTACIONES NO DINERARIAS PENDIENTES, CAPITAL PENDIENTE DE INSCRIPCIÓN
A12: 108 | B12: ACCIONES O PARTICIPACIONES PROPIAS EN SITUACIONES ESPECIALES
A13: 109 | B13: ACCIONES O PARTICIPACIONES PROPIAS PARA REDUCCIÓN DE CAPITAL
A14: 11. | B14: RESERVAS
A15: 110 | B15: PRIMA DE EMISIÓN O ASUNCIÓN
A16: 1120000001 | B16: RESERVA LEGAL
A17: 1130000001 | B17: RESERVAS VOLUNTARIAS
A18: 114 | B18: RESERVAS ESPECIALES
A19: 1140 | B19: RESERVAS PARA ACCIONES O PARTICIPACIONES DE LA SOCIEDAD DOMINANTE
A20: 1141 | B20: RESERVAS ESTATUTARIAS
A21: 1142 | B21: RESERVAS POR CAPITAL AMORTIZADO
A22: 1144 | B22: RESERVAS POR ACCIONES PROPIAS ACEPTADAS EN GARANTÍA
A23: 118 | B23: APORTACIONES DE SOCIOS O PROPIETARIOS
A24: 119 | B24: DIFERENCIAS POR AJUSTE DEL CAPITAL A EUROS
A25: 12. | B25: RESULTADOS PENDIENTES DE APLICACIÓN
A26: 120 | B26: REMANENTE
A27: 121 | B27: RESULTADOS NEGATIVOS DE EJERCICIOS ANTERIORES
A28: 1210002012 | B28: RESULTADOS NEGATIVOS DE EJERCICIOS ANTERIORES 2012
A29: 1210002013 | B29: RESULTADOS NEGATIVOS DE EJERCICIOS ANTERIORES 2013
A30: 1210002014 | B30: RESULTADOS NEGATIVOS DE EJERCICIOS ANTERIORES 2014
A31: 1290000001 | B31: RESULTADOS DEL EJERCICIO
A32: 13. | B32: SUBVENCIONES, DONACIONES, LEGADOS Y OTROS AJUSTES EN PATRIMONIO NETO
A33: 1300000001 | B33: SUBVENCIONES OFICIALES DE CAPITAL
A34: 131 | B34: DONACIONES Y LEGADOS DE CAPITAL
A35: 1320000001 | B35: OTRAS SUBVENCIONES, DONACIONES Y LEGADOS
A36: 137 | B36: INGRESOS FISCALES A DISTRIBUIR EN VARIOS EJERCICIOS
A37: 1370000001 | B37: INGRESOS FISCALES POR DIFERENCIAS PERMANENTES A DISTRIBUIR EN VARIOS EJERCICIOS
A38: 1371000001 | B38: INGRESOS FISCALES POR DEDUCCIONES Y BONIFICACIONES A DISTRIBUIR EN VARIOS EJERCICIOS
A39: 14. | B39: PROVISIONES
A40: 141 | B40: PROVISIÓN PARA IMPUESTOS
A41: 142 | B41: PROVISIÓN PARA OTRAS RESPONSABILIDADES
A42: 143 | B42: PROVISIÓN POR DESMANTELAMIENTO, RETIRO O REHABILITACIÓN DEL INMOVILIZADO
A43: 1450000001 | B43: PROVISIÓN PARA ACTUACIONES MEDIOAMBIENTALES
A44: 15. | B44: DEUDAS A LARGO PLAZO CON CARACTERÍSTICAS ESPECIALES
A45: 150 | B45: ACCIONES O PARTICIPACIONES A LARGO PLAZO CONSIDERADAS COMO PASIVOS FINANCIEROS
A46: 153 | B46: DESEMBOLSOS NO EXIGIDOS POR ACCIONES O PARTICIPACIONES CONSIDERADAS COMO PASIVOS FINANCIEROS
A47: 1533 | B47: DESEMBOLSOS NO EXIGIDOS, EMPRESAS DEL GRUPO
A48: 1534 | B48: DESEMBOLSOS NO EXIGIDOS, EMPRESAS ASOCIADAS
A49: 1535 | B49: DESEMBOLSOS NO EXIGIDOS, OTRAS PARTES VINCULADAS
A50: 1536 | B50: OTROS DESEMBOLSOS NO EXIGIDOS
A51: 154 | B51: APORTACIONES NO DINERARIAS PENDIENTES POR ACCIONES O PARTICIPACIONES CONSIDERADAS COMO PASIVOS FINANCIEROS
A52: 1543 | B52: APORTACIONES NO DINERARIAS PENDIENTES, EMPRESAS DEL GRUPO
A53: 1544 | B53: APORTACIONES NO DINERARIAS PENDIENTES, EMPRESAS ASOCIADAS
A54: 1545 | B54: APORTACIONES NO DINERARIAS PENDIENTES, OTRAS PARTES VINCULADAS
A55: 1546 | B55: OTRAS APORTACIONES NO DINERARIAS PENDIENTES
A56: 16. | B56: DEUDAS A LARGO PLAZO CON PARTES VINCULADAS
A57: 160 | B57: DEUDAS A LARGO PLAZO CON ENTIDADES DE CRÉDITO VINCULADAS
A58: 1603 | B58: DEUDAS A LARGO PLAZO CON ENTIDADES DE CRÉDITO, EMPRESAS DEL GRUPO
A59: 1604 | B59: DEUDAS A LARGO PLAZO CON ENTIDADES DE CRÉDITO, EMPRESAS ASOCIADAS
A60: 1605 | B60: DEUDAS A LARGO PLAZO CON OTRAS ENTIDADES DE CRÉDITO VINCULADAS
A61: 161 | B61: PROVEEDORES DE INMOVILIZADO A LARGO PLAZO, PARTES VINCULADAS
A62: 1613 | B62: PROVEEDORES DE INMOVILIZADO A LARGO PLAZO, EMPRESAS DEL GRUPO
A63: 1614 | B63: PROVEEDORES DE INMOVILIZADO A LARGO PLAZO, EMPRESAS ASOCIADAS
A64: 1615 | B64: PROVEEDORES DE INMOVILIZADO A LARGO PLAZO, OTRAS PARTES VINCULADAS
A65: 162 | B65: ACREEDORES POR ARRENDAMIENTO FINANCIERO A LARGO PLAZO, PARTES VINCULADAS
A66: 1623 | B66: ACREEDORES POR ARRENDAMIENTO FINANCIERO A LARGO PLAZO, EMPRESAS DE GRUPO
A67: 1624 | B67: ACREEDORES POR ARRENDAMIENTO FINANCIERO A LARGO PLAZO, EMPRESAS ASOCIADAS
A68: 1625 | B68: ACREEDORES POR ARRENDAMIENTO FINANCIERO A LARGO PLAZO, OTRAS PARTES VINCULADAS
A69: 163 | B69: OTRAS DEUDAS A LARGO PLAZO CON PARTES VINCULADAS
A70: 1633 | B70: OTRAS DEUDAS A LARGO PLAZO, EMPRESAS DEL GRUPO
A71: 1634 | B71: OTRAS DEUDAS A LARGO PLAZO, EMPRESAS ASOCIADAS
A72: 1635 | B72: OTRAS DEUDAS A LARGO PLAZO, CON OTRAS PARTES VINCULADAS
A73: 17. | B73: DEUDAS A LARGO PLAZO POR PRÉSTAMOS RECIBIDOS, EMPRÉSTITOS Y OTRO CONCEPTOS
A74: 1700000001 | B74: DEUDAS A LARGO PLAZO CON ENTIDADES DE CRÉDITO
A75: 171 | B75: DEUDAS A LARGO PLAZO
A76: 172 | B76: DEUDAS A LARGO PLAZO TRANSFORMABLES EN SUBVENCIONES, DONACIONES Y LEGADOS
A77: 1730000001 | B77: PROVEEDORES DE INMOVILIZADO A LARGO PLAZO
A78: 174 | B78: ACREEDORES POR ARRENDAMIENTO FINANCIERO A LARGO PLAZO
A79: 175 | B79: EFECTOS A PAGAR A LARGO PLAZO
A80: 176 | B80: PASIVOS POR DERIVADOS FINANCIEROS A LARGO PLAZO
A81: 177 | B81: OBLIGACIONES Y BONOS
A82: 179 | B82: DEUDAS REPRESENTADAS EN OTROS VALORES NEGOCIABLES
A83: 18. | B83: PASIVOS POR FIANZAS, GARANTÍAS Y OTROS CONCEPTOS A LARGO PLAZO
A84: 180 | B84: FIANZAS RECIBIDAS A LARGO PLAZO
A85: 181 | B85: ANTICIPOS RECIBIDOS POR VENTAS O PRESTACIONES
A86: 185 | B86: DEPÓSITOS RECIBIDOS A LARGO PLAZO
A87: 19. | B87: SITUACIONES TRANSITORIAS DE FINANCIACIÓN
A88: 190 | B88: ACCIONES O PARTICIPACIONES EMITIDAS
A89: 192 | B89: SUSCRIPTORES DE ACCIONES
A90: 194 | B90: CAPITAL EMITIDO PENDIENTE DE INSCRIPCIÓN
A91: 195 | B91: ACCIONES O PARTICIPACIONES EMITIDAS CONSIDERADAS COMO PASIVOS FINANCIEROS
A92: 197 | B92: SUSCRIPTORES DE ACCIONES CONSIDERADAS COMO PASIVOS FINANCIEROS
A93: 199 | B93: ACCIONES O PARTICIPACIONES EMITIDAS CONSIDERADAS COMO PASIVOS FINANCIEROS PENDIENTES DE INSCRIPCIÓN
A94: GRUPO 2 | B94: ACTIVO NO CORRIENTE
A95: 20. | B95: INMOVILIZACIONES INTANGIBLES
A96: 200 | B96: INVESTIGACIÓN
A97: 201 | B97: DESARROLLO
A98: 202 | B98: CONCESIONES ADMINISTRATIVAS
A99: 203 | B99: PROPIEDAD INDUSTRIAL
A100: 205 | B100: DERECHOS DE TRASPASO
A101: 206 | B101: APLICACIONES INFORMÁTICAS
A102: 2060000001 | B102: Programa de TPV
A103: 209 | B103: ANTICIPOS PARA INMOVILIZACIONES INTANGIBLES
A104: 21. | B104: INMOVILIZACIONES MATERIALES
A105: 210 | B105: TERRENOS Y BIENES NATURALES
A106: 211 | B106: CONSTRUCCIONES
A107: 212 | B107: INSTALACIONES TÉCNICAS
A108: 213 | B108: MAQUINARIA
A109: 2130000001 | B109: Carretillo elevador
A110: 2130000002 | B110: Plastificadora
A111: 2130000003 | B111: Etiquetadora
A112: 2130000004 | B112: Cinta transportadora
A113: 2130000005 | B113: Transpaletadora
A114: 214 | B114: UTILLAJE
A115: 2140000001 | B115: Utillaje tiendas
A116: 2140000002 | B116: Utillaje almacén
A117: 215 | B117: OTRAS INSTALACIONES
A118: 216 | B118: MOBILIARIO
A119: 2160000001 | B119: Mobiliario tiendas
A120: 2160000002 | B120: Mobiliario almacén
A121: 217 | B121: EQUIPOS PARA PROCESOS DE INFORMACIÓN
A122: 2170000001 | B122: Ordenadores
A123: ="2170000"&Tiendas!A2&"1" -> 2170000111 | B123: ="Ordenadores Tienda"&" "&Tiendas!B2 -> Ordenadores Tienda A Coruña 1
A124: ="2170000"&Tiendas!A3&"1" -> 2170000121 | B124: ="Ordenadores Tienda"&" "&Tiendas!B3 -> Ordenadores Tienda A Coruña 2
A125: ="2170000"&Tiendas!A4&"1" -> 2170000131 | B125: ="Ordenadores Tienda"&" "&Tiendas!B4 -> Ordenadores Tienda A Coruña 3
A126: ="2170000"&Tiendas!A5&"1" -> 2170000141 | B126: ="Ordenadores Tienda"&" "&Tiendas!B5 -> Ordenadores Tienda A Coruña 4
A127: ="2170000"&Tiendas!A6&"1" -> 2170000151 | B127: ="Ordenadores Tienda"&" "&Tiendas!B6 -> Ordenadores Tienda A Coruña 5
A128: ="2170000"&Tiendas!A7&"1" -> 2170000211 | B128: ="Ordenadores Tienda"&" "&Tiendas!B7 -> Ordenadores Tienda Lugo 1
A129: ="2170000"&Tiendas!A8&"1" -> 2170000221 | B129: ="Ordenadores Tienda"&" "&Tiendas!B8 -> Ordenadores Tienda Lugo 2
A130: ="2170000"&Tiendas!A9&"1" -> 2170000311 | B130: ="Ordenadores Tienda"&" "&Tiendas!B9 -> Ordenadores Tienda Ourense 1
A131: ="2170000"&Tiendas!A10&"1" -> 2170000321 | B131: ="Ordenadores Tienda"&" "&Tiendas!B10 -> Ordenadores Tienda Ourense 2
A132: ="2170000"&Tiendas!A11&"1" -> 2170000331 | B132: ="Ordenadores Tienda"&" "&Tiendas!B11 -> Ordenadores Tienda Ourense 3
A133: ="2170000"&Tiendas!A12&"1" -> 2170000411 | B133: ="Ordenadores Tienda"&" "&Tiendas!B12 -> Ordenadores Tienda Pontevedra 1
A134: ="2170000"&Tiendas!A13&"1" -> 2170000421 | B134: ="Ordenadores Tienda"&" "&Tiendas!B13 -> Ordenadores Tienda Pontevedra 2
A135: ="2170000"&Tiendas!A14&"1" -> 2170000431 | B135: ="Ordenadores Tienda"&" "&Tiendas!B14 -> Ordenadores Tienda Pontevedra 3
A136: ="2170000"&Tiendas!A15&"1" -> 2170000441 | B136: ="Ordenadores Tienda"&" "&Tiendas!B15 -> Ordenadores Tienda Pontevedra 4
A137: ="2170000"&Tiendas!A16&"1" -> 2170000511 | B137: ="Ordenadores Tienda"&" "&Tiendas!B16 -> Ordenadores Tienda Madrid 1
A138: ="2170000"&Tiendas!A17&"1" -> 2170000521 | B138: ="Ordenadores Tienda"&" "&Tiendas!B17 -> Ordenadores Tienda Madrid 2
A139: ="2170000"&Tiendas!A18&"1" -> 2170000531 | B139: ="Ordenadores Tienda"&" "&Tiendas!B18 -> Ordenadores Tienda Madrid 3
A140: ="2170000"&Tiendas!A19&"1" -> 2170000541 | B140: ="Ordenadores Tienda"&" "&Tiendas!B19 -> Ordenadores Tienda Madrid 4
A141: ="2170000"&Tiendas!A20&"1" -> 2170000551 | B141: ="Ordenadores Tienda"&" "&Tiendas!B20 -> Ordenadores Tienda Madrid 5
A142: ="2170000"&Tiendas!A21&"1" -> 2170000611 | B142: ="Ordenadores Tienda"&" "&Tiendas!B21 -> Ordenadores Tienda Barcelona 1
A143: ="2170000"&Tiendas!A22&"1" -> 2170000621 | B143: ="Ordenadores Tienda"&" "&Tiendas!B22 -> Ordenadores Tienda Barcelona 2
A144: ="2170000"&Tiendas!A23&"1" -> 2170000631 | B144: ="Ordenadores Tienda"&" "&Tiendas!B23 -> Ordenadores Tienda Barcelona 3
A145: ="2170000"&Tiendas!A24&"1" -> 2170000641 | B145: ="Ordenadores Tienda"&" "&Tiendas!B24 -> Ordenadores Tienda Barcelona 4
A146: ="2170000"&Tiendas!A25&"1" -> 2170000711 | B146: ="Ordenadores Tienda"&" "&Tiendas!B25 -> Ordenadores Tienda Bilbao 1
A147: ="2170000"&Tiendas!A26&"1" -> 2170000721 | B147: ="Ordenadores Tienda"&" "&Tiendas!B26 -> Ordenadores Tienda Bilbao 2
A148: 2170000002 | B148: TPV
A149: ="2170000"&Tiendas!A2&2 -> 2170000112 | B149: ="TPV"&" "&Tiendas!B2 -> TPV A Coruña 1
A150: ="2170000"&Tiendas!A3&2 -> 2170000122 | B150: ="TPV"&" "&Tiendas!B3 -> TPV A Coruña 2
A151: ="2170000"&Tiendas!A4&2 -> 2170000132 | B151: ="TPV"&" "&Tiendas!B4 -> TPV A Coruña 3
A152: ="2170000"&Tiendas!A5&2 -> 2170000142 | B152: ="TPV"&" "&Tiendas!B5 -> TPV A Coruña 4
A153: ="2170000"&Tiendas!A6&2 -> 2170000152 | B153: ="TPV"&" "&Tiendas!B6 -> TPV A Coruña 5
A154: ="2170000"&Tiendas!A7&2 -> 2170000212 | B154: ="TPV"&" "&Tiendas!B7 -> TPV Lugo 1
A155: ="2170000"&Tiendas!A8&2 -> 2170000222 | B155: ="TPV"&" "&Tiendas!B8 -> TPV Lugo 2
A156: ="2170000"&Tiendas!A9&2 -> 2170000312 | B156: ="TPV"&" "&Tiendas!B9 -> TPV Ourense 1
A157: ="2170000"&Tiendas!A10&2 -> 2170000322 | B157: ="TPV"&" "&Tiendas!B10 -> TPV Ourense 2
A158: ="2170000"&Tiendas!A11&2 -> 2170000332 | B158: ="TPV"&" "&Tiendas!B11 -> TPV Ourense 3
A159: ="2170000"&Tiendas!A12&2 -> 2170000412 | B159: ="TPV"&" "&Tiendas!B12 -> TPV Pontevedra 1
A160: ="2170000"&Tiendas!A13&2 -> 2170000422 | B160: ="TPV"&" "&Tiendas!B13 -> TPV Pontevedra 2
A161: ="2170000"&Tiendas!A14&2 -> 2170000432 | B161: ="TPV"&" "&Tiendas!B14 -> TPV Pontevedra 3
A162: ="2170000"&Tiendas!A15&2 -> 2170000442 | B162: ="TPV"&" "&Tiendas!B15 -> TPV Pontevedra 4
A163: ="2170000"&Tiendas!A16&2 -> 2170000512 | B163: ="TPV"&" "&Tiendas!B16 -> TPV Madrid 1
A164: ="2170000"&Tiendas!A17&2 -> 2170000522 | B164: ="TPV"&" "&Tiendas!B17 -> TPV Madrid 2
A165: ="2170000"&Tiendas!A18&2 -> 2170000532 | B165: ="TPV"&" "&Tiendas!B18 -> TPV Madrid 3
A166: ="2170000"&Tiendas!A19&2 -> 2170000542 | B166: ="TPV"&" "&Tiendas!B19 -> TPV Madrid 4
A167: ="2170000"&Tiendas!A20&2 -> 2170000552 | B167: ="TPV"&" "&Tiendas!B20 -> TPV Madrid 5
A168: ="2170000"&Tiendas!A21&2 -> 2170000612 | B168: ="TPV"&" "&Tiendas!B21 -> TPV Barcelona 1
A169: ="2170000"&Tiendas!A22&2 -> 2170000622 | B169: ="TPV"&" "&Tiendas!B22 -> TPV Barcelona 2
A170: ="2170000"&Tiendas!A23&2 -> 2170000632 | B170: ="TPV"&" "&Tiendas!B23 -> TPV Barcelona 3
A171: ="2170000"&Tiendas!A24&2 -> 2170000642 | B171: ="TPV"&" "&Tiendas!B24 -> TPV Barcelona 4
A172: ="2170000"&Tiendas!A25&2 -> 2170000712 | B172: ="TPV"&" "&Tiendas!B25 -> TPV Bilbao 1
A173: ="2170000"&Tiendas!A26&2 -> 2170000722 | B173: ="TPV"&" "&Tiendas!B26 -> TPV Bilbao 2
A174: 218 | B174: ELEMENTOS DE TRANSPORTE
A175: 2180000001 | B175: Camiones
A176: ="21800000"&Zonas!A4&"1" -> 2180000011 | B176: ="Camión"&" "&Zonas!B4 -> Camión Galicia
A177: ="21800000"&Zonas!A5&"1" -> 2180000021 | B177: ="Camión"&" "&Zonas!B5 -> Camión Madrid
A178: ="21800000"&Zonas!A6&"1" -> 2180000031 | B178: ="Camión"&" "&Zonas!B6 -> Camión Barcelona/Bilbao
A179: 219 | B179: OTRO INMOVILIZADO MATERIAL
A180: 22. | B180: INVERSIONES INMOBILIARIAS
A181: 220 | B181: INVERSIONES EN TERRENOS Y BIENES NATURALES
A182: 221 | B182: INVERSIONES EN CONSTRUCCIONES
A183: 23. | B183: INMOVILIZACIONES MATERIALES EN CURSO
A184: 230 | B184: ADAPTACIÓN DE TERRENOS Y BIENES NATURALES
A185: 231 | B185: CONSTRUCCIONES EN CURSO
A186: 232 | B186: INSTALACIONES TÉCNICAS EN MONTAJE
A187: 233 | B187: MAQUINARIA EN MONTAJE
A188: 237 | B188: EQUIPOS PARA PROCESOS DE INFORMACIÓN EN MONTAJE
A189: 239 | B189: ANTICIPOS PARA INMOVILIZACIONES MATERIALES
A190: 24. | B190: INVERSIONES FINANCIERAS A LARGO PLAZO EN PARTES VINCULADAS
A191: 240 | B191: PARTICIPACIONES A LARGO PLAZO EN PARTES VINCULADAS
A192: 2403 | B192: PARTICIPACIONES A LARGO PLAZO EN EMPRESAS DEL GRUPO
A193: 2404 | B193: PARTICIPACIONES A LARGO PLAZO EN EMPRESAS ASOCIADAS
A194: 2405 | B194: PARTICIPACIONES A LARGO PLAZO EN OTRAS PARTES VINCULADAS
A195: 241 | B195: VALORES REPRESENTATIVOS DE DEUDA A LARGO PLAZO DE PARTES VINCULADAS
A196: 2413 | B196: VALORES REPRESENTATIVOS DE DEUDA A LARGO PLAZO DE EMPRESAS DEL GRUPO
A197: 2414 | B197: VALORES REPRESENTATIVOS DE DEUDA A LARGO PLAZO DE EMPRESAS ASOCIADAS
A198: 2415 | B198: VALORES REPRESENTATIVOS DE DEUDA A LARGO PLAZO DE OTRAS PARTES VINCULADAS
A199: 242 | B199: CRÉDITOS A LARGO PLAZO A PARTES VINCULADAS
A200: 2423 | B200: CRÉDITOS A LARGO PLAZO A EMPRESAS DEL GRUPO
... 1942 more rows

Sheet Tiendas
A1: Id Tienda | B1: Nombre | C1: IdZona | D1: m2 | E1: Horas | F1: IdFranquiciado | G1: Cta. Caja | H1: Banco Efectivo | I1: Id Banco Efec. | J1: Cta. Banco Efectivo | K1: Cta. Banco Tj | L1: DíasDesplazamiento
A2: 11 | B2: A Coruña 1 | C2: 1 | D2: 80 | G2: ="57000000"&A2 -> 5700000011 | H2: =VLOOKUP(I2,Tarjetas!$F$2:$G$7,2) -> Abanca | I2: 3 | J2: ="572001000"&I2 -> 5720010003 | K2: ="572002000"&1 -> 5720020001 | L2: 3
A3: 12 | B3: A Coruña 2 | C3: 1 | D3: 83 | F3: 91 | G3: ="57000000"&A3 -> 5700000012 | H3: =VLOOKUP(I3,Tarjetas!$F$2:$G$7,2) -> Abanca | I3: 3 | J3: ="572001000"&I3 -> 5720010003 | K3: ="572002000"&1 -> 5720020001 | L3: 4
A4: 13 | B4: A Coruña 3 | C4: 1 | D4: 95 | F4: 94 | G4: 5700000013 | H4: =VLOOKUP(I4,Tarjetas!$F$2:$G$7,2) -> Abanca | I4: 3 | J4: 5720010003 | K4: 5720020001 | L4: 3
A5: 14 | B5: A Coruña 4 | C5: 1 | D5: 75 | F5: 91 | G5: 5700000014 | H5: =VLOOKUP(I5,Tarjetas!$F$2:$G$7,2) -> Abanca | I5: 3 | J5: 5720010003 | K5: 5720020001 | L5: 3
A6: 15 | B6: A Coruña 5 | C6: 1 | D6: 70 | G6: 5700000015 | H6: =VLOOKUP(I6,Tarjetas!$F$2:$G$7,2) -> BBVA | I6: 2 | J6: 5720010002 | K6: 5720020001 | L6: 3
A7: 21 | B7: Lugo 1 | C7: 1 | D7: 70 | F7: 92 | G7: 5700000021 | H7: =VLOOKUP(I7,Tarjetas!$F$2:$G$7,2) -> Abanca | I7: 3 | J7: 5720010003 | K7: 5720020001 | L7: 3
A8: 22 | B8: Lugo 2 | C8: 1 | D8: 74 | F8: 92 | G8: 5700000022 | H8: =VLOOKUP(I8,Tarjetas!$F$2:$G$7,2) -> Abanca | I8: 3 | J8: 5720010003 | K8: 5720020001 | L8: 3
A9: 31 | B9: Ourense 1 | C9: 1 | D9: 88 | F9: 95 | G9: 5700000031 | H9: =VLOOKUP(I9,Tarjetas!$F$2:$G$7,2) -> Abanca | I9: 3 | J9: 5720010003 | K9: 5720020001 | L9: 4
A10: 32 | B10: Ourense 2 | C10: 1 | D10: 85 | G10: 5700000032 | H10: =VLOOKUP(I10,Tarjetas!$F$2:$G$7,2) -> Santander | I10: 1 | J10: 5720010001 | K10: 5720020001 | L10: 3
A11: 33 | B11: Ourense 3 | C11: 1 | D11: 82 | G11: 5700000033 | H11: =VLOOKUP(I11,Tarjetas!$F$2:$G$7,2) -> Santander | I11: 1 | J11: 5720010001 | K11: 5720020001 | L11: 3
A12: 41 | B12: Pontevedra 1 | C12: 1 | D12: 62 | F12: 96 | G12: 5700000041 | H12: =VLOOKUP(I12,Tarjetas!$F$2:$G$7,2) -> Abanca | I12: 3 | J12: 5720010003 | K12: 5720020001 | L12: 3
A13: 42 | B13: Pontevedra 2 | C13: 1 | D13: 78 | G13: 5700000042 | H13: =VLOOKUP(I13,Tarjetas!$F$2:$G$7,2) -> Abanca | I13: 3 | J13: 5720010003 | K13: 5720020001 | L13: 3
A14: 43 | B14: Pontevedra 3 | C14: 1 | D14: 98 | F14: 95 | G14: 5700000043 | H14: =VLOOKUP(I14,Tarjetas!$F$2:$G$7,2) -> BBVA | I14: 2 | J14: 5720010002 | K14: 5720020001 | L14: 3
A15: 44 | B15: Pontevedra 4 | C15: 1 | D15: 75 | G15: 5700000044 | H15: =VLOOKUP(I15,Tarjetas!$F$2:$G$7,2) -> Abanca | I15: 3 | J15: 5720010003 | K15: 5720020001 | L15: 4
A16: 51 | B16: Madrid 1 | C16: 2 | D16: 104 | F16: 93 | G16: 5700000051 | H16: =VLOOKUP(I16,Tarjetas!$F$2:$G$7,2) -> Santander | I16: 1 | J16: 5720010001 | K16: 5720020001 | L16: 3
A17: 52 | B17: Madrid 2 | C17: 2 | D17: 95 | F17: 95 | G17: 5700000052 | H17: =VLOOKUP(I17,Tarjetas!$F$2:$G$7,2) -> Santander | I17: 1 | J17: 5720010001 | K17: 5720020001 | L17: 3
A18: 53 | B18: Madrid 3 | C18: 2 | D18: 96 | G18: 5700000053 | H18: =VLOOKUP(I18,Tarjetas!$F$2:$G$7,2) -> BBVA | I18: 2 | J18: 5720010002 | K18: 5720020001 | L18: 3
A19: 54 | B19: Madrid 4 | C19: 2 | D19: 99 | G19: 5700000054 | H19: =VLOOKUP(I19,Tarjetas!$F$2:$G$7,2) -> Banco Pastor | I19: 5 | J19: 5720010005 | K19: 5720020001 | L19: 3
A20: 55 | B20: Madrid 5 | C20: 2 | D20: 88 | F20: 92 | G20: 5700000055 | H20: =VLOOKUP(I20,Tarjetas!$F$2:$G$7,2) -> Banco Pastor | I20: 5 | J20: 5720010005 | K20: 5720020001 | L20: 3
A21: 61 | B21: Barcelona 1 | C21: 3 | D21: 106 | G21: 5700000061 | H21: =VLOOKUP(I21,Tarjetas!$F$2:$G$7,2) -> La Caixa | I21: 6 | J21: 5720010006 | K21: 5720020001 | L21: 3
A22: 62 | B22: Barcelona 2 | C22: 3 | D22: 98 | G22: 5700000062 | H22: =VLOOKUP(I22,Tarjetas!$F$2:$G$7,2) -> La Caixa | I22: 6 | J22: 5720010006 | K22: 5720020001 | L22: 3
A23: 63 | B23: Barcelona 3 | C23: 3 | D23: 76 | G23: 5700000063 | H23: =VLOOKUP(I23,Tarjetas!$F$2:$G$7,2) -> La Caixa | I23: 6 | J23: 5720010006 | K23: 5720020001 | L23: 3
A24: 64 | B24: Barcelona 4 | C24: 3 | D24: 89 | F24: 93 | G24: 5700000064 | H24: =VLOOKUP(I24,Tarjetas!$F$2:$G$7,2) -> Sabadell | I24: 4 | J24: 5720010004 | K24: 5720020001 | L24: 3
A25: 71 | B25: Bilbao 1 | C25: 3 | D25: 95 | G25: 5700000071 | H25: =VLOOKUP(I25,Tarjetas!$F$2:$G$7,2) -> Sabadell | I25: 4 | J25: 5720010004 | K25: 5720020001 | L25: 3
A26: 72 | B26: Bilbao 2 | C26: 3 | D26: 97 | G26: 5700000072 | H26: =VLOOKUP(I26,Tarjetas!$F$2:$G$7,2) -> Sabadell | I26: 4 | J26: 5720010004 | K26: 5720020001 | L26: 3
A27: 80 | B27: Almacén | G27: ="5700000"&A27 -> 570000080 | H27: =VLOOKUP(I27,Tarjetas!$F$2:$G$7,2) -> BBVA | I27: 2 | J27: 5720010002 | K27: 5720020001

Sheet Franquicias
A1: Id. Franq | B1: Nombre | C1: Tipo | D1: %Royaltie | E1: %Venta | F1: Cta.Cliente | G1: Cta.Deudor | H1: Cta. Royaltie
A2: 91 | B2: Vimianzo SL | C2: D | D2: 2.00% | E2: 80.00% | F2: ="43000000"&A2 -> 4300000091 | G2: ="44000000"&A2 -> 4400000091 | H2: ="70500000"&A2 -> 7050000091
A3: 92 | B3: Camariñas SL | C3: F | D3: 1.75% | E3: 67.00% | F3: 4300000092 | G3: 4400000092 | H3: ="70500000"&A3 -> 7050000092
A4: 93 | B4: Muxía SL | C4: F | D4: 1.50% | E4: 67.00% | F4: 4300000093 | G4: 4400000093 | H4: 7050000093
A5: 94 | B5: Costa da Morte SL | C5: D | D5: 2.00% | E5: 80.00% | F5: 4300000094 | G5: 4400000094 | H5: 7050000094
A6: 95 | B6: Malpica SL | C6: F | D6: 1.50% | E6: 67.00% | F6: 4300000095 | G6: 4400000095 | H6: 7050000095
A7: 96 | B7: Dumbría SL | C7: F | D7: 2.00% | E7: 67.00% | F7: 4300000096 | G7: 4400000096 | H7: 7050000096
B12: Royaltie (IVA) | C12: Cta. IVA Royaltie
B13: 21% | C13: ="477000"&TEXT(B13*10000,"0000") -> 4770002100

Sheet Zonas
A3: Id zona | B3: Nombre
A4: 1 | B4: Galicia
A5: 2 | B5: Madrid
A6: 3 | B6: Barcelona/Bilbao

Sheet Días Semana
A1: Id día | B1: Nombre
A2: 1 | B2: Lunes
A3: 2 | B3: Martes
A4: 3 | B4: Miércoles
A5: 4 | B5: Jueves
A6: 5 | B6: Viernes
A7: 6 | B7: Sábado
A8: 7 | B8: Domingo

Sheet Familias
A2: Id Familia | B2: Descripción | C2: % IVA | D2: Cuenta IVA
A3: 111 | B3: Mar | C3: 10% | D3: ="477000"&TEXT(C3*10000,"0000") -> 4770001000
A4: 112 | B4: Campo | C4: 4% | D4: ="477000"&TEXT(C4*10000,"0000") -> 4770000400
A5: 113 | B5: Bebidas | C5: 21% | D5: 4770002100
A6: 121 | B6: Cerámicas | C6: 21% | D6: 4770002100
A7: 122 | B7: Encaje | C7: 21% | D7: 4770002100
A8: 123 | B8: Cuero | C8: 21% | D8: 4770002100

Sheet Cuentas
A2: Descripción | B2: Cuenta | C2: Desglose | E2: Desglose | F2: Descripción
A3: Ventas en tiendas propias | B3: 700 | C3: 11 | E3: 11 | F3: Tienda y familia
A4: Ventas en tiendas a franquicia en depósito | B4: 700 | C4: 11 | E4: 10 | F4: Tienda
A5: Ventas en tiendas a franquicias en firme | B5: 700 | C5: 11 | E5: 12 | F5: Por franquiciado
A6: Ingreso por Royaltie | B6: 705 | C6: 12 | E6: 20 | F6: Familia
A7: Compras | B7: 600 | C7: 20 | E7: 21 | F7: Tipo IVA
A8: Cuenta de IVA de ventas (repercutido) | B8: 477 | C8: 21

Sheet Pagos tienda
A1: IdPago | B1: Concepto | C1: Cuenta Contable | D1: Signo Apunte | E1: Desglose | F1: % IVA | G1: Cta IVA Sop. | H1: Observaciones
A2: 1 | B2: Anticipos a empleados | C2: 460 | D2: D | E2: 22 | F2: 0.00% | G2: =IF(Tabla14[[#This Row],[% IVA]]<>0,"472000"&(TEXT(F2*10000,"0000")),"") ->  | H2: En concepto llevará el número del empleado
A3: 2 | B3: Devolución de anticipos a empleados | C3: 460 | D3: H | E3: 22 | F3: 0.00% | G3: =IF(Tabla14[[#This Row],[% IVA]]<>0,"472000"&(TEXT(F3*10000,"0000")),"") -> 
A4: 3 | B4: Papelería | C4: 602 | D4: D | E4: 10 | F4: 21.00% | G4: =IF(Tabla14[[#This Row],[% IVA]]<>0,"472000"&(TEXT(F4*10000,"0000")),"") -> 4720002100
A5: 4 | B5: Transportes locales | C5: 624 | D5: D | E5: 10 | F5: 21.00% | G5: =IF(Tabla14[[#This Row],[% IVA]]<>0,"472000"&(TEXT(F5*10000,"0000")),"") -> 4720002100
A6: 5 | B6: Material de limpieza | C6: 629 | D6: D | E6: 10 | F6: 21.00% | G6: =IF(Tabla14[[#This Row],[% IVA]]<>0,"472000"&(TEXT(F6*10000,"0000")),"") -> 4720002100
A7: 6 | B7: Mantenimiento inmovilizado | C7: 622 | D7: D | E7: 10 | F7: 21.00% | G7: =IF(Tabla14[[#This Row],[% IVA]]<>0,"472000"&(TEXT(F7*10000,"0000")),"") -> 4720002100
A8: 7 | B8: Alquiler del local | C8: 621 | D8: D | E8: 10 | F8: 21.00% | G8: =IF(Tabla14[[#This Row],[% IVA]]<>0,"472000"&(TEXT(F8*10000,"0000")),"") -> 4720002100
A9: 8 | B9: Reparaciones básicas | C9: 622 | D9: D | E9: 10 | F9: 21.00% | G9: =IF(Tabla14[[#This Row],[% IVA]]<>0,"472000"&(TEXT(F9*10000,"0000")),"") -> 4720002100
A10: 9 | B10: Impuestos locales | C10: 631 | D10: D | E10: 10 | F10: 21.00% | G10: =IF(Tabla14[[#This Row],[% IVA]]<>0,"472000"&(TEXT(F10*10000,"0000")),"") -> 4720002100
A11: 10 | B11: Comunidad de propietarios | C11: 629 | D11: D | E11: 10 | F11: 21.00% | G11: =IF(Tabla14[[#This Row],[% IVA]]<>0,"472000"&(TEXT(F11*10000,"0000")),"") -> 4720002100
A12: 11 | B12: Diferencias de arqueo (faltante) | C12: 659 | D12: D | E12: 10 | F12: 0.00% | G12: =IF(Tabla14[[#This Row],[% IVA]]<>0,"472000"&(TEXT(F12*10000,"0000")),"") -> 
A13: 12 | B13: Diferencias de arqueo (sobrante) | C13: 756 | D13: H | E13: 10 | F13: 0.00% | G13: =IF(Tabla14[[#This Row],[% IVA]]<>0,"472000"&(TEXT(F13*10000,"0000")),"") -> 
A18: Id Pago | B18: Tipo de pago
A19: 1 | B19: Efectivo
A20: 2 | B20: Tarjeta

Sheet Tarjetas
A1: Id Tarjeta | B1: Nombre | C1: % Comisión | D1: Cta. Comisión | F1: Id Banco | G1: Nombre
A2: 1 | B2: Visa | C2: 1% | D2: ="669"&"000000"&A2 -> 6690000001 | F2: 1 | G2: Santander
A3: 2 | B3: Master Card | C3: 1.25% | D3: ="669"&"000000"&A3 -> 6690000002 | F3: 2 | G3: BBVA
A4: 3 | B4: American Express | C4: 1.50% | D4: ="669"&"000000"&A4 -> 6690000003 | F4: 3 | G4: Abanca
A5: 4 | B5: 4B | C5: 0.85% | D5: ="669"&"000000"&A5 -> 6690000004 | F5: 4 | G5: Sabadell
F6: 5 | G6: Banco Pastor
F7: 6 | G7: La Caixa

Sheet VentasALMFranquiciasFirme
A1: Fecha | B1: IdTienda | C1: IdFamilia | D1: Venta (IVA inc.) | E1: Núm Factura | F1: Id franquiciado | G1: %IVA | H1: Venta sin IVA | I1: Imp. IVA | J1: Cta. Clientes | K1: Cta. Ventas | L1: Cta. IVA | M1: Concepto Clientes | N1: Concepto Ventas | O1: Concepto IVA Repercutido | P1: Tipo IVA | Q1: nº IVA | R1: Moneda | S1: Control importe | T1: Control tienda
A2: 4205800.00% | B2: 21 | C2: 111 | D2: 745.3 | E2: 1 | F2: =VLOOKUP(B2,Tiendas!$A$3:$F$27,6) -> 92 | G2: =VLOOKUP(C2,Familias!$A$3:$C$8,3) -> 10.00% | H2: =ROUND(Tabla1[[#This Row],[Venta (IVA inc.)]]/(1+G2),2) -> 677.55 | I2: =ROUND(Tabla1[[#This Row],[Venta (IVA inc.)]]-H2,2) -> 67.75 | J2: =VLOOKUP(F2,Franquicias!$A$2:$F$7,6) -> 4300000092 | K2: ="70000"&C2&B2 -> 7000011121 | L2: =VLOOKUP(C2,Familias!$A$3:$D$8,4) -> 4770001000 | M2: ="Clientes. ALM Franq. "&F2&" Tienda "&Tabla1[[#This Row],[IdTienda]] -> Clientes. ALM Franq. 92 Tienda 21 | N2: ="Vtas. ALM Franq."&" "&F2&" "&"Tienda "&Tabla1[[#This Row],[IdTienda]]&" Producto "&Tabla1[[#This Row],[IdFamilia]] -> Vtas. ALM Franq. 92 Tienda 21 Producto 111 | O2: ="IVA Rep. ALM Franq. "&F2&" "&"Tienda "&Tabla1[[#This Row],[IdTienda]] -> IVA Rep. ALM Franq. 92 Tienda 21 | P2: R | Q2: 1 | R2: E | S2: =IF(Tabla1[[#This Row],[Venta (IVA inc.)]]>3000,"REVISAR","") ->  | T2: =IF(OR(F2=92,F2=93,F2=95,F2=96),"","REVISAR") -> 
A3: 4205800.00% | B3: 22 | C3: 122 | D3: 221.3 | E3: =E2+1 -> 2 | F3: =VLOOKUP(B3,Tiendas!$A$3:$F$27,6) -> 92 | G3: =VLOOKUP(C3,Familias!$A$3:$C$8,3) -> 21.00% | H3: =ROUND(Tabla1[[#This Row],[Venta (IVA inc.)]]/(1+G3),2) -> 182.89 | I3: =ROUND(Tabla1[[#This Row],[Venta (IVA inc.)]]-H3,2) -> 38.41 | J3: =VLOOKUP(F3,Franquicias!$A$2:$F$7,6) -> 4300000092 | K3: ="70000"&C3&B3 -> 7000012222 | L3: =VLOOKUP(C3,Familias!$A$3:$D$8,4) -> 4770002100 | M3: ="Clientes. ALM Franq. "&F3&" Tienda "&Tabla1[[#This Row],[IdTienda]] -> Clientes. ALM Franq. 92 Tienda 22 | N3: ="Vtas. ALM Franq."&" "&F3&" "&"Tienda "&Tabla1[[#This Row],[IdTienda]]&" Producto "&Tabla1[[#This Row],[IdFamilia]] -> Vtas. ALM Franq. 92 Tienda 22 Producto 122 | O3: ="IVA Rep. ALM Franq. "&F3&" "&"Tienda "&Tabla1[[#This Row],[IdTienda]] -> IVA Rep. ALM Franq. 92 Tienda 22 | P3: R | Q3: =Q2+1 -> 2 | R3: E | S3: =IF(Tabla1[[#This Row],[Venta (IVA inc.)]]>3000,"REVISAR","") ->  | T3: =IF(OR(F3=92,F3=93,F3=95,F3=96),"","REVISAR") -> 
A4: 4205800.00% | B4: 31 | C4: 111 | D4: 247.98 | E4: =E3+1 -> 3 | F4: =VLOOKUP(B4,Tiendas!$A$3:$F$27,6) -> 95 | G4: =VLOOKUP(C4,Familias!$A$3:$C$8,3) -> 10.00% | H4: =ROUND(Tabla1[[#This Row],[Venta (IVA inc.)]]/(1+G4),2) -> 225.44 | I4: =ROUND(Tabla1[[#This Row],[Venta (IVA inc.)]]-H4,2) -> 22.54 | J4: =VLOOKUP(F4,Franquicias!$A$2:$F$7,6) -> 4300000095 | K4: 7000011131 | L4: =VLOOKUP(C4,Familias!$A$3:$D$8,4) -> 4770001000 | M4: ="Clientes. ALM Franq. "&F4&" Tienda "&Tabla1[[#This Row],[IdTienda]] -> Clientes. ALM Franq. 95 Tienda 31 | N4: ="Vtas. ALM Franq."&" "&F4&" "&"Tienda "&Tabla1[[#This Row],[IdTienda]]&" Producto "&Tabla1[[#This Row],[IdFamilia]] -> Vtas. ALM Franq. 95 Tienda 31 Producto 111 | O4: ="IVA Rep. ALM Franq. "&F4&" "&"Tienda "&Tabla1[[#This Row],[IdTienda]] -> IVA Rep. ALM Franq. 95 Tienda 31 | P4: R | Q4: =Q3+1 -> 3 | R4: E | S4: =IF(Tabla1[[#This Row],[Venta (IVA inc.)]]>3000,"REVISAR","") -> 
A5: 4205800.00% | B5: 41 | C5: 111 | D5: 223.32 | E5: 4 | F5: =VLOOKUP(B5,Tiendas!$A$3:$F$27,6) -> 96 | G5: =VLOOKUP(C5,Familias!$A$3:$C$8,3) -> 10.00% | H5: =ROUND(Tabla1[[#This Row],[Venta (IVA inc.)]]/(1+G5),2) -> 203.02 | I5: =ROUND(Tabla1[[#This Row],[Venta (IVA inc.)]]-H5,2) -> 20.3 | J5: =VLOOKUP(F5,Franquicias!$A$2:$F$7,6) -> 4300000096 | K5: 7000011141 | L5: =VLOOKUP(C5,Familias!$A$3:$D$8,4) -> 4770001000 | M5: ="Clientes. ALM Franq. "&F5&" Tienda "&Tabla1[[#This Row],[IdTienda]] -> Clientes. ALM Franq. 96 Tienda 41 | N5: ="Vtas. ALM Franq."&" "&F5&" "&"Tienda "&Tabla1[[#This Row],[IdTienda]]&" Producto "&Tabla1[[#This Row],[IdFamilia]] -> Vtas. ALM Franq. 96 Tienda 41 Producto 111 | O5: ="IVA Rep. ALM Franq. "&F5&" "&"Tienda "&Tabla1[[#This Row],[IdTienda]] -> IVA Rep. ALM Franq. 96 Tienda 41 | P5: R | Q5: 4 | R5: E | S5: =IF(Tabla1[[#This Row],[Venta (IVA inc.)]]>3000,"REVISAR","") -> 
A6: 4205800.00% | B6: 43 | C6: 123 | D6: 458.88 | E6: 5 | F6: =VLOOKUP(B6,Tiendas!$A$3:$F$27,6) -> 95 | G6: =VLOOKUP(C6,Familias!$A$3:$C$8,3) -> 21.00% | H6: =ROUND(Tabla1[[#This Row],[Venta (IVA inc.)]]/(1+G6),2) -> 379.24 | I6: =ROUND(Tabla1[[#This Row],[Venta (IVA inc.)]]-H6,2) -> 79.64 | J6: =VLOOKUP(F6,Franquicias!$A$2:$F$7,6) -> 4300000095 | K6: 7000012343 | L6: =VLOOKUP(C6,Familias!$A$3:$D$8,4) -> 4770002100 | M6: ="Clientes. ALM Franq. "&F6&" Tienda "&Tabla1[[#This Row],[IdTienda]] -> Clientes. ALM Franq. 95 Tienda 43 | N6: ="Vtas. ALM Franq."&" "&F6&" "&"Tienda "&Tabla1[[#This Row],[IdTienda]]&" Producto "&Tabla1[[#This Row],[IdFamilia]] -> Vtas. ALM Franq. 95 Tienda 43 Producto 123 | O6: ="IVA Rep. ALM Franq. "&F6&" "&"Tienda "&Tabla1[[#This Row],[IdTienda]] -> IVA Rep. ALM Franq. 95 Tienda 43 | P6: R | Q6: 5 | R6: E | S6: =IF(Tabla1[[#This Row],[Venta (IVA inc.)]]>3000,"REVISAR","") -> 
A7: 4205800.00% | B7: 51 | C7: 113 | D7: 888.01 | E7: 6 | F7: =VLOOKUP(B7,Tiendas!$A$3:$F$27,6) -> 93 | G7: =VLOOKUP(C7,Familias!$A$3:$C$8,3) -> 21.00% | H7: =ROUND(Tabla1[[#This Row],[Venta (IVA inc.)]]/(1+G7),2) -> 733.89 | I7: =ROUND(Tabla1[[#This Row],[Venta (IVA inc.)]]-H7,2) -> 154.12 | J7: =VLOOKUP(F7,Franquicias!$A$2:$F$7,6) -> 4300000093 | K7: 7000011351 | L7: =VLOOKUP(C7,Familias!$A$3:$D$8,4) -> 4770002100 | M7: ="Clientes. ALM Franq. "&F7&" Tienda "&Tabla1[[#This Row],[IdTienda]] -> Clientes. ALM Franq. 93 Tienda 51 | N7: ="Vtas. ALM Franq."&" "&F7&" "&"Tienda "&Tabla1[[#This Row],[IdTienda]]&" Producto "&Tabla1[[#This Row],[IdFamilia]] -> Vtas. ALM Franq. 93 Tienda 51 Producto 113 | O7: ="IVA Rep. ALM Franq. "&F7&" "&"Tienda "&Tabla1[[#This Row],[IdTienda]] -> IVA Rep. ALM Franq. 93 Tienda 51 | P7: R | Q7: 6 | R7: E | S7: =IF(Tabla1[[#This Row],[Venta (IVA inc.)]]>3000,"REVISAR","") -> 
A8: 4205800.00% | B8: 52 | C8: 123 | D8: 236.12 | E8: 7 | F8: =VLOOKUP(B8,Tiendas!$A$3:$F$27,6) -> 95 | G8: =VLOOKUP(C8,Familias!$A$3:$C$8,3) -> 21.00% | H8: =ROUND(Tabla1[[#This Row],[Venta (IVA inc.)]]/(1+G8),2) -> 195.14 | I8: =ROUND(Tabla1[[#This Row],[Venta (IVA inc.)]]-H8,2) -> 40.98 | J8: =VLOOKUP(F8,Franquicias!$A$2:$F$7,6) -> 4300000095 | K8: 7000012352 | L8: =VLOOKUP(C8,Familias!$A$3:$D$8,4) -> 4770002100 | M8: ="Clientes. ALM Franq. "&F8&" Tienda "&Tabla1[[#This Row],[IdTienda]] -> Clientes. ALM Franq. 95 Tienda 52 | N8: ="Vtas. ALM Franq."&" "&F8&" "&"Tienda "&Tabla1[[#This Row],[IdTienda]]&" Producto "&Tabla1[[#This Row],[IdFamilia]] -> Vtas. ALM Franq. 95 Tienda 52 Producto 123 | O8: ="IVA Rep. ALM Franq. "&F8&" "&"Tienda "&Tabla1[[#This Row],[IdTienda]] -> IVA Rep. ALM Franq. 95 Tienda 52 | P8: R | Q8: 7 | R8: E | S8: =IF(Tabla1[[#This Row],[Venta (IVA inc.)]]>3000,"REVISAR","") -> 
A9: 4205800.00% | B9: 55 | C9: 122 | D9: 455.11 | E9: 8 | F9: =VLOOKUP(B9,Tiendas!$A$3:$F$27,6) -> 92 | G9: =VLOOKUP(C9,Familias!$A$3:$C$8,3) -> 21.00% | H9: =ROUND(Tabla1[[#This Row],[Venta (IVA inc.)]]/(1+G9),2) -> 376.12 | I9: =ROUND(Tabla1[[#This Row],[Venta (IVA inc.)]]-H9,2) -> 78.99 | J9: =VLOOKUP(F9,Franquicias!$A$2:$F$7,6) -> 4300000092 | K9: 7000012255 | L9: =VLOOKUP(C9,Familias!$A$3:$D$8,4) -> 4770002100 | M9: ="Clientes. ALM Franq. "&F9&" Tienda "&Tabla1[[#This Row],[IdTienda]] -> Clientes. ALM Franq. 92 Tienda 55 | N9: ="Vtas. ALM Franq."&" "&F9&" "&"Tienda "&Tabla1[[#This Row],[IdTienda]]&" Producto "&Tabla1[[#This Row],[IdFamilia]] -> Vtas. ALM Franq. 92 Tienda 55 Producto 122 | O9: ="IVA Rep. ALM Franq. "&F9&" "&"Tienda "&Tabla1[[#This Row],[IdTienda]] -> IVA Rep. ALM Franq. 92 Tienda 55 | P9: R | Q9: 8 | R9: E | S9: =IF(Tabla1[[#This Row],[Venta (IVA inc.)]]>3000,"REVISAR","") -> 
A10: 4205800.00% | B10: 64 | C10: 122 | D10: 98 | E10: 9 | F10: =VLOOKUP(B10,Tiendas!$A$3:$F$27,6) -> 93 | G10: =VLOOKUP(C10,Familias!$A$3:$C$8,3) -> 21.00% | H10: =ROUND(Tabla1[[#This Row],[Venta (IVA inc.)]]/(1+G10),2) -> 80.99 | I10: =ROUND(Tabla1[[#This Row],[Venta (IVA inc.)]]-H10,2) -> 17.01 | J10: =VLOOKUP(F10,Franquicias!$A$2:$F$7,6) -> 4300000093 | K10: 7000012264 | L10: =VLOOKUP(C10,Familias!$A$3:$D$8,4) -> 4770002100 | M10: ="Clientes. ALM Franq. "&F10&" Tienda "&Tabla1[[#This Row],[IdTienda]] -> Clientes. ALM Franq. 93 Tienda 64 | N10: ="Vtas. ALM Franq."&" "&F10&" "&"Tienda "&Tabla1[[#This Row],[IdTienda]]&" Producto "&Tabla1[[#This Row],[IdFamilia]] -> Vtas. ALM Franq. 93 Tienda 64 Producto 122 | O10: ="IVA Rep. ALM Franq. "&F10&" "&"Tienda "&Tabla1[[#This Row],[IdTienda]] -> IVA Rep. ALM Franq. 93 Tienda 64 | P10: R | Q10: 9 | R10: E | S10: =IF(Tabla1[[#This Row],[Venta (IVA inc.)]]>3000,"REVISAR","") -> 
A11: 4205800.00% | B11: 41 | C11: 111 | D11: 311.11 | E11: 10 | F11: =VLOOKUP(B11,Tiendas!$A$3:$F$27,6) -> 96 | G11: =VLOOKUP(C11,Familias!$A$3:$C$8,3) -> 10.00% | H11: =ROUND(Tabla1[[#This Row],[Venta (IVA inc.)]]/(1+G11),2) -> 282.83 | I11: =ROUND(Tabla1[[#This Row],[Venta (IVA inc.)]]-H11,2) -> 28.28 | J11: =VLOOKUP(F11,Franquicias!$A$2:$F$7,6) -> 4300000096 | K11: 7000011141 | L11: =VLOOKUP(C11,Familias!$A$3:$D$8,4) -> 4770001000 | M11: ="Clientes. ALM Franq. "&F11&" Tienda "&Tabla1[[#This Row],[IdTienda]] -> Clientes. ALM Franq. 96 Tienda 41 | N11: ="Vtas. ALM Franq."&" "&F11&" "&"Tienda "&Tabla1[[#This Row],[IdTienda]]&" Producto "&Tabla1[[#This Row],[IdFamilia]] -> Vtas. ALM Franq. 96 Tienda 41 Producto 111 | O11: ="IVA Rep. ALM Franq. "&F11&" "&"Tienda "&Tabla1[[#This Row],[IdTienda]] -> IVA Rep. ALM Franq. 96 Tienda 41 | P11: R | Q11: 10 | R11: E | S11: =IF(Tabla1[[#This Row],[Venta (IVA inc.)]]>3000,"REVISAR","") -> 
A12: 4205800.00% | B12: 31 | C12: 122 | D12: 111.22 | E12: 11 | F12: =VLOOKUP(B12,Tiendas!$A$3:$F$27,6) -> 95 | G12: =VLOOKUP(C12,Familias!$A$3:$C$8,3) -> 21.00% | H12: =ROUND(Tabla1[[#This Row],[Venta (IVA inc.)]]/(1+G12),2) -> 91.92 | I12: =ROUND(Tabla1[[#This Row],[Venta (IVA inc.)]]-H12,2) -> 19.3 | J12: =VLOOKUP(F12,Franquicias!$A$2:$F$7,6) -> 4300000095 | K12: 7000012231 | L12: =VLOOKUP(C12,Familias!$A$3:$D$8,4) -> 4770002100 | M12: ="Clientes. ALM Franq. "&F12&" Tienda "&Tabla1[[#This Row],[IdTienda]] -> Clientes. ALM Franq. 95 Tienda 31 | N12: ="Vtas. ALM Franq."&" "&F12&" "&"Tienda "&Tabla1[[#This Row],[IdTienda]]&" Producto "&Tabla1[[#This Row],[IdFamilia]] -> Vtas. ALM Franq. 95 Tienda 31 Producto 122 | O12: ="IVA Rep. ALM Franq. "&F12&" "&"Tienda "&Tabla1[[#This Row],[IdTienda]] -> IVA Rep. ALM Franq. 95 Tienda 31 | P12: R | Q12: 11 | R12: E | S12: =IF(Tabla1[[#This Row],[Venta (IVA inc.)]]>3000,"REVISAR","") -> 
A13: 4205800.00% | B13: 64 | C13: 113 | D13: 265 | E13: 12 | F13: =VLOOKUP(B13,Tiendas!$A$3:$F$27,6) -> 93 | G13: =VLOOKUP(C13,Familias!$A$3:$C$8,3) -> 21.00% | H13: =ROUND(Tabla1[[#This Row],[Venta (IVA inc.)]]/(1+G13),2) -> 219.01 | I13: =ROUND(Tabla1[[#This Row],[Venta (IVA inc.)]]-H13,2) -> 45.99 | J13: =VLOOKUP(F13,Franquicias!$A$2:$F$7,6) -> 4300000093 | K13: 7000011364 | L13: =VLOOKUP(C13,Familias!$A$3:$D$8,4) -> 4770002100 | M13: ="Clientes. ALM Franq. "&F13&" Tienda "&Tabla1[[#This Row],[IdTienda]] -> Clientes. ALM Franq. 93 Tienda 64 | N13: ="Vtas. ALM Franq."&" "&F13&" "&"Tienda "&Tabla1[[#This Row],[IdTienda]]&" Producto "&Tabla1[[#This Row],[IdFamilia]] -> Vtas. ALM Franq. 93 Tienda 64 Producto 113 | O13: ="IVA Rep. ALM Franq. "&F13&" "&"Tienda "&Tabla1[[#This Row],[IdTienda]] -> IVA Rep. ALM Franq. 93 Tienda 64 | P13: R | Q13: 12 | R13: E | S13: =IF(Tabla1[[#This Row],[Venta (IVA inc.)]]>3000,"REVISAR","") -> 

Sheet ConfigVentasALMFraqFirme
A1: Hoja con los datos de entrada: | D1: VentasALMFranquiciasFirme
A2: Datos de salida: | D2: Asto.VentasALMFranquiciasFirme
A3: Primer número de asiento: | D3: 1
A4: Procedimientos a ejecutar previamente: | E4: Macro1 | F4: Macro2
A9: Diario | B9: Fecha | C9: Asiento | D9: Orden | E9: Cuenta | F9: Importe Pts | G9: Concepto | H9: Documento | I9: Debe | J9: Haber | K9: Moneda | L9: Punteo | M9: TipoIVA | N9: Nº IVA | O9: Depto. | P9: Subdepto. | Q9: Imagen
A10: 1 | B10: A | C10: #1 | D10: 1 | E10: J | G10: M | I10: D | K10: R | M10: P | N10: Q
A11: 1 | B11: A | C11: #1 | D11: 2 | E11: K | G11: N | J11: H | K11: R | M11: P | N11: Q
A12: 1 | B12: A | C12: #1 | D12: 3 | E12: L | G12: O | J12: I | K12: R | M12: P | N12: Q

Sheet Asto.VentasALMFranquiciasFirme
A1: Diario | B1: Fecha | C1: Asiento | D1: Orden | E1: Cuenta | F1: Importe Pts | G1: Concepto | H1: Documento | I1: Debe | J1: Haber | K1: Moneda | L1: Punteo | M1: TipoIVA | N1: Nº IVA | O1: Depto. | P1: Subdepto. | Q1: Imagen
A2: 1 | B2: 4205800.00% | C2: 1 | D2: 1 | E2: 4300000092 | G2: Clientes. ALM Franq. 92 Tienda 21 | I2: 745.3 | K2: E | M2: R | N2: 1
A3: 1 | B3: 4205800.00% | C3: 1 | D3: 2 | E3: 7000011121 | G3: Vtas. ALM Franq. 92 Tienda 21 Producto 111 | J3: 677.55 | K3: E | M3: R | N3: 1
A4: 1 | B4: 4205800.00% | C4: 1 | D4: 3 | E4: 4770001000 | G4: IVA Rep. ALM Franq. 92 Tienda 21 | J4: 67.75 | K4: E | M4: R | N4: 1
A5: 1 | B5: 4205800.00% | C5: 2 | D5: 1 | E5: 4300000092 | G5: Clientes. ALM Franq. 92 Tienda 22 | I5: 221.3 | K5: E | M5: R | N5: 2
A6: 1 | B6: 4205800.00% | C6: 2 | D6: 2 | E6: 7000012222 | G6: Vtas. ALM Franq. 92 Tienda 22 Producto 122 | J6: 182.89 | K6: E | M6: R | N6: 2
A7: 1 | B7: 4205800.00% | C7: 2 | D7: 3 | E7: 4770002100 | G7: IVA Rep. ALM Franq. 92 Tienda 22 | J7: 38.41 | K7: E | M7: R | N7: 2
A8: 1 | B8: 4205800.00% | C8: 3 | D8: 1 | E8: 4300000095 | G8: Clientes. ALM Franq. 95 Tienda 31 | I8: 247.98 | K8: E | M8: R | N8: 3
A9: 1 | B9: 4205800.00% | C9: 3 | D9: 2 | E9: 7000011131 | G9: Vtas. ALM Franq. 95 Tienda 31 Producto 111 | J9: 225.44 | K9: E | M9: R | N9: 3
A10: 1 | B10: 4205800.00% | C10: 3 | D10: 3 | E10: 4770001000 | G10: IVA Rep. ALM Franq. 95 Tienda 31 | J10: 22.54 | K10: E | M10: R | N10: 3
A11: 1 | B11: 4205800.00% | C11: 4 | D11: 1 | E11: 4300000096 | G11: Clientes. ALM Franq. 96 Tienda 41 | I11: 223.32 | K11: E | M11: R | N11: 4
A12: 1 | B12: 4205800.00% | C12: 4 | D12: 2 | E12: 7000011141 | G12: Vtas. ALM Franq. 96 Tienda 41 Producto 111 | J12: 203.02 | K12: E | M12: R | N12: 4
A13: 1 | B13: 4205800.00% | C13: 4 | D13: 3 | E13: 4770001000 | G13: IVA Rep. ALM Franq. 96 Tienda 41 | J13: 20.3 | K13: E | M13: R | N13: 4
A14: 1 | B14: 4205800.00% | C14: 5 | D14: 1 | E14: 4300000095 | G14: Clientes. ALM Franq. 95 Tienda 43 | I14: 458.88 | K14: E | M14: R | N14: 5
A15: 1 | B15: 4205800.00% | C15: 5 | D15: 2 | E15: 7000012343 | G15: Vtas. ALM Franq. 95 Tienda 43 Producto 123 | J15: 379.24 | K15: E | M15: R | N15: 5
A16: 1 | B16: 4205800.00% | C16: 5 | D16: 3 | E16: 4770002100 | G16: IVA Rep. ALM Franq. 95 Tienda 43 | J16: 79.64 | K16: E | M16: R | N16: 5
A17: 1 | B17: 4205800.00% | C17: 6 | D17: 1 | E17: 4300000093 | G17: Clientes. ALM Franq. 93 Tienda 51 | I17: 888.01 | K17: E | M17: R | N17: 6
A18: 1 | B18: 4205800.00% | C18: 6 | D18: 2 | E18: 7000011351 | G18: Vtas. ALM Franq. 93 Tienda 51 Producto 113 | J18: 733.89 | K18: E | M18: R | N18: 6
A19: 1 | B19: 4205800.00% | C19: 6 | D19: 3 | E19: 4770002100 | G19: IVA Rep. ALM Franq. 93 Tienda 51 | J19: 154.12 | K19: E | M19: R | N19: 6
A20: 1 | B20: 4205800.00% | C20: 7 | D20: 1 | E20: 4300000095 | G20: Clientes. ALM Franq. 95 Tienda 52 | I20: 236.12 | K20: E | M20: R | N20: 7
A21: 1 | B21: 4205800.00% | C21: 7 | D21: 2 | E21: 7000012352 | G21: Vtas. ALM Franq. 95 Tienda 52 Producto 123 | J21: 195.14 | K21: E | M21: R | N21: 7
A22: 1 | B22: 4205800.00% | C22: 7 | D22: 3 | E22: 4770002100 | G22: IVA Rep. ALM Franq. 95 Tienda 52 | J22: 40.98 | K22: E | M22: R | N22: 7
A23: 1 | B23: 4205800.00% | C23: 8 | D23: 1 | E23: 4300000092 | G23: Clientes. ALM Franq. 92 Tienda 55 | I23: 455.11 | K23: E | M23: R | N23: 8
A24: 1 | B24: 4205800.00% | C24: 8 | D24: 2 | E24: 7000012255 | G24: Vtas. ALM Franq. 92 Tienda 55 Producto 122 | J24: 376.12 | K24: E | M24: R | N24: 8
A25: 1 | B25: 4205800.00% | C25: 8 | D25: 3 | E25: 4770002100 | G25: IVA Rep. ALM Franq. 92 Tienda 55 | J25: 78.99 | K25: E | M25: R | N25: 8
A26: 1 | B26: 4205800.00% | C26: 9 | D26: 1 | E26: 4300000093 | G26: Clientes. ALM Franq. 93 Tienda 64 | I26: 98 | K26: E | M26: R | N26: 9
A27: 1 | B27: 4205800.00% | C27: 9 | D27: 2 | E27: 7000012264 | G27: Vtas. ALM Franq. 93 Tienda 64 Producto 122 | J27: 80.99 | K27: E | M27: R | N27: 9
A28: 1 | B28: 4205800.00% | C28: 9 | D28: 3 | E28: 4770002100 | G28: IVA Rep. ALM Franq. 93 Tienda 64 | J28: 17.01 | K28: E | M28: R | N28: 9
A29: 1 | B29: 4205800.00% | C29: 10 | D29: 1 | E29: 4300000096 | G29: Clientes. ALM Franq. 96 Tienda 41 | I29: 311.11 | K29: E | M29: R | N29: 10
A30: 1 | B30: 4205800.00% | C30: 10 | D30: 2 | E30: 7000011141 | G30: Vtas. ALM Franq. 96 Tienda 41 Producto 111 | J30: 282.83 | K30: E | M30: R | N30: 10
A31: 1 | B31: 4205800.00% | C31: 10 | D31: 3 | E31: 4770001000 | G31: IVA Rep. ALM Franq. 96 Tienda 41 | J31: 28.28 | K31: E | M31: R | N31: 10
A32: 1 | B32: 4205800.00% | C32: 11 | D32: 1 | E32: 4300000095 | G32: Clientes. ALM Franq. 95 Tienda 31 | I32: 111.22 | K32: E | M32: R | N32: 11
A33: 1 | B33: 4205800.00% | C33: 11 | D33: 2 | E33: 7000012231 | G33: Vtas. ALM Franq. 95 Tienda 31 Producto 122 | J33: 91.92 | K33: E | M33: R | N33: 11
A34: 1 | B34: 4205800.00% | C34: 11 | D34: 3 | E34: 4770002100 | G34: IVA Rep. ALM Franq. 95 Tienda 31 | J34: 19.3 | K34: E | M34: R | N34: 11
A35: 1 | B35: 4205800.00% | C35: 12 | D35: 1 | E35: 4300000093 | G35: Clientes. ALM Franq. 93 Tienda 64 | I35: 265 | K35: E | M35: R | N35: 12
A36: 1 | B36: 4205800.00% | C36: 12 | D36: 2 | E36: 7000011364 | G36: Vtas. ALM Franq. 93 Tienda 64 Producto 113 | J36: 219.01 | K36: E | M36: R | N36: 12
A37: 1 | B37: 4205800.00% | C37: 12 | D37: 3 | E37: 4770002100 | G37: IVA Rep. ALM Franq. 93 Tienda 64 | J37: 45.99 | K37: E | M37: R | N37: 12

Sheet VentasTPVFranquiciasEnFirme
A1: Fecha | B1: IdTienda | C1: IdFamilia | D1: Ventas (IVA inc.) | E1: F.Pago | F1: Id Tarjeta | G1: % IVA Venta | H1: Venta (Sin IVA) | I1: %Royaltie | J1: Royaltie (Sin IVA) | K1: %IVA Royaltie | L1: IVA Royaltie | M1: Royaltie (Con IVA) | N1: Id Franquiciado | O1: Cta.Deudores, | P1: Cta. Royaltie | Q1: Cta. IVA Royaltie | R1: Concepto deudores | S1: Concepto Ing. Royaltie | T1: Concepto IVA Rep. | U1: Moneda | V1: Tipo IVA | W1: Nº IVA
A2: 4205800.00% | B2: 21 | C2: 123 | D2: 558.36 | E2: 1 | G2: =VLOOKUP(Tabla2[[#This Row],[IdFamilia]],Familias!$A$3:$D$8,3) -> 21.00% | H2: =ROUND(Tabla2[[#This Row],[Ventas (IVA inc.)]]/(1+G2),2) -> 461.45 | I2: =VLOOKUP(N2,Franquicias!$A$2:$D$7,4) -> 1.75% | J2: =ROUND(H2*I2,2) -> 8.08 | K2: =Franquicias!$B$13 -> 21% | L2: =ROUND(J2*K2,2) -> 1.7 | M2: =ROUND(J2+L2,2) -> 9.78 | N2: =VLOOKUP(B2,Tiendas!$A$2:$F$26,6) -> 92 | O2: =VLOOKUP(N2,Franquicias!$A$1:$H$7,7) -> 4400000092 | P2: =VLOOKUP(VentasTPVFranquiciasEnFirme!N2,Franquicias!$A$2:$H$7,8) -> 7050000092 | Q2: =Franquicias!$C$13 -> 4770002100 | R2: ="Deudores Franq.Firme "&N2&" "&"Tienda "&Tabla2[[#This Row],[IdTienda]] -> Deudores Franq.Firme 92 Tienda 21 | S2: ="Ing. Royaltie"&" "&"Franq.Firme "&N2&" "&"Tienda "&Tabla2[[#This Row],[IdTienda]] -> Ing. Royaltie Franq.Firme 92 Tienda 21 | T2: ="IVA Rep. Franq.Firme "&N2&" "&"Tienda "&Tabla2[[#This Row],[IdTienda]] -> IVA Rep. Franq.Firme 92 Tienda 21 | U2: E | V2: R | W2: 1
A3: 4205800.00% | B3: 22 | C3: 111 | D3: 1112.25 | E3: 1 | G3: =VLOOKUP(Tabla2[[#This Row],[IdFamilia]],Familias!$A$3:$D$8,3) -> 10.00% | H3: =ROUND(Tabla2[[#This Row],[Ventas (IVA inc.)]]/(1+G3),2) -> 1011.14 | I3: =VLOOKUP(N3,Franquicias!$A$2:$D$7,4) -> 1.75% | J3: =ROUND(H3*I3,2) -> 17.69 | K3: =Franquicias!$B$13 -> 21% | L3: =ROUND(J3*K3,2) -> 3.71 | M3: =ROUND(J3+L3,2) -> 21.4 | N3: =VLOOKUP(B3,Tiendas!$A$2:$F$26,6) -> 92 | O3: =VLOOKUP(N3,Franquicias!$A$1:$H$7,7) -> 4400000092 | P3: =VLOOKUP(VentasTPVFranquiciasEnFirme!N3,Franquicias!$A$2:$H$7,8) -> 7050000092 | Q3: =Franquicias!$C$13 -> 4770002100 | R3: ="Deudores Franq.Firme "&N3&" "&"Tienda "&Tabla2[[#This Row],[IdTienda]] -> Deudores Franq.Firme 92 Tienda 22 | S3: ="Ing. Royaltie"&" "&"Franq.Firme "&N3&" "&"Tienda "&Tabla2[[#This Row],[IdTienda]] -> Ing. Royaltie Franq.Firme 92 Tienda 22 | T3: ="IVA Rep. Franq.Firme "&N3&" "&"Tienda "&Tabla2[[#This Row],[IdTienda]] -> IVA Rep. Franq.Firme 92 Tienda 22 | U3: E | V3: R | W3: =W2+1 -> 2
A4: 4205800.00% | B4: 31 | C4: 112 | D4: 125 | E4: 2 | F4: 2 | G4: =VLOOKUP(Tabla2[[#This Row],[IdFamilia]],Familias!$A$3:$D$8,3) -> 4.00% | H4: =ROUND(Tabla2[[#This Row],[Ventas (IVA inc.)]]/(1+G4),2) -> 120.19 | I4: =VLOOKUP(N4,Franquicias!$A$2:$D$7,4) -> 1.50% | J4: 1.8 | K4: =Franquicias!$B$13 -> 21% | L4: 0.38 | M4: 2.18 | N4: =VLOOKUP(B4,Tiendas!$A$2:$F$26,6) -> 95 | O4: =VLOOKUP(N4,Franquicias!$A$1:$H$7,7) -> 4400000095 | P4: =VLOOKUP(VentasTPVFranquiciasEnFirme!N4,Franquicias!$A$2:$H$7,8) -> 7050000095 | Q4: =Franquicias!$C$13 -> 4770002100 | R4: ="Deudores Franq.Firme "&N4&" "&"Tienda "&Tabla2[[#This Row],[IdTienda]] -> Deudores Franq.Firme 95 Tienda 31 | S4: ="Ing. Royaltie"&" "&"Franq.Firme "&N4&" "&"Tienda "&Tabla2[[#This Row],[IdTienda]] -> Ing. Royaltie Franq.Firme 95 Tienda 31 | T4: ="IVA Rep. Franq.Firme "&N4&" "&"Tienda "&Tabla2[[#This Row],[IdTienda]] -> IVA Rep. Franq.Firme 95 Tienda 31 | U4: E | V4: R | W4: =W3+1 -> 3
A5: 4205800.00% | B5: 41 | C5: 121 | D5: 221.5 | E5: 1 | G5: =VLOOKUP(Tabla2[[#This Row],[IdFamilia]],Familias!$A$3:$D$8,3) -> 21.00% | H5: =ROUND(Tabla2[[#This Row],[Ventas (IVA inc.)]]/(1+G5),2) -> 183.06 | I5: =VLOOKUP(N5,Franquicias!$A$2:$D$7,4) -> 2.00% | J5: 3.66 | K5: =Franquicias!$B$13 -> 21% | L5: 0.77 | M5: 4.43 | N5: =VLOOKUP(B5,Tiendas!$A$2:$F$26,6) -> 96 | O5: =VLOOKUP(N5,Franquicias!$A$1:$H$7,7) -> 4400000096 | P5: =VLOOKUP(VentasTPVFranquiciasEnFirme!N5,Franquicias!$A$2:$H$7,8) -> 7050000096 | Q5: =Franquicias!$C$13 -> 4770002100 | R5: ="Deudores Franq.Firme "&N5&" "&"Tienda "&Tabla2[[#This Row],[IdTienda]] -> Deudores Franq.Firme 96 Tienda 41 | S5: ="Ing. Royaltie"&" "&"Franq.Firme "&N5&" "&"Tienda "&Tabla2[[#This Row],[IdTienda]] -> Ing. Royaltie Franq.Firme 96 Tienda 41 | T5: ="IVA Rep. Franq.Firme "&N5&" "&"Tienda "&Tabla2[[#This Row],[IdTienda]] -> IVA Rep. Franq.Firme 96 Tienda 41 | U5: E | V5: R | W5: 4
A6: 4205800.00% | B6: 43 | C6: 122 | D6: 447 | E6: 2 | F6: 3 | G6: =VLOOKUP(Tabla2[[#This Row],[IdFamilia]],Familias!$A$3:$D$8,3) -> 21.00% | H6: =ROUND(Tabla2[[#This Row],[Ventas (IVA inc.)]]/(1+G6),2) -> 369.42 | I6: =VLOOKUP(N6,Franquicias!$A$2:$D$7,4) -> 1.50% | J6: 5.54 | K6: =Franquicias!$B$13 -> 21% | L6: 1.16 | M6: 6.7 | N6: =VLOOKUP(B6,Tiendas!$A$2:$F$26,6) -> 95 | O6: =VLOOKUP(N6,Franquicias!$A$1:$H$7,7) -> 4400000095 | P6: =VLOOKUP(VentasTPVFranquiciasEnFirme!N6,Franquicias!$A$2:$H$7,8) -> 7050000095 | Q6: =Franquicias!$C$13 -> 4770002100 | R6: ="Deudores Franq.Firme "&N6&" "&"Tienda "&Tabla2[[#This Row],[IdTienda]] -> Deudores Franq.Firme 95 Tienda 43 | S6: ="Ing. Royaltie"&" "&"Franq.Firme "&N6&" "&"Tienda "&Tabla2[[#This Row],[IdTienda]] -> Ing. Royaltie Franq.Firme 95 Tienda 43 | T6: ="IVA Rep. Franq.Firme "&N6&" "&"Tienda "&Tabla2[[#This Row],[IdTienda]] -> IVA Rep. Franq.Firme 95 Tienda 43 | U6: E | V6: R | W6: 5
A7: 4205800.00% | B7: 51 | C7: 113 | D7: 265.02 | E7: 2 | F7: 1 | G7: =VLOOKUP(Tabla2[[#This Row],[IdFamilia]],Familias!$A$3:$D$8,3) -> 21.00% | H7: =ROUND(Tabla2[[#This Row],[Ventas (IVA inc.)]]/(1+G7),2) -> 219.02 | I7: =VLOOKUP(N7,Franquicias!$A$2:$D$7,4) -> 1.50% | J7: 3.29 | K7: =Franquicias!$B$13 -> 21% | L7: 0.69 | M7: 3.98 | N7: =VLOOKUP(B7,Tiendas!$A$2:$F$26,6) -> 93 | O7: =VLOOKUP(N7,Franquicias!$A$1:$H$7,7) -> 4400000093 | P7: =VLOOKUP(VentasTPVFranquiciasEnFirme!N7,Franquicias!$A$2:$H$7,8) -> 7050000093 | Q7: =Franquicias!$C$13 -> 4770002100 | R7: ="Deudores Franq.Firme "&N7&" "&"Tienda "&Tabla2[[#This Row],[IdTienda]] -> Deudores Franq.Firme 93 Tienda 51 | S7: ="Ing. Royaltie"&" "&"Franq.Firme "&N7&" "&"Tienda "&Tabla2[[#This Row],[IdTienda]] -> Ing. Royaltie Franq.Firme 93 Tienda 51 | T7: ="IVA Rep. Franq.Firme "&N7&" "&"Tienda "&Tabla2[[#This Row],[IdTienda]] -> IVA Rep. Franq.Firme 93 Tienda 51 | U7: E | V7: R | W7: 6
A8: 4205800.00% | B8: 52 | C8: 111 | D8: 36.32 | E8: 1 | G8: =VLOOKUP(Tabla2[[#This Row],[IdFamilia]],Familias!$A$3:$D$8,3) -> 10.00% | H8: =ROUND(Tabla2[[#This Row],[Ventas (IVA inc.)]]/(1+G8),2) -> 33.02 | I8: =VLOOKUP(N8,Franquicias!$A$2:$D$7,4) -> 1.50% | J8: 0.5 | K8: =Franquicias!$B$13 -> 21% | L8: 0.11 | M8: 0.61 | N8: =VLOOKUP(B8,Tiendas!$A$2:$F$26,6) -> 95 | O8: =VLOOKUP(N8,Franquicias!$A$1:$H$7,7) -> 4400000095 | P8: =VLOOKUP(VentasTPVFranquiciasEnFirme!N8,Franquicias!$A$2:$H$7,8) -> 7050000095 | Q8: =Franquicias!$C$13 -> 4770002100 | R8: ="Deudores Franq.Firme "&N8&" "&"Tienda "&Tabla2[[#This Row],[IdTienda]] -> Deudores Franq.Firme 95 Tienda 52 | S8: ="Ing. Royaltie"&" "&"Franq.Firme "&N8&" "&"Tienda "&Tabla2[[#This Row],[IdTienda]] -> Ing. Royaltie Franq.Firme 95 Tienda 52 | T8: ="IVA Rep. Franq.Firme "&N8&" "&"Tienda "&Tabla2[[#This Row],[IdTienda]] -> IVA Rep. Franq.Firme 95 Tienda 52 | U8: E | V8: R | W8: 7
A9: 4205800.00% | B9: 55 | C9: 112 | D9: 122 | E9: 1 | G9: =VLOOKUP(Tabla2[[#This Row],[IdFamilia]],Familias!$A$3:$D$8,3) -> 4.00% | H9: =ROUND(Tabla2[[#This Row],[Ventas (IVA inc.)]]/(1+G9),2) -> 117.31 | I9: =VLOOKUP(N9,Franquicias!$A$2:$D$7,4) -> 1.75% | J9: 2.05 | K9: =Franquicias!$B$13 -> 21% | L9: 0.43 | M9: 2.48 | N9: =VLOOKUP(B9,Tiendas!$A$2:$F$26,6) -> 92 | O9: =VLOOKUP(N9,Franquicias!$A$1:$H$7,7) -> 4400000092 | P9: =VLOOKUP(VentasTPVFranquiciasEnFirme!N9,Franquicias!$A$2:$H$7,8) -> 7050000092 | Q9: =Franquicias!$C$13 -> 4770002100 | R9: ="Deudores Franq.Firme "&N9&" "&"Tienda "&Tabla2[[#This Row],[IdTienda]] -> Deudores Franq.Firme 92 Tienda 55 | S9: ="Ing. Royaltie"&" "&"Franq.Firme "&N9&" "&"Tienda "&Tabla2[[#This Row],[IdTienda]] -> Ing. Royaltie Franq.Firme 92 Tienda 55 | T9: ="IVA Rep. Franq.Firme "&N9&" "&"Tienda "&Tabla2[[#This Row],[IdTienda]] -> IVA Rep. Franq.Firme 92 Tienda 55 | U9: E | V9: R | W9: 8
A10: 4205800.00% | B10: 64 | C10: 122 | D10: 14.23 | E10: 1 | G10: =VLOOKUP(Tabla2[[#This Row],[IdFamilia]],Familias!$A$3:$D$8,3) -> 21.00% | H10: =ROUND(Tabla2[[#This Row],[Ventas (IVA inc.)]]/(1+G10),2) -> 11.76 | I10: =VLOOKUP(N10,Franquicias!$A$2:$D$7,4) -> 1.50% | J10: 0.18 | K10: =Franquicias!$B$13 -> 21% | L10: 0.04 | M10: 0.22 | N10: =VLOOKUP(B10,Tiendas!$A$2:$F$26,6) -> 93 | O10: =VLOOKUP(N10,Franquicias!$A$1:$H$7,7) -> 4400000093 | P10: =VLOOKUP(VentasTPVFranquiciasEnFirme!N10,Franquicias!$A$2:$H$7,8) -> 7050000093 | Q10: =Franquicias!$C$13 -> 4770002100 | R10: ="Deudores Franq.Firme "&N10&" "&"Tienda "&Tabla2[[#This Row],[IdTienda]] -> Deudores Franq.Firme 93 Tienda 64 | S10: ="Ing. Royaltie"&" "&"Franq.Firme "&N10&" "&"Tienda "&Tabla2[[#This Row],[IdTienda]] -> Ing. Royaltie Franq.Firme 93 Tienda 64 | T10: ="IVA Rep. Franq.Firme "&N10&" "&"Tienda "&Tabla2[[#This Row],[IdTienda]] -> IVA Rep. Franq.Firme 93 Tienda 64 | U10: E | V10: R | W10: 9
A11: 4205800.00% | B11: 41 | C11: 121 | D11: 33.65 | E11: 1 | G11: =VLOOKUP(Tabla2[[#This Row],[IdFamilia]],Familias!$A$3:$D$8,3) -> 21.00% | H11: =ROUND(Tabla2[[#This Row],[Ventas (IVA inc.)]]/(1+G11),2) -> 27.81 | I11: =VLOOKUP(N11,Franquicias!$A$2:$D$7,4) -> 2.00% | J11: 0.56 | K11: =Franquicias!$B$13 -> 21% | L11: 0.12 | M11: 0.68 | N11: =VLOOKUP(B11,Tiendas!$A$2:$F$26,6) -> 96 | O11: =VLOOKUP(N11,Franquicias!$A$1:$H$7,7) -> 4400000096 | P11: =VLOOKUP(VentasTPVFranquiciasEnFirme!N11,Franquicias!$A$2:$H$7,8) -> 7050000096 | Q11: =Franquicias!$C$13 -> 4770002100 | R11: ="Deudores Franq.Firme "&N11&" "&"Tienda "&Tabla2[[#This Row],[IdTienda]] -> Deudores Franq.Firme 96 Tienda 41 | S11: ="Ing. Royaltie"&" "&"Franq.Firme "&N11&" "&"Tienda "&Tabla2[[#This Row],[IdTienda]] -> Ing. Royaltie Franq.Firme 96 Tienda 41 | T11: ="IVA Rep. Franq.Firme "&N11&" "&"Tienda "&Tabla2[[#This Row],[IdTienda]] -> IVA Rep. Franq.Firme 96 Tienda 41 | U11: E | V11: R | W11: 10
A12: 4205800.00% | B12: 31 | C12: 123 | D12: 258.36 | E12: 2 | F12: 1 | G12: =VLOOKUP(Tabla2[[#This Row],[IdFamilia]],Familias!$A$3:$D$8,3) -> 21.00% | H12: =ROUND(Tabla2[[#This Row],[Ventas (IVA inc.)]]/(1+G12),2) -> 213.52 | I12: =VLOOKUP(N12,Franquicias!$A$2:$D$7,4) -> 1.50% | J12: 3.2 | K12: =Franquicias!$B$13 -> 21% | L12: 0.67 | M12: 3.87 | N12: =VLOOKUP(B12,Tiendas!$A$2:$F$26,6) -> 95 | O12: =VLOOKUP(N12,Franquicias!$A$1:$H$7,7) -> 4400000095 | P12: =VLOOKUP(VentasTPVFranquiciasEnFirme!N12,Franquicias!$A$2:$H$7,8) -> 7050000095 | Q12: =Franquicias!$C$13 -> 4770002100 | R12: ="Deudores Franq.Firme "&N12&" "&"Tienda "&Tabla2[[#This Row],[IdTienda]] -> Deudores Franq.Firme 95 Tienda 31 | S12: ="Ing. Royaltie"&" "&"Franq.Firme "&N12&" "&"Tienda "&Tabla2[[#This Row],[IdTienda]] -> Ing. Royaltie Franq.Firme 95 Tienda 31 | T12: ="IVA Rep. Franq.Firme "&N12&" "&"Tienda "&Tabla2[[#This Row],[IdTienda]] -> IVA Rep. Franq.Firme 95 Tienda 31 | U12: E | V12: R | W12: 11
A13: 4205800.00% | B13: 64 | C13: 112 | D13: 985 | E13: 1 | G13: =VLOOKUP(Tabla2[[#This Row],[IdFamilia]],Familias!$A$3:$D$8,3) -> 4.00% | H13: =ROUND(Tabla2[[#This Row],[Ventas (IVA inc.)]]/(1+G13),2) -> 947.12 | I13: =VLOOKUP(N13,Franquicias!$A$2:$D$7,4) -> 1.50% | J13: 14.21 | K13: =Franquicias!$B$13 -> 21% | L13: 2.98 | M13: 17.19 | N13: =VLOOKUP(B13,Tiendas!$A$2:$F$26,6) -> 93 | O13: =VLOOKUP(N13,Franquicias!$A$1:$H$7,7) -> 4400000093 | P13: =VLOOKUP(VentasTPVFranquiciasEnFirme!N13,Franquicias!$A$2:$H$7,8) -> 7050000093 | Q13: =Franquicias!$C$13 -> 4770002100 | R13: ="Deudores Franq.Firme "&N13&" "&"Tienda "&Tabla2[[#This Row],[IdTienda]] -> Deudores Franq.Firme 93 Tienda 64 | S13: ="Ing. Royaltie"&" "&"Franq.Firme "&N13&" "&"Tienda "&Tabla2[[#This Row],[IdTienda]] -> Ing. Royaltie Franq.Firme 93 Tienda 64 | T13: ="IVA Rep. Franq.Firme "&N13&" "&"Tienda "&Tabla2[[#This Row],[IdTienda]] -> IVA Rep. Franq.Firme 93 Tienda 64 | U13: E | V13: R | W13: 12

Sheet ConfigVentasTPVFranqFirme
A1: Hoja con los datos de entrada: | D1: VentasTPVFranquiciasEnFirme
A2: Datos de salida: | D2: AstosVentasTPVFranquiciasFirme
A3: Primer número de asiento: | D3: 1
A4: Procedimientos a ejecutar previamente: | E4: Macro3 | F4: Macro4
A9: Diario | B9: Fecha | C9: Asiento | D9: Orden | E9: Cuenta | F9: Importe Pts | G9: Concepto | H9: Documento | I9: Debe | J9: Haber | K9: Moneda | L9: Punteo | M9: TipoIVA | N9: Nº IVA | O9: Depto. | P9: Subdepto. | Q9: Imagen
A10: 1 | B10: A | C10: #1 | D10: 1 | E10: O | G10: R | I10: M | K10: U | M10: V | N10: W
A11: 1 | B11: A | C11: #1 | D11: 2 | E11: P | G11: S | J11: J | K11: U | M11: V | N11: W
A12: 1 | B12: A | C12: #1 | D12: 3 | E12: Q | G12: T | J12: L | K12: U | M12: V | N12: W

Sheet AstosVentasTPVFranquiciasFirme
A1: Diario | B1: Fecha | C1: Asiento | D1: Orden | E1: Cuenta | F1: Importe Pts | G1: Concepto | H1: Documento | I1: Debe | J1: Haber | K1: Moneda | L1: Punteo | M1: TipoIVA | N1: Nº IVA | O1: Depto. | P1: Subdepto. | Q1: Imagen
A2: 1 | B2: 4205800.00% | C2: 1 | D2: 1 | E2: 4400000092 | G2: Deudores Franq.Firme 92 Tienda 21 | I2: 9.78 | K2: E | M2: R | N2: 1
A3: 1 | B3: 4205800.00% | C3: 1 | D3: 2 | E3: 7050000092 | G3: Ing. Royaltie Franq.Firme 92 Tienda 21 | J3: 8.08 | K3: E | M3: R | N3: 1
A4: 1 | B4: 4205800.00% | C4: 1 | D4: 3 | E4: 4770002100 | G4: IVA Rep. Franq.Firme 92 Tienda 21 | J4: 1.7 | K4: E | M4: R | N4: 1
A5: 1 | B5: 4205800.00% | C5: 2 | D5: 1 | E5: 4400000092 | G5: Deudores Franq.Firme 92 Tienda 22 | I5: 21.4 | K5: E | M5: R | N5: 2
A6: 1 | B6: 4205800.00% | C6: 2 | D6: 2 | E6: 7050000092 | G6: Ing. Royaltie Franq.Firme 92 Tienda 22 | J6: 17.69 | K6: E | M6: R | N6: 2
A7: 1 | B7: 4205800.00% | C7: 2 | D7: 3 | E7: 4770002100 | G7: IVA Rep. Franq.Firme 92 Tienda 22 | J7: 3.71 | K7: E | M7: R | N7: 2
A8: 1 | B8: 4205800.00% | C8: 3 | D8: 1 | E8: 4400000095 | G8: Deudores Franq.Firme 95 Tienda 31 | I8: 2.18 | K8: E | M8: R | N8: 3
A9: 1 | B9: 4205800.00% | C9: 3 | D9: 2 | E9: 7050000095 | G9: Ing. Royaltie Franq.Firme 95 Tienda 31 | J9: 1.8 | K9: E | M9: R | N9: 3
A10: 1 | B10: 4205800.00% | C10: 3 | D10: 3 | E10: 4770002100 | G10: IVA Rep. Franq.Firme 95 Tienda 31 | J10: 0.38 | K10: E | M10: R | N10: 3
A11: 1 | B11: 4205800.00% | C11: 4 | D11: 1 | E11: 4400000096 | G11: Deudores Franq.Firme 96 Tienda 41 | I11: 4.43 | K11: E | M11: R | N11: 4
A12: 1 | B12: 4205800.00% | C12: 4 | D12: 2 | E12: 7050000096 | G12: Ing. Royaltie Franq.Firme 96 Tienda 41 | J12: 3.66 | K12: E | M12: R | N12: 4
A13: 1 | B13: 4205800.00% | C13: 4 | D13: 3 | E13: 4770002100 | G13: IVA Rep. Franq.Firme 96 Tienda 41 | J13: 0.77 | K13: E | M13: R | N13: 4
A14: 1 | B14: 4205800.00% | C14: 5 | D14: 1 | E14: 4400000095 | G14: Deudores Franq.Firme 95 Tienda 43 | I14: 6.7 | K14: E | M14: R | N14: 5
A15: 1 | B15: 4205800.00% | C15: 5 | D15: 2 | E15: 7050000095 | G15: Ing. Royaltie Franq.Firme 95 Tienda 43 | J15: 5.54 | K15: E | M15: R | N15: 5
A16: 1 | B16: 4205800.00% | C16: 5 | D16: 3 | E16: 4770002100 | G16: IVA Rep. Franq.Firme 95 Tienda 43 | J16: 1.16 | K16: E | M16: R | N16: 5
A17: 1 | B17: 4205800.00% | C17: 6 | D17: 1 | E17: 4400000093 | G17: Deudores Franq.Firme 93 Tienda 51 | I17: 3.98 | K17: E | M17: R | N17: 6
A18: 1 | B18: 4205800.00% | C18: 6 | D18: 2 | E18: 7050000093 | G18: Ing. Royaltie Franq.Firme 93 Tienda 51 | J18: 3.29 | K18: E | M18: R | N18: 6
A19: 1 | B19: 4205800.00% | C19: 6 | D19: 3 | E19: 4770002100 | G19: IVA Rep. Franq.Firme 93 Tienda 51 | J19: 0.69 | K19: E | M19: R | N19: 6
A20: 1 | B20: 4205800.00% | C20: 7 | D20: 1 | E20: 4400000095 | G20: Deudores Franq.Firme 95 Tienda 52 | I20: 0.61 | K20: E | M20: R | N20: 7
A21: 1 | B21: 4205800.00% | C21: 7 | D21: 2 | E21: 7050000095 | G21: Ing. Royaltie Franq.Firme 95 Tienda 52 | J21: 0.5 | K21: E | M21: R | N21: 7
A22: 1 | B22: 4205800.00% | C22: 7 | D22: 3 | E22: 4770002100 | G22: IVA Rep. Franq.Firme 95 Tienda 52 | J22: 0.11 | K22: E | M22: R | N22: 7
A23: 1 | B23: 4205800.00% | C23: 8 | D23: 1 | E23: 4400000092 | G23: Deudores Franq.Firme 92 Tienda 55 | I23: 2.48 | K23: E | M23: R | N23: 8
A24: 1 | B24: 4205800.00% | C24: 8 | D24: 2 | E24: 7050000092 | G24: Ing. Royaltie Franq.Firme 92 Tienda 55 | J24: 2.05 | K24: E | M24: R | N24: 8
A25: 1 | B25: 4205800.00% | C25: 8 | D25: 3 | E25: 4770002100 | G25: IVA Rep. Franq.Firme 92 Tienda 55 | J25: 0.43 | K25: E | M25: R | N25: 8
A26: 1 | B26: 4205800.00% | C26: 9 | D26: 1 | E26: 4400000093 | G26: Deudores Franq.Firme 93 Tienda 64 | I26: 0.22 | K26: E | M26: R | N26: 9
A27: 1 | B27: 4205800.00% | C27: 9 | D27: 2 | E27: 7050000093 | G27: Ing. Royaltie Franq.Firme 93 Tienda 64 | J27: 0.18 | K27: E | M27: R | N27: 9
A28: 1 | B28: 4205800.00% | C28: 9 | D28: 3 | E28: 4770002100 | G28: IVA Rep. Franq.Firme 93 Tienda 64 | J28: 0.04 | K28: E | M28: R | N28: 9
A29: 1 | B29: 4205800.00% | C29: 10 | D29: 1 | E29: 4400000096 | G29: Deudores Franq.Firme 96 Tienda 41 | I29: 0.68 | K29: E | M29: R | N29: 10
A30: 1 | B30: 4205800.00% | C30: 10 | D30: 2 | E30: 7050000096 | G30: Ing. Royaltie Franq.Firme 96 Tienda 41 | J30: 0.56 | K30: E | M30: R | N30: 10
A31: 1 | B31: 4205800.00% | C31: 10 | D31: 3 | E31: 4770002100 | G31: IVA Rep. Franq.Firme 96 Tienda 41 | J31: 0.12 | K31: E | M31: R | N31: 10
A32: 1 | B32: 4205800.00% | C32: 11 | D32: 1 | E32: 4400000095 | G32: Deudores Franq.Firme 95 Tienda 31 | I32: 3.87 | K32: E | M32: R | N32: 11
A33: 1 | B33: 4205800.00% | C33: 11 | D33: 2 | E33: 7050000095 | G33: Ing. Royaltie Franq.Firme 95 Tienda 31 | J33: 3.2 | K33: E | M33: R | N33: 11
A34: 1 | B34: 4205800.00% | C34: 11 | D34: 3 | E34: 4770002100 | G34: IVA Rep. Franq.Firme 95 Tienda 31 | J34: 0.67 | K34: E | M34: R | N34: 11
A35: 1 | B35: 4205800.00% | C35: 12 | D35: 1 | E35: 4400000093 | G35: Deudores Franq.Firme 93 Tienda 64 | I35: 17.19 | K35: E | M35: R | N35: 12
A36: 1 | B36: 4205800.00% | C36: 12 | D36: 2 | E36: 7050000093 | G36: Ing. Royaltie Franq.Firme 93 Tienda 64 | J36: 14.21 | K36: E | M36: R | N36: 12
A37: 1 | B37: 4205800.00% | C37: 12 | D37: 3 | E37: 4770002100 | G37: IVA Rep. Franq.Firme 93 Tienda 64 | J37: 2.98 | K37: E | M37: R | N37: 12

Sheet ConfigVentasFranqDepósito
A1: Hoja con los datos de entrada: | D1: VentasTPVFranquiciasEnDepósito
A2: Datos de salida: | D2: AstosVentasTPVFranqDepósito
A3: Primer número de asiento: | D3: 1
A4: Procedimientos a ejecutar previamente: | E4: Macro5 | F4: Macro6
A9: Diario | B9: Fecha | C9: Asiento | D9: Orden | E9: Cuenta | F9: Importe Pts | G9: Concepto | H9: Documento | I9: Debe | J9: Haber | K9: Moneda | L9: Punteo | M9: TipoIVA | N9: Nº IVA | O9: Depto. | P9: Subdepto. | Q9: Imagen
A10: 1 | B10: A | C10: #1 | D10: 1 | E10: R | G10: X | I10: H | K10: AD | M10: AE | N10: AF
A11: 1 | B11: A | C11: #1 | D11: 2 | E11: T | G11: Y | J11: J | K11: AD | M11: AE | N11: AF
A12: 1 | B12: A | C12: #1 | D12: 3 | E12: U | G12: Z | J12: K | K12: AD | M12: AE | N12: AF
A13: 1 | B13: A | C13: #2 | D13: 1 | E13: S | G13: AA | I13: O | K13: AD | M13: AE | N13: AF
A14: 1 | B14: A | C14: #2 | D14: 2 | E14: V | G14: AB | J14: M | K14: AD | M14: AE | N14: AF
A15: 1 | B15: A | C15: #2 | D15: 3 | E15: W | G15: AC | J15: P | K15: AD | M15: AE | N15: AF

Sheet VentasTPVFranquiciasEnDepósito
A1: Fecha | B1: IdTienda | C1: IdFamilia | D1: Venta (IVA Inc.) | E1: F.Pago | F1: Id Tarjeta | G1: Venta (Sin IVA) | H1: % Venta (Con IVA) | I1: IVA Venta | J1: % Venta (Sin IVA) | K1: IVA Venta del % | L1: % Royaltie | M1: Imp. Royaltie (Sin IVA) | N1: % IVA Royaltie | O1: Imp Royaltie (Con IVA) | P1: Imp. IVA Royaltie | Q1: Id franquiciado | R1: Cta. Cliente | S1: Cta. Deudores | T1: Cta. Ventas | U1: Cta. IVA Venta | V1: Cta. Royaltie | W1: Cta. IVA Royaltie | X1: Concepto clientes | Y1: Concepto Ventas | Z1: Conp. IVA Venta | AA1: Concepto Deudores Royaltie | AB1: Concepto Royaltie | AC1: Conp. IVA Royaltie | AD1: Moneda | AE1: Tipo IVA | AF1: nº IVA
A2: 4205800.00% | B2: 12 | C2: 122 | D2: 632.22 | E2: 1 | G2: =ROUND(Tabla3[[#This Row],[Venta (IVA Inc.)]]/(1+I2),2) -> 522.5 | H2: =ROUND(D2*VLOOKUP(Q2,Franquicias!$A$2:$E$7,5),2) -> 505.78 | I2: =VLOOKUP(C2,Familias!$A$3:$C$8,3) -> 21.00% | J2: =ROUND(H2/(1+I2),2) -> 418 | K2: =ROUND(H2-J2,2) -> 87.78 | L2: =VLOOKUP(Q2,Franquicias!$A$2:$H$7,4) -> 2.00% | M2: =ROUND(G2*L2,2) -> 10.45 | N2: =Franquicias!$B$13 -> 21% | O2: =ROUND(M2*(1+N2),2) -> 12.64 | P2: =ROUND(O2-M2,2) -> 2.19 | Q2: =VLOOKUP(B2,Tiendas!$A$2:$F$26,6) -> 91 | R2: =VLOOKUP(Q2,Franquicias!$A$2:$H$7,6) -> 4300000091 | S2: =VLOOKUP(Q2,Franquicias!$A$2:$H$7,7) -> 4400000091 | T2: ="70000"&C2&B2 -> 7000012212 | U2: =VLOOKUP(C2,Familias!$A$3:$D$8,4) -> 4770002100 | V2: =VLOOKUP(Q2,Franquicias!$A$2:$H$7,8) -> 7050000091 | W2: =Franquicias!$C$13 -> 4770002100 | X2: ="Clientes Franq. D "&Q2&" "&"Tienda "&Tabla3[[#This Row],[IdTienda]] -> Clientes Franq. D 91 Tienda 12 | Y2: ="Vtas. Franq. D "&Q2&" "&"Tienda "&Tabla3[[#This Row],[IdTienda]]&" Producto "&Tabla3[[#This Row],[IdFamilia]] -> Vtas. Franq. D 91 Tienda 12 Producto 122 | Z2: ="IVA Rep. Venta Franq. D "&Q2&" "&"Tienda "&Tabla3[[#This Row],[IdTienda]] -> IVA Rep. Venta Franq. D 91 Tienda 12 | AA2: ="Deudores Franq.D "&Q2&" Tienda "&Tabla3[[#This Row],[IdTienda]] -> Deudores Franq.D 91 Tienda 12 | AB2: ="Ing. Royaltie Franq. D "&Q2&" "&"Tienda "&Tabla3[[#This Row],[IdTienda]] -> Ing. Royaltie Franq. D 91 Tienda 12 | AC2: ="IVA Rep. Venta Franq. D "&Q2&" "&"Tienda "&Tabla3[[#This Row],[IdTienda]] -> IVA Rep. Venta Franq. D 91 Tienda 12 | AD2: E | AE2: R | AF2: 1
A3: 4205800.00% | B3: 14 | C3: 123 | D3: 145.26 | E3: 1 | G3: =ROUND(Tabla3[[#This Row],[Venta (IVA Inc.)]]/(1+I3),2) -> 120.05 | H3: =ROUND(D3*VLOOKUP(Q3,Franquicias!$A$2:$E$7,5),2) -> 116.21 | I3: =VLOOKUP(C3,Familias!$A$3:$C$8,3) -> 21.00% | J3: =ROUND(H3/(1+I3),2) -> 96.04 | K3: =ROUND(H3-J3,2) -> 20.17 | L3: =VLOOKUP(Q3,Franquicias!$A$2:$H$7,4) -> 2.00% | M3: =ROUND(G3*L3,2) -> 2.4 | N3: =Franquicias!$B$13 -> 21% | O3: =ROUND(M3*(1+N3),2) -> 2.9 | P3: =ROUND(O3-M3,2) -> 0.5 | Q3: =VLOOKUP(B3,Tiendas!$A$2:$F$26,6) -> 91 | R3: =VLOOKUP(Q3,Franquicias!$A$2:$H$7,6) -> 4300000091 | S3: =VLOOKUP(Q3,Franquicias!$A$2:$H$7,7) -> 4400000091 | T3: ="70000"&C3&B3 -> 7000012314 | U3: =VLOOKUP(C3,Familias!$A$3:$D$8,4) -> 4770002100 | V3: =VLOOKUP(Q3,Franquicias!$A$2:$H$7,8) -> 7050000091 | W3: =Franquicias!$C$13 -> 4770002100 | X3: ="Clientes Franq. D "&Q3&" "&"Tienda "&Tabla3[[#This Row],[IdTienda]] -> Clientes Franq. D 91 Tienda 14 | Y3: ="Vtas. Franq. D "&Q3&" "&"Tienda "&Tabla3[[#This Row],[IdTienda]]&" Producto "&Tabla3[[#This Row],[IdFamilia]] -> Vtas. Franq. D 91 Tienda 14 Producto 123 | Z3: ="IVA Rep. Venta Franq. D "&Q3&" "&"Tienda "&Tabla3[[#This Row],[IdTienda]] -> IVA Rep. Venta Franq. D 91 Tienda 14 | AA3: ="Deudores Franq.D "&Q3&" Tienda "&Tabla3[[#This Row],[IdTienda]] -> Deudores Franq.D 91 Tienda 14 | AB3: ="Ing. Royaltie Franq. D "&Q3&" "&"Tienda "&Tabla3[[#This Row],[IdTienda]] -> Ing. Royaltie Franq. D 91 Tienda 14 | AC3: ="IVA Rep. Venta Franq. D "&Q3&" "&"Tienda "&Tabla3[[#This Row],[IdTienda]] -> IVA Rep. Venta Franq. D 91 Tienda 14 | AD3: E | AE3: R | AF3: =AF2+1 -> 2
A4: 4205800.00% | B4: 12 | C4: 111 | D4: 333.22 | E4: 1 | G4: =ROUND(Tabla3[[#This Row],[Venta (IVA Inc.)]]/(1+I4),2) -> 302.93 | H4: =ROUND(D4*VLOOKUP(Q4,Franquicias!$A$2:$E$7,5),2) -> 266.58 | I4: =VLOOKUP(C4,Familias!$A$3:$C$8,3) -> 10.00% | J4: =ROUND(H4/(1+I4),2) -> 242.35 | K4: =ROUND(H4-J4,2) -> 24.23 | L4: =VLOOKUP(Q4,Franquicias!$A$2:$H$7,4) -> 2.00% | M4: =ROUND(G4*L4,2) -> 6.06 | N4: =Franquicias!$B$13 -> 21% | O4: =ROUND(M4*(1+N4),2) -> 7.33 | P4: =ROUND(O4-M4,2) -> 1.27 | Q4: =VLOOKUP(B4,Tiendas!$A$2:$F$26,6) -> 91 | R4: =VLOOKUP(Q4,Franquicias!$A$2:$H$7,6) -> 4300000091 | S4: =VLOOKUP(Q4,Franquicias!$A$2:$H$7,7) -> 4400000091 | T4: ="70000"&C4&B4 -> 7000011112 | U4: =VLOOKUP(C4,Familias!$A$3:$D$8,4) -> 4770001000 | V4: =VLOOKUP(Q4,Franquicias!$A$2:$H$7,8) -> 7050000091 | W4: =Franquicias!$C$13 -> 4770002100 | X4: ="Clientes Franq. D "&Q4&" "&"Tienda "&Tabla3[[#This Row],[IdTienda]] -> Clientes Franq. D 91 Tienda 12 | Y4: ="Vtas. Franq. D "&Q4&" "&"Tienda "&Tabla3[[#This Row],[IdTienda]]&" Producto "&Tabla3[[#This Row],[IdFamilia]] -> Vtas. Franq. D 91 Tienda 12 Producto 111 | Z4: ="IVA Rep. Venta Franq. D "&Q4&" "&"Tienda "&Tabla3[[#This Row],[IdTienda]] -> IVA Rep. Venta Franq. D 91 Tienda 12 | AA4: ="Deudores Franq.D "&Q4&" Tienda "&Tabla3[[#This Row],[IdTienda]] -> Deudores Franq.D 91 Tienda 12 | AB4: ="Ing. Royaltie Franq. D "&Q4&" "&"Tienda "&Tabla3[[#This Row],[IdTienda]] -> Ing. Royaltie Franq. D 91 Tienda 12 | AC4: ="IVA Rep. Venta Franq. D "&Q4&" "&"Tienda "&Tabla3[[#This Row],[IdTienda]] -> IVA Rep. Venta Franq. D 91 Tienda 12 | AD4: E | AE4: R | AF4: =AF3+1 -> 3
A5: 4205800.00% | B5: 13 | C5: 112 | D5: 444.11 | E5: 1 | G5: =ROUND(Tabla3[[#This Row],[Venta (IVA Inc.)]]/(1+I5),2) -> 427.03 | H5: =ROUND(D5*VLOOKUP(Q5,Franquicias!$A$2:$E$7,5),2) -> 355.29 | I5: =VLOOKUP(C5,Familias!$A$3:$C$8,3) -> 4.00% | J5: 341.63 | K5: 13.66 | L5: =VLOOKUP(Q5,Franquicias!$A$2:$H$7,4) -> 2.00% | M5: 8.54 | N5: =Franquicias!$B$13 -> 21% | O5: 10.33 | P5: 1.79 | Q5: =VLOOKUP(B5,Tiendas!$A$2:$F$26,6) -> 94 | R5: =VLOOKUP(Q5,Franquicias!$A$2:$H$7,6) -> 4300000094 | S5: =VLOOKUP(Q5,Franquicias!$A$2:$H$7,7) -> 4400000094 | T5: 7000011213 | U5: =VLOOKUP(C5,Familias!$A$3:$D$8,4) -> 4770000400 | V5: =VLOOKUP(Q5,Franquicias!$A$2:$H$7,8) -> 7050000094 | W5: =Franquicias!$C$13 -> 4770002100 | X5: ="Clientes Franq. D "&Q5&" "&"Tienda "&Tabla3[[#This Row],[IdTienda]] -> Clientes Franq. D 94 Tienda 13 | Y5: ="Vtas. Franq. D "&Q5&" "&"Tienda "&Tabla3[[#This Row],[IdTienda]]&" Producto "&Tabla3[[#This Row],[IdFamilia]] -> Vtas. Franq. D 94 Tienda 13 Producto 112 | Z5: ="IVA Rep. Venta Franq. D "&Q5&" "&"Tienda "&Tabla3[[#This Row],[IdTienda]] -> IVA Rep. Venta Franq. D 94 Tienda 13 | AA5: ="Deudores Franq.D "&Q5&" Tienda "&Tabla3[[#This Row],[IdTienda]] -> Deudores Franq.D 94 Tienda 13 | AB5: ="Ing. Royaltie Franq. D "&Q5&" "&"Tienda "&Tabla3[[#This Row],[IdTienda]] -> Ing. Royaltie Franq. D 94 Tienda 13 | AC5: ="IVA Rep. Venta Franq. D "&Q5&" "&"Tienda "&Tabla3[[#This Row],[IdTienda]] -> IVA Rep. Venta Franq. D 94 Tienda 13 | AD5: E | AE5: R | AF5: 4
A6: 4205800.00% | B6: 12 | C6: 111 | D6: 256.87 | E6: 1 | G6: =ROUND(Tabla3[[#This Row],[Venta (IVA Inc.)]]/(1+I6),2) -> 233.52 | H6: =ROUND(D6*VLOOKUP(Q6,Franquicias!$A$2:$E$7,5),2) -> 205.5 | I6: =VLOOKUP(C6,Familias!$A$3:$C$8,3) -> 10.00% | J6: 186.82 | K6: 18.68 | L6: =VLOOKUP(Q6,Franquicias!$A$2:$H$7,4) -> 2.00% | M6: 4.67 | N6: =Franquicias!$B$13 -> 21% | O6: 5.65 | P6: 0.98 | Q6: =VLOOKUP(B6,Tiendas!$A$2:$F$26,6) -> 91 | R6: =VLOOKUP(Q6,Franquicias!$A$2:$H$7,6) -> 4300000091 | S6: =VLOOKUP(Q6,Franquicias!$A$2:$H$7,7) -> 4400000091 | T6: 7000011112 | U6: =VLOOKUP(C6,Familias!$A$3:$D$8,4) -> 4770001000 | V6: =VLOOKUP(Q6,Franquicias!$A$2:$H$7,8) -> 7050000091 | W6: =Franquicias!$C$13 -> 4770002100 | X6: ="Clientes Franq. D "&Q6&" "&"Tienda "&Tabla3[[#This Row],[IdTienda]] -> Clientes Franq. D 91 Tienda 12 | Y6: ="Vtas. Franq. D "&Q6&" "&"Tienda "&Tabla3[[#This Row],[IdTienda]]&" Producto "&Tabla3[[#This Row],[IdFamilia]] -> Vtas. Franq. D 91 Tienda 12 Producto 111 | Z6: ="IVA Rep. Venta Franq. D "&Q6&" "&"Tienda "&Tabla3[[#This Row],[IdTienda]] -> IVA Rep. Venta Franq. D 91 Tienda 12 | AA6: ="Deudores Franq.D "&Q6&" Tienda "&Tabla3[[#This Row],[IdTienda]] -> Deudores Franq.D 91 Tienda 12 | AB6: ="Ing. Royaltie Franq. D "&Q6&" "&"Tienda "&Tabla3[[#This Row],[IdTienda]] -> Ing. Royaltie Franq. D 91 Tienda 12 | AC6: ="IVA Rep. Venta Franq. D "&Q6&" "&"Tienda "&Tabla3[[#This Row],[IdTienda]] -> IVA Rep. Venta Franq. D 91 Tienda 12 | AD6: E | AE6: R | AF6: 5
A7: 4205800.00% | B7: 14 | C7: 121 | D7: 221.52 | E7: 2 | F7: 2 | G7: =ROUND(Tabla3[[#This Row],[Venta (IVA Inc.)]]/(1+I7),2) -> 183.07 | H7: =ROUND(D7*VLOOKUP(Q7,Franquicias!$A$2:$E$7,5),2) -> 177.22 | I7: =VLOOKUP(C7,Familias!$A$3:$C$8,3) -> 21.00% | J7: 146.46 | K7: 30.76 | L7: =VLOOKUP(Q7,Franquicias!$A$2:$H$7,4) -> 2.00% | M7: 3.66 | N7: =Franquicias!$B$13 -> 21% | O7: 4.43 | P7: 0.77 | Q7: =VLOOKUP(B7,Tiendas!$A$2:$F$26,6) -> 91 | R7: =VLOOKUP(Q7,Franquicias!$A$2:$H$7,6) -> 4300000091 | S7: =VLOOKUP(Q7,Franquicias!$A$2:$H$7,7) -> 4400000091 | T7: 7000012114 | U7: =VLOOKUP(C7,Familias!$A$3:$D$8,4) -> 4770002100 | V7: =VLOOKUP(Q7,Franquicias!$A$2:$H$7,8) -> 7050000091 | W7: =Franquicias!$C$13 -> 4770002100 | X7: ="Clientes Franq. D "&Q7&" "&"Tienda "&Tabla3[[#This Row],[IdTienda]] -> Clientes Franq. D 91 Tienda 14 | Y7: ="Vtas. Franq. D "&Q7&" "&"Tienda "&Tabla3[[#This Row],[IdTienda]]&" Producto "&Tabla3[[#This Row],[IdFamilia]] -> Vtas. Franq. D 91 Tienda 14 Producto 121 | Z7: ="IVA Rep. Venta Franq. D "&Q7&" "&"Tienda "&Tabla3[[#This Row],[IdTienda]] -> IVA Rep. Venta Franq. D 91 Tienda 14 | AA7: ="Deudores Franq.D "&Q7&" Tienda "&Tabla3[[#This Row],[IdTienda]] -> Deudores Franq.D 91 Tienda 14 | AB7: ="Ing. Royaltie Franq. D "&Q7&" "&"Tienda "&Tabla3[[#This Row],[IdTienda]] -> Ing. Royaltie Franq. D 91 Tienda 14 | AC7: ="IVA Rep. Venta Franq. D "&Q7&" "&"Tienda "&Tabla3[[#This Row],[IdTienda]] -> IVA Rep. Venta Franq. D 91 Tienda 14 | AD7: E | AE7: R | AF7: 6
A8: 4205800.00% | B8: 13 | C8: 112 | D8: 365.11 | E8: 1 | G8: =ROUND(Tabla3[[#This Row],[Venta (IVA Inc.)]]/(1+I8),2) -> 351.07 | H8: =ROUND(D8*VLOOKUP(Q8,Franquicias!$A$2:$E$7,5),2) -> 292.09 | I8: =VLOOKUP(C8,Familias!$A$3:$C$8,3) -> 4.00% | J8: 280.86 | K8: 11.23 | L8: =VLOOKUP(Q8,Franquicias!$A$2:$H$7,4) -> 2.00% | M8: 7.02 | N8: =Franquicias!$B$13 -> 21% | O8: 8.49 | P8: 1.47 | Q8: =VLOOKUP(B8,Tiendas!$A$2:$F$26,6) -> 94 | R8: =VLOOKUP(Q8,Franquicias!$A$2:$H$7,6) -> 4300000094 | S8: =VLOOKUP(Q8,Franquicias!$A$2:$H$7,7) -> 4400000094 | T8: 7000011213 | U8: =VLOOKUP(C8,Familias!$A$3:$D$8,4) -> 4770000400 | V8: =VLOOKUP(Q8,Franquicias!$A$2:$H$7,8) -> 7050000094 | W8: =Franquicias!$C$13 -> 4770002100 | X8: ="Clientes Franq. D "&Q8&" "&"Tienda "&Tabla3[[#This Row],[IdTienda]] -> Clientes Franq. D 94 Tienda 13 | Y8: ="Vtas. Franq. D "&Q8&" "&"Tienda "&Tabla3[[#This Row],[IdTienda]]&" Producto "&Tabla3[[#This Row],[IdFamilia]] -> Vtas. Franq. D 94 Tienda 13 Producto 112 | Z8: ="IVA Rep. Venta Franq. D "&Q8&" "&"Tienda "&Tabla3[[#This Row],[IdTienda]] -> IVA Rep. Venta Franq. D 94 Tienda 13 | AA8: ="Deudores Franq.D "&Q8&" Tienda "&Tabla3[[#This Row],[IdTienda]] -> Deudores Franq.D 94 Tienda 13 | AB8: ="Ing. Royaltie Franq. D "&Q8&" "&"Tienda "&Tabla3[[#This Row],[IdTienda]] -> Ing. Royaltie Franq. D 94 Tienda 13 | AC8: ="IVA Rep. Venta Franq. D "&Q8&" "&"Tienda "&Tabla3[[#This Row],[IdTienda]] -> IVA Rep. Venta Franq. D 94 Tienda 13 | AD8: E | AE8: R | AF8: 7
A9: 4205800.00% | B9: 13 | C9: 122 | D9: 445.11 | E9: 1 | G9: =ROUND(Tabla3[[#This Row],[Venta (IVA Inc.)]]/(1+I9),2) -> 367.86 | H9: =ROUND(D9*VLOOKUP(Q9,Franquicias!$A$2:$E$7,5),2) -> 356.09 | I9: =VLOOKUP(C9,Familias!$A$3:$C$8,3) -> 21.00% | J9: 294.29 | K9: 61.8 | L9: =VLOOKUP(Q9,Franquicias!$A$2:$H$7,4) -> 2.00% | M9: 7.36 | N9: =Franquicias!$B$13 -> 21% | O9: 8.91 | P9: 1.55 | Q9: =VLOOKUP(B9,Tiendas!$A$2:$F$26,6) -> 94 | R9: =VLOOKUP(Q9,Franquicias!$A$2:$H$7,6) -> 4300000094 | S9: =VLOOKUP(Q9,Franquicias!$A$2:$H$7,7) -> 4400000094 | T9: 7000012213 | U9: =VLOOKUP(C9,Familias!$A$3:$D$8,4) -> 4770002100 | V9: =VLOOKUP(Q9,Franquicias!$A$2:$H$7,8) -> 7050000094 | W9: =Franquicias!$C$13 -> 4770002100 | X9: ="Clientes Franq. D "&Q9&" "&"Tienda "&Tabla3[[#This Row],[IdTienda]] -> Clientes Franq. D 94 Tienda 13 | Y9: ="Vtas. Franq. D "&Q9&" "&"Tienda "&Tabla3[[#This Row],[IdTienda]]&" Producto "&Tabla3[[#This Row],[IdFamilia]] -> Vtas. Franq. D 94 Tienda 13 Producto 122 | Z9: ="IVA Rep. Venta Franq. D "&Q9&" "&"Tienda "&Tabla3[[#This Row],[IdTienda]] -> IVA Rep. Venta Franq. D 94 Tienda 13 | AA9: ="Deudores Franq.D "&Q9&" Tienda "&Tabla3[[#This Row],[IdTienda]] -> Deudores Franq.D 94 Tienda 13 | AB9: ="Ing. Royaltie Franq. D "&Q9&" "&"Tienda "&Tabla3[[#This Row],[IdTienda]] -> Ing. Royaltie Franq. D 94 Tienda 13 | AC9: ="IVA Rep. Venta Franq. D "&Q9&" "&"Tienda "&Tabla3[[#This Row],[IdTienda]] -> IVA Rep. Venta Franq. D 94 Tienda 13 | AD9: E | AE9: R | AF9: 8
A10: 4205800.00% | B10: 12 | C10: 123 | D10: 203.6 | E10: 1 | G10: =ROUND(Tabla3[[#This Row],[Venta (IVA Inc.)]]/(1+I10),2) -> 168.26 | H10: =ROUND(D10*VLOOKUP(Q10,Franquicias!$A$2:$E$7,5),2) -> 162.88 | I10: =VLOOKUP(C10,Familias!$A$3:$C$8,3) -> 21.00% | J10: 134.61 | K10: 28.27 | L10: =VLOOKUP(Q10,Franquicias!$A$2:$H$7,4) -> 2.00% | M10: 3.37 | N10: =Franquicias!$B$13 -> 21% | O10: 4.08 | P10: 0.71 | Q10: =VLOOKUP(B10,Tiendas!$A$2:$F$26,6) -> 91 | R10: =VLOOKUP(Q10,Franquicias!$A$2:$H$7,6) -> 4300000091 | S10: =VLOOKUP(Q10,Franquicias!$A$2:$H$7,7) -> 4400000091 | T10: 7000012312 | U10: =VLOOKUP(C10,Familias!$A$3:$D$8,4) -> 4770002100 | V10: =VLOOKUP(Q10,Franquicias!$A$2:$H$7,8) -> 7050000091 | W10: =Franquicias!$C$13 -> 4770002100 | X10: ="Clientes Franq. D "&Q10&" "&"Tienda "&Tabla3[[#This Row],[IdTienda]] -> Clientes Franq. D 91 Tienda 12 | Y10: ="Vtas. Franq. D "&Q10&" "&"Tienda "&Tabla3[[#This Row],[IdTienda]]&" Producto "&Tabla3[[#This Row],[IdFamilia]] -> Vtas. Franq. D 91 Tienda 12 Producto 123 | Z10: ="IVA Rep. Venta Franq. D "&Q10&" "&"Tienda "&Tabla3[[#This Row],[IdTienda]] -> IVA Rep. Venta Franq. D 91 Tienda 12 | AA10: ="Deudores Franq.D "&Q10&" Tienda "&Tabla3[[#This Row],[IdTienda]] -> Deudores Franq.D 91 Tienda 12 | AB10: ="Ing. Royaltie Franq. D "&Q10&" "&"Tienda "&Tabla3[[#This Row],[IdTienda]] -> Ing. Royaltie Franq. D 91 Tienda 12 | AC10: ="IVA Rep. Venta Franq. D "&Q10&" "&"Tienda "&Tabla3[[#This Row],[IdTienda]] -> IVA Rep. Venta Franq. D 91 Tienda 12 | AD10: E | AE10: R | AF10: 9
A11: 4205800.00% | B11: 12 | C11: 111 | D11: 93.05 | E11: 2 | F11: 2 | G11: =ROUND(Tabla3[[#This Row],[Venta (IVA Inc.)]]/(1+I11),2) -> 84.59 | H11: =ROUND(D11*VLOOKUP(Q11,Franquicias!$A$2:$E$7,5),2) -> 74.44 | I11: =VLOOKUP(C11,Familias!$A$3:$C$8,3) -> 10.00% | J11: 67.67 | K11: 6.77 | L11: =VLOOKUP(Q11,Franquicias!$A$2:$H$7,4) -> 2.00% | M11: 1.69 | N11: =Franquicias!$B$13 -> 21% | O11: 2.04 | P11: 0.35 | Q11: =VLOOKUP(B11,Tiendas!$A$2:$F$26,6) -> 91 | R11: =VLOOKUP(Q11,Franquicias!$A$2:$H$7,6) -> 4300000091 | S11: =VLOOKUP(Q11,Franquicias!$A$2:$H$7,7) -> 4400000091 | T11: 7000011112 | U11: =VLOOKUP(C11,Familias!$A$3:$D$8,4) -> 4770001000 | V11: =VLOOKUP(Q11,Franquicias!$A$2:$H$7,8) -> 7050000091 | W11: =Franquicias!$C$13 -> 4770002100 | X11: ="Clientes Franq. D "&Q11&" "&"Tienda "&Tabla3[[#This Row],[IdTienda]] -> Clientes Franq. D 91 Tienda 12 | Y11: ="Vtas. Franq. D "&Q11&" "&"Tienda "&Tabla3[[#This Row],[IdTienda]]&" Producto "&Tabla3[[#This Row],[IdFamilia]] -> Vtas. Franq. D 91 Tienda 12 Producto 111 | Z11: ="IVA Rep. Venta Franq. D "&Q11&" "&"Tienda "&Tabla3[[#This Row],[IdTienda]] -> IVA Rep. Venta Franq. D 91 Tienda 12 | AA11: ="Deudores Franq.D "&Q11&" Tienda "&Tabla3[[#This Row],[IdTienda]] -> Deudores Franq.D 91 Tienda 12 | AB11: ="Ing. Royaltie Franq. D "&Q11&" "&"Tienda "&Tabla3[[#This Row],[IdTienda]] -> Ing. Royaltie Franq. D 91 Tienda 12 | AC11: ="IVA Rep. Venta Franq. D "&Q11&" "&"Tienda "&Tabla3[[#This Row],[IdTienda]] -> IVA Rep. Venta Franq. D 91 Tienda 12 | AD11: E | AE11: R | AF11: 10
A12: 4205800.00% | B12: 14 | C12: 113 | D12: 227.27 | E12: 2 | F12: 1 | G12: =ROUND(Tabla3[[#This Row],[Venta (IVA Inc.)]]/(1+I12),2) -> 187.83 | H12: =ROUND(D12*VLOOKUP(Q12,Franquicias!$A$2:$E$7,5),2) -> 181.82 | I12: =VLOOKUP(C12,Familias!$A$3:$C$8,3) -> 21.00% | J12: 150.26 | K12: 31.56 | L12: =VLOOKUP(Q12,Franquicias!$A$2:$H$7,4) -> 2.00% | M12: 3.76 | N12: =Franquicias!$B$13 -> 21% | O12: 4.55 | P12: 0.79 | Q12: =VLOOKUP(B12,Tiendas!$A$2:$F$26,6) -> 91 | R12: =VLOOKUP(Q12,Franquicias!$A$2:$H$7,6) -> 4300000091 | S12: =VLOOKUP(Q12,Franquicias!$A$2:$H$7,7) -> 4400000091 | T12: 7000011314 | U12: =VLOOKUP(C12,Familias!$A$3:$D$8,4) -> 4770002100 | V12: =VLOOKUP(Q12,Franquicias!$A$2:$H$7,8) -> 7050000091 | W12: =Franquicias!$C$13 -> 4770002100 | X12: ="Clientes Franq. D "&Q12&" "&"Tienda "&Tabla3[[#This Row],[IdTienda]] -> Clientes Franq. D 91 Tienda 14 | Y12: ="Vtas. Franq. D "&Q12&" "&"Tienda "&Tabla3[[#This Row],[IdTienda]]&" Producto "&Tabla3[[#This Row],[IdFamilia]] -> Vtas. Franq. D 91 Tienda 14 Producto 113 | Z12: ="IVA Rep. Venta Franq. D "&Q12&" "&"Tienda "&Tabla3[[#This Row],[IdTienda]] -> IVA Rep. Venta Franq. D 91 Tienda 14 | AA12: ="Deudores Franq.D "&Q12&" Tienda "&Tabla3[[#This Row],[IdTienda]] -> Deudores Franq.D 91 Tienda 14 | AB12: ="Ing. Royaltie Franq. D "&Q12&" "&"Tienda "&Tabla3[[#This Row],[IdTienda]] -> Ing. Royaltie Franq. D 91 Tienda 14 | AC12: ="IVA Rep. Venta Franq. D "&Q12&" "&"Tienda "&Tabla3[[#This Row],[IdTienda]] -> IVA Rep. Venta Franq. D 91 Tienda 14 | AD12: E | AE12: R | AF12: 11
A13: 4205800.00% | B13: 13 | C13: 113 | D13: 369.25 | E13: 1 | G13: =ROUND(Tabla3[[#This Row],[Venta (IVA Inc.)]]/(1+I13),2) -> 305.17 | H13: =ROUND(D13*VLOOKUP(Q13,Franquicias!$A$2:$E$7,5),2) -> 295.4 | I13: =VLOOKUP(C13,Familias!$A$3:$C$8,3) -> 21.00% | J13: 244.13 | K13: 51.27 | L13: =VLOOKUP(Q13,Franquicias!$A$2:$H$7,4) -> 2.00% | M13: 6.1 | N13: =Franquicias!$B$13 -> 21% | O13: 7.38 | P13: 1.28 | Q13: =VLOOKUP(B13,Tiendas!$A$2:$F$26,6) -> 94 | R13: =VLOOKUP(Q13,Franquicias!$A$2:$H$7,6) -> 4300000094 | S13: =VLOOKUP(Q13,Franquicias!$A$2:$H$7,7) -> 4400000094 | T13: 7000011313 | U13: =VLOOKUP(C13,Familias!$A$3:$D$8,4) -> 4770002100 | V13: =VLOOKUP(Q13,Franquicias!$A$2:$H$7,8) -> 7050000094 | W13: =Franquicias!$C$13 -> 4770002100 | X13: ="Clientes Franq. D "&Q13&" "&"Tienda "&Tabla3[[#This Row],[IdTienda]] -> Clientes Franq. D 94 Tienda 13 | Y13: ="Vtas. Franq. D "&Q13&" "&"Tienda "&Tabla3[[#This Row],[IdTienda]]&" Producto "&Tabla3[[#This Row],[IdFamilia]] -> Vtas. Franq. D 94 Tienda 13 Producto 113 | Z13: ="IVA Rep. Venta Franq. D "&Q13&" "&"Tienda "&Tabla3[[#This Row],[IdTienda]] -> IVA Rep. Venta Franq. D 94 Tienda 13 | AA13: ="Deudores Franq.D "&Q13&" Tienda "&Tabla3[[#This Row],[IdTienda]] -> Deudores Franq.D 94 Tienda 13 | AB13: ="Ing. Royaltie Franq. D "&Q13&" "&"Tienda "&Tabla3[[#This Row],[IdTienda]] -> Ing. Royaltie Franq. D 94 Tienda 13 | AC13: ="IVA Rep. Venta Franq. D "&Q13&" "&"Tienda "&Tabla3[[#This Row],[IdTienda]] -> IVA Rep. Venta Franq. D 94 Tienda 13 | AD13: E | AE13: R | AF13: 12

Sheet AstosVentasTPVFranqDepósito
A1: Diario | B1: Fecha | C1: Asiento | D1: Orden | E1: Cuenta | F1: Importe Pts | G1: Concepto | H1: Documento | I1: Debe | J1: Haber | K1: Moneda | L1: Punteo | M1: TipoIVA | N1: Nº IVA | O1: Depto. | P1: Subdepto. | Q1: Imagen
A2: 1 | B2: 4205800.00% | C2: 1 | D2: 1 | E2: 4300000091 | G2: Clientes Franq. D 91 Tienda 12 | I2: 505.78 | K2: E | M2: R | N2: 1
A3: 1 | B3: 4205800.00% | C3: 1 | D3: 2 | E3: 7000012212 | G3: Vtas. Franq. D 91 Tienda 12 Producto 122 | J3: 418 | K3: E | M3: R | N3: 1
A4: 1 | B4: 4205800.00% | C4: 1 | D4: 3 | E4: 4770002100 | G4: IVA Rep. Venta Franq. D 91 Tienda 12 | J4: 87.78 | K4: E | M4: R | N4: 1
A5: 1 | B5: 4205800.00% | C5: 2 | D5: 1 | E5: 4400000091 | G5: Deudores Franq.D 91 Tienda 12 | I5: 12.64 | K5: E | M5: R | N5: 1
A6: 1 | B6: 4205800.00% | C6: 2 | D6: 2 | E6: 7050000091 | G6: Ing. Royaltie Franq. D 91 Tienda 12 | J6: 10.45 | K6: E | M6: R | N6: 1
A7: 1 | B7: 4205800.00% | C7: 2 | D7: 3 | E7: 4770002100 | G7: IVA Rep. Venta Franq. D 91 Tienda 12 | J7: 2.19 | K7: E | M7: R | N7: 1
A8: 1 | B8: 4205800.00% | C8: 3 | D8: 1 | E8: 4300000091 | G8: Clientes Franq. D 91 Tienda 14 | I8: 116.21 | K8: E | M8: R | N8: 2
A9: 1 | B9: 4205800.00% | C9: 3 | D9: 2 | E9: 7000012314 | G9: Vtas. Franq. D 91 Tienda 14 Producto 123 | J9: 96.04 | K9: E | M9: R | N9: 2
A10: 1 | B10: 4205800.00% | C10: 3 | D10: 3 | E10: 4770002100 | G10: IVA Rep. Venta Franq. D 91 Tienda 14 | J10: 20.17 | K10: E | M10: R | N10: 2
A11: 1 | B11: 4205800.00% | C11: 4 | D11: 1 | E11: 4400000091 | G11: Deudores Franq.D 91 Tienda 14 | I11: 2.9 | K11: E | M11: R | N11: 2
A12: 1 | B12: 4205800.00% | C12: 4 | D12: 2 | E12: 7050000091 | G12: Ing. Royaltie Franq. D 91 Tienda 14 | J12: 2.4 | K12: E | M12: R | N12: 2
A13: 1 | B13: 4205800.00% | C13: 4 | D13: 3 | E13: 4770002100 | G13: IVA Rep. Venta Franq. D 91 Tienda 14 | J13: 0.5 | K13: E | M13: R | N13: 2
A14: 1 | B14: 4205800.00% | C14: 5 | D14: 1 | E14: 4300000091 | G14: Clientes Franq. D 91 Tienda 12 | I14: 266.58 | K14: E | M14: R | N14: 3
A15: 1 | B15: 4205800.00% | C15: 5 | D15: 2 | E15: 7000011112 | G15: Vtas. Franq. D 91 Tienda 12 Producto 111 | J15: 242.35 | K15: E | M15: R | N15: 3
A16: 1 | B16: 4205800.00% | C16: 5 | D16: 3 | E16: 4770001000 | G16: IVA Rep. Venta Franq. D 91 Tienda 12 | J16: 24.23 | K16: E | M16: R | N16: 3
A17: 1 | B17: 4205800.00% | C17: 6 | D17: 1 | E17: 4400000091 | G17: Deudores Franq.D 91 Tienda 12 | I17: 7.33 | K17: E | M17: R | N17: 3
A18: 1 | B18: 4205800.00% | C18: 6 | D18: 2 | E18: 7050000091 | G18: Ing. Royaltie Franq. D 91 Tienda 12 | J18: 6.06 | K18: E | M18: R | N18: 3
A19: 1 | B19: 4205800.00% | C19: 6 | D19: 3 | E19: 4770002100 | G19: IVA Rep. Venta Franq. D 91 Tienda 12 | J19: 1.27 | K19: E | M19: R | N19: 3
A20: 1 | B20: 4205800.00% | C20: 7 | D20: 1 | E20: 4300000094 | G20: Clientes Franq. D 94 Tienda 13 | I20: 355.29 | K20: E | M20: R | N20: 4
A21: 1 | B21: 4205800.00% | C21: 7 | D21: 2 | E21: 7000011213 | G21: Vtas. Franq. D 94 Tienda 13 Producto 112 | J21: 341.63 | K21: E | M21: R | N21: 4
A22: 1 | B22: 4205800.00% | C22: 7 | D22: 3 | E22: 4770000400 | G22: IVA Rep. Venta Franq. D 94 Tienda 13 | J22: 13.66 | K22: E | M22: R | N22: 4
A23: 1 | B23: 4205800.00% | C23: 8 | D23: 1 | E23: 4400000094 | G23: Deudores Franq.D 94 Tienda 13 | I23: 10.33 | K23: E | M23: R | N23: 4
A24: 1 | B24: 4205800.00% | C24: 8 | D24: 2 | E24: 7050000094 | G24: Ing. Royaltie Franq. D 94 Tienda 13 | J24: 8.54 | K24: E | M24: R | N24: 4
A25: 1 | B25: 4205800.00% | C25: 8 | D25: 3 | E25: 4770002100 | G25: IVA Rep. Venta Franq. D 94 Tienda 13 | J25: 1.79 | K25: E | M25: R | N25: 4
A26: 1 | B26: 4205800.00% | C26: 9 | D26: 1 | E26: 4300000091 | G26: Clientes Franq. D 91 Tienda 12 | I26: 205.5 | K26: E | M26: R | N26: 5
A27: 1 | B27: 4205800.00% | C27: 9 | D27: 2 | E27: 7000011112 | G27: Vtas. Franq. D 91 Tienda 12 Producto 111 | J27: 186.82 | K27: E | M27: R | N27: 5
A28: 1 | B28: 4205800.00% | C28: 9 | D28: 3 | E28: 4770001000 | G28: IVA Rep. Venta Franq. D 91 Tienda 12 | J28: 18.68 | K28: E | M28: R | N28: 5
A29: 1 | B29: 4205800.00% | C29: 10 | D29: 1 | E29: 4400000091 | G29: Deudores Franq.D 91 Tienda 12 | I29: 5.65 | K29: E | M29: R | N29: 5
A30: 1 | B30: 4205800.00% | C30: 10 | D30: 2 | E30: 7050000091 | G30: Ing. Royaltie Franq. D 91 Tienda 12 | J30: 4.67 | K30: E | M30: R | N30: 5
A31: 1 | B31: 4205800.00% | C31: 10 | D31: 3 | E31: 4770002100 | G31: IVA Rep. Venta Franq. D 91 Tienda 12 | J31: 0.98 | K31: E | M31: R | N31: 5
A32: 1 | B32: 4205800.00% | C32: 11 | D32: 1 | E32: 4300000091 | G32: Clientes Franq. D 91 Tienda 14 | I32: 177.22 | K32: E | M32: R | N32: 6
A33: 1 | B33: 4205800.00% | C33: 11 | D33: 2 | E33: 7000012114 | G33: Vtas. Franq. D 91 Tienda 14 Producto 121 | J33: 146.46 | K33: E | M33: R | N33: 6
A34: 1 | B34: 4205800.00% | C34: 11 | D34: 3 | E34: 4770002100 | G34: IVA Rep. Venta Franq. D 91 Tienda 14 | J34: 30.76 | K34: E | M34: R | N34: 6
A35: 1 | B35: 4205800.00% | C35: 12 | D35: 1 | E35: 4400000091 | G35: Deudores Franq.D 91 Tienda 14 | I35: 4.43 | K35: E | M35: R | N35: 6
A36: 1 | B36: 4205800.00% | C36: 12 | D36: 2 | E36: 7050000091 | G36: Ing. Royaltie Franq. D 91 Tienda 14 | J36: 3.66 | K36: E | M36: R | N36: 6
A37: 1 | B37: 4205800.00% | C37: 12 | D37: 3 | E37: 4770002100 | G37: IVA Rep. Venta Franq. D 91 Tienda 14 | J37: 0.77 | K37: E | M37: R | N37: 6
A38: 1 | B38: 4205800.00% | C38: 13 | D38: 1 | E38: 4300000094 | G38: Clientes Franq. D 94 Tienda 13 | I38: 292.09 | K38: E | M38: R | N38: 7
A39: 1 | B39: 4205800.00% | C39: 13 | D39: 2 | E39: 7000011213 | G39: Vtas. Franq. D 94 Tienda 13 Producto 112 | J39: 280.86 | K39: E | M39: R | N39: 7
A40: 1 | B40: 4205800.00% | C40: 13 | D40: 3 | E40: 4770000400 | G40: IVA Rep. Venta Franq. D 94 Tienda 13 | J40: 11.23 | K40: E | M40: R | N40: 7
A41: 1 | B41: 4205800.00% | C41: 14 | D41: 1 | E41: 4400000094 | G41: Deudores Franq.D 94 Tienda 13 | I41: 8.49 | K41: E | M41: R | N41: 7
A42: 1 | B42: 4205800.00% | C42: 14 | D42: 2 | E42: 7050000094 | G42: Ing. Royaltie Franq. D 94 Tienda 13 | J42: 7.02 | K42: E | M42: R | N42: 7
A43: 1 | B43: 4205800.00% | C43: 14 | D43: 3 | E43: 4770002100 | G43: IVA Rep. Venta Franq. D 94 Tienda 13 | J43: 1.47 | K43: E | M43: R | N43: 7
A44: 1 | B44: 4205800.00% | C44: 15 | D44: 1 | E44: 4300000094 | G44: Clientes Franq. D 94 Tienda 13 | I44: 356.09 | K44: E | M44: R | N44: 8
A45: 1 | B45: 4205800.00% | C45: 15 | D45: 2 | E45: 7000012213 | G45: Vtas. Franq. D 94 Tienda 13 Producto 122 | J45: 294.29 | K45: E | M45: R | N45: 8
A46: 1 | B46: 4205800.00% | C46: 15 | D46: 3 | E46: 4770002100 | G46: IVA Rep. Venta Franq. D 94 Tienda 13 | J46: 61.8 | K46: E | M46: R | N46: 8
A47: 1 | B47: 4205800.00% | C47: 16 | D47: 1 | E47: 4400000094 | G47: Deudores Franq.D 94 Tienda 13 | I47: 8.91 | K47: E | M47: R | N47: 8
A48: 1 | B48: 4205800.00% | C48: 16 | D48: 2 | E48: 7050000094 | G48: Ing. Royaltie Franq. D 94 Tienda 13 | J48: 7.36 | K48: E | M48: R | N48: 8
A49: 1 | B49: 4205800.00% | C49: 16 | D49: 3 | E49: 4770002100 | G49: IVA Rep. Venta Franq. D 94 Tienda 13 | J49: 1.55 | K49: E | M49: R | N49: 8
A50: 1 | B50: 4205800.00% | C50: 17 | D50: 1 | E50: 4300000091 | G50: Clientes Franq. D 91 Tienda 12 | I50: 162.88 | K50: E | M50: R | N50: 9
A51: 1 | B51: 4205800.00% | C51: 17 | D51: 2 | E51: 7000012312 | G51: Vtas. Franq. D 91 Tienda 12 Producto 123 | J51: 134.61 | K51: E | M51: R | N51: 9
A52: 1 | B52: 4205800.00% | C52: 17 | D52: 3 | E52: 4770002100 | G52: IVA Rep. Venta Franq. D 91 Tienda 12 | J52: 28.27 | K52: E | M52: R | N52: 9
A53: 1 | B53: 4205800.00% | C53: 18 | D53: 1 | E53: 4400000091 | G53: Deudores Franq.D 91 Tienda 12 | I53: 4.08 | K53: E | M53: R | N53: 9
A54: 1 | B54: 4205800.00% | C54: 18 | D54: 2 | E54: 7050000091 | G54: Ing. Royaltie Franq. D 91 Tienda 12 | J54: 3.37 | K54: E | M54: R | N54: 9
A55: 1 | B55: 4205800.00% | C55: 18 | D55: 3 | E55: 4770002100 | G55: IVA Rep. Venta Franq. D 91 Tienda 12 | J55: 0.71 | K55: E | M55: R | N55: 9
A56: 1 | B56: 4205800.00% | C56: 19 | D56: 1 | E56: 4300000091 | G56: Clientes Franq. D 91 Tienda 12 | I56: 74.44 | K56: E | M56: R | N56: 10
A57: 1 | B57: 4205800.00% | C57: 19 | D57: 2 | E57: 7000011112 | G57: Vtas. Franq. D 91 Tienda 12 Producto 111 | J57: 67.67 | K57: E | M57: R | N57: 10
A58: 1 | B58: 4205800.00% | C58: 19 | D58: 3 | E58: 4770001000 | G58: IVA Rep. Venta Franq. D 91 Tienda 12 | J58: 6.77 | K58: E | M58: R | N58: 10
A59: 1 | B59: 4205800.00% | C59: 20 | D59: 1 | E59: 4400000091 | G59: Deudores Franq.D 91 Tienda 12 | I59: 2.04 | K59: E | M59: R | N59: 10
A60: 1 | B60: 4205800.00% | C60: 20 | D60: 2 | E60: 7050000091 | G60: Ing. Royaltie Franq. D 91 Tienda 12 | J60: 1.69 | K60: E | M60: R | N60: 10
A61: 1 | B61: 4205800.00% | C61: 20 | D61: 3 | E61: 4770002100 | G61: IVA Rep. Venta Franq. D 91 Tienda 12 | J61: 0.35 | K61: E | M61: R | N61: 10
A62: 1 | B62: 4205800.00% | C62: 21 | D62: 1 | E62: 4300000091 | G62: Clientes Franq. D 91 Tienda 14 | I62: 181.82 | K62: E | M62: R | N62: 11
A63: 1 | B63: 4205800.00% | C63: 21 | D63: 2 | E63: 7000011314 | G63: Vtas. Franq. D 91 Tienda 14 Producto 113 | J63: 150.26 | K63: E | M63: R | N63: 11
A64: 1 | B64: 4205800.00% | C64: 21 | D64: 3 | E64: 4770002100 | G64: IVA Rep. Venta Franq. D 91 Tienda 14 | J64: 31.56 | K64: E | M64: R | N64: 11
A65: 1 | B65: 4205800.00% | C65: 22 | D65: 1 | E65: 4400000091 | G65: Deudores Franq.D 91 Tienda 14 | I65: 4.55 | K65: E | M65: R | N65: 11
A66: 1 | B66: 4205800.00% | C66: 22 | D66: 2 | E66: 7050000091 | G66: Ing. Royaltie Franq. D 91 Tienda 14 | J66: 3.76 | K66: E | M66: R | N66: 11
A67: 1 | B67: 4205800.00% | C67: 22 | D67: 3 | E67: 4770002100 | G67: IVA Rep. Venta Franq. D 91 Tienda 14 | J67: 0.79 | K67: E | M67: R | N67: 11
A68: 1 | B68: 4205800.00% | C68: 23 | D68: 1 | E68: 4300000094 | G68: Clientes Franq. D 94 Tienda 13 | I68: 295.4 | K68: E | M68: R | N68: 12
A69: 1 | B69: 4205800.00% | C69: 23 | D69: 2 | E69: 7000011313 | G69: Vtas. Franq. D 94 Tienda 13 Producto 113 | J69: 244.13 | K69: E | M69: R | N69: 12
A70: 1 | B70: 4205800.00% | C70: 23 | D70: 3 | E70: 4770002100 | G70: IVA Rep. Venta Franq. D 94 Tienda 13 | J70: 51.27 | K70: E | M70: R | N70: 12
A71: 1 | B71: 4205800.00% | C71: 24 | D71: 1 | E71: 4400000094 | G71: Deudores Franq.D 94 Tienda 13 | I71: 7.38 | K71: E | M71: R | N71: 12
A72: 1 | B72: 4205800.00% | C72: 24 | D72: 2 | E72: 7050000094 | G72: Ing. Royaltie Franq. D 94 Tienda 13 | J72: 6.1 | K72: E | M72: R | N72: 12
A73: 1 | B73: 4205800.00% | C73: 24 | D73: 3 | E73: 4770002100 | G73: IVA Rep. Venta Franq. D 94 Tienda 13 | J73: 1.28 | K73: E | M73: R | N73: 12

Sheet ConfigVentasTPVPropias
A1: Hoja con los datos de entrada: | D1: VentasTPVPropias
A2: Datos de salida: | D2: AstosVentasPropias
A3: Primer número de asiento: | D3: 1
A4: Procedimientos a ejecutar previamente: | E4: Macro7 | F4: Macro8
A9: Diario | B9: Fecha | C9: Asiento | D9: Orden | E9: Cuenta | F9: Importe Pts | G9: Concepto | H9: Documento | I9: Debe | J9: Haber | K9: Moneda | L9: Punteo | M9: TipoIVA | N9: Nº IVA | O9: Depto. | P9: Subdepto. | Q9: Imagen
A10: 1 | B10: A | C10: #1 | D10: 1 | E10: R | G10: AF | I10: Y | K10: AD | M10: AB | N10: AC
A11: 1 | B11: A | C11: #1 | D11: 2 | E11: W | G11: AG | I11: X | K11: AD | M11: AB | N11: AC
A12: 1 | B12: A | C12: #1 | D12: 3 | E12: P | G12: AL | J12: J | K12: AD | M12: AB | N12: AC
A13: 1 | B13: A | C13: #1 | D13: 4 | E13: L | G13: AH | J13: N | K13: AD | M13: AB | N13: AC
A14: 1 | B14: A | C14: #2 | D14: 1 | E14: T | G14: AI | I14: U | K14: AD | L14: 1 | M14: AB | N14: AC
A15: 1 | B15: A | C15: #2 | D15: 2 | E15: Q | G15: AA | J15: H | K15: AD | M15: AB | N15: AC
A16: 1 | B16: A | C16: #2 | D16: 3 | E16: M | G16: AJ | J16: O | K16: AD | M16: AB | N16: AC
A17: 1 | B17: AE | C17: #3 | D17: 1 | E17: S | G17: AK | I17: Z | K17: AD | M17: AB | N17: AC
A18: 1 | B18: AE | C18: #3 | D18: 2 | E18: T | G18: AI | J18: U | K18: AD | L18: 1 | M18: AB | N18: AC

Sheet VentasTPVPropias
A1: Fecha | B1: IdTienda | C1: IdFamilia | D1: Ventas (IVA inc) | E1: F. Pago | F1: Id Tarjeta | G1: Venta Efectivo | H1: Venta Efec. Sin IVA | I1: Venta Tarjeta | J1: Venta Tarj. Sin IVA | K1: % IVA | L1: Cta. IVA Tarj | M1: Cta. IVA Efect | N1: Imp. IVA Tarj | O1: Imp. IVA Efec | P1: Cta. Ventas Tarj | Q1: Cta. Ventas Efec | R1: Cta. Banco tarjeta | S1: Cta.Banco Efectivo | T1: Cta. Caja | U1: Imp. Caja | V1: %Comisión | W1: Cta. Comisión | X1: Imp. Comisión | Y1: Imp. Banco Tarj. | Z1: Imp.Banco Efec. | AA1: Concepto Venta Efectivo | AB1: Tipo IVA | AC1: nº IVA | AD1: Moneda | AE1: Fecha aplazamiento | AF1: Conc. Bancos Tarj. | AG1: Conc. Comisión | AH1: Conc. IVA Tarjeta | AI1: Conp. Caja | AJ1: Conc. IVA Efec | AK1: Conc. Banco Efec | AL1: Conc. Venta Tarjeta
A2: 4205800.00% | B2: 11 | C2: 113 | D2: 98.36 | E2: 1 | G2: =IF(E2=1,D2,"") -> 98.36 | H2: =IF(E2=1,ROUND(G2/(1+K2),2),"") -> 81.29 | I2: =IF(E2=2,D2,"") ->  | J2: =IF(E2=2,ROUND(D2/(1+K2),2),"") ->  | K2: =VLOOKUP(C2,Familias!$A$3:$D$8,3) -> 21.00% | L2: =IF(E2=2,VLOOKUP(C2,Familias!$A$3:$D$8,4),"") ->  | M2: =IF(E2=1,VLOOKUP(C2,Familias!$A$3:$D$8,4),"") -> 4770002100 | N2: =IF(E2=2,ROUND(I2-J2,2),"") ->  | O2: =IF(E2=1,ROUND(G2-H2,2),"") -> 17.07 | P2: =IF(E2=2,"70000"&C2&B2,"") ->  | Q2: =IF(E2=1,"70000"&C2&B2,"") -> 7000011311 | R2: =IF(E2=2,VLOOKUP(B2,Tiendas!$A$3:$K$28,11),"") ->  | S2: =IF(E2=1,VLOOKUP(B2,Tabla6[[Id Tienda]:[Cta. Banco Efectivo]],10),"") -> 5720010003 | T2: =IF(E2=1,VLOOKUP(B2,Tabla6[[Id Tienda]:[Cta. Caja]],7),"") -> 5700000011 | U2: =IF(E2=1,H2+O2,"") -> 98.36 | V2: =IF(E2=2,VLOOKUP(F2,Tarjetas!$A$2:$D$5,3),"") ->  | W2: =IF(V2="","",VLOOKUP(F2,Tarjetas!$A$2:$D$5,4)) ->  | X2: =IF(E2=2,ROUND(I2*V2,2),"") ->  | Y2: =IF(E2=2,ROUND((J2+N2)-X2,2),"") ->  | Z2: =IF(E2=1,H2+O2,"") -> 98.36 | AA2: =IF(E2=1,"Venta Efec. "&"Tienda "&B2&" Producto "&C2,"") -> Venta Efec. Tienda 11 Producto 113 | AB2: R | AC2: 1 | AD2: E | AE2: =IF(E2=1,A2+VLOOKUP(B2,Tabla6[],12),"") -> 4206100.00% | AF2: =IF(E2=2,"Bancos Tarj. "&Tabla5[[#This Row],[Id Tarjeta]]&" Tienda "&B2,"") ->  | AG2: =IF(E2=2,"Comisión Tarj."&Tabla5[[#This Row],[Id Tarjeta]]&" Tienda "&B2,"") ->  | AH2: =IF(E2=2,"IVA Rep. Tienda "&B2,"") ->  | AI2: =IF(E2=1,"Caja Tienda "&B2,"") -> Caja Tienda 11 | AJ2: =IF(E2=1,"IVA Rep. Tienda "&B2,"") -> IVA Rep. Tienda 11 | AK2: =IF(E2=1,"Bancos Efec. Tienda "&B2,"") -> Bancos Efec. Tienda 11 | AL2: =IF(E2=2,"Venta Tarj. "&Tabla5[[#This Row],[Id Tarjeta]]&" Tienda "&B2&" Producto "&C2,"") -> 
A3: 4205800.00% | B3: 32 | C3: 121 | D3: 115.28 | E3: 2 | F3: 2 | G3: =IF(E3=1,D3,"") ->  | H3: =IF(E3=1,ROUND(G3/(1+K3),2),"") ->  | I3: =IF(E3=2,D3,"") -> 115.28 | J3: =IF(E3=2,ROUND(D3/(1+K3),2),"") -> 95.27 | K3: =VLOOKUP(C3,Familias!$A$3:$D$8,3) -> 21.00% | L3: =IF(E3=2,VLOOKUP(C3,Familias!$A$3:$D$8,4),"") -> 4770002100 | M3: =IF(E3=1,VLOOKUP(C3,Familias!$A$3:$D$8,4),"") ->  | N3: =IF(E3=2,ROUND(I3-J3,2),"") -> 20.01 | O3: =IF(E3=1,ROUND(G3-H3,2),"") ->  | P3: =IF(E3=2,"70000"&C3&B3,"") -> 7000012132 | Q3: =IF(E3=1,"70000"&C3&B3,"") ->  | R3: =IF(E3=2,VLOOKUP(B3,Tiendas!$A$3:$K$28,11),"") -> 5720020001 | S3: =IF(E3=1,VLOOKUP(B3,Tabla6[[Id Tienda]:[Cta. Banco Efectivo]],10),"") ->  | T3: =IF(E3=1,VLOOKUP(B3,Tabla6[[Id Tienda]:[Cta. Caja]],7),"") ->  | U3: =IF(E3=1,H3+O3,"") ->  | V3: =IF(E3=2,VLOOKUP(F3,Tarjetas!$A$2:$D$5,3),"") -> 1.25% | W3: =IF(V3="","",VLOOKUP(F3,Tarjetas!$A$2:$D$5,4)) -> 6690000002 | X3: =IF(E3=2,ROUND(I3*V3,2),"") -> 1.44 | Y3: =IF(E3=2,ROUND((J3+N3)-X3,2),"") -> 113.84 | Z3: =IF(E3=1,H3+O3,"") ->  | AA3: =IF(E3=1,"Venta Efec. "&"Tienda "&B3&" Producto "&C3,"") ->  | AB3: R | AC3: =AC2+1 -> 2 | AD3: E | AE3: =IF(E3=1,A3+VLOOKUP(B3,Tabla6[],12),"") ->  | AF3: =IF(E3=2,"Bancos Tarj. "&Tabla5[[#This Row],[Id Tarjeta]]&" Tienda "&B3,"") -> Bancos Tarj. 2 Tienda 32 | AG3: =IF(E3=2,"Comisión Tarj."&Tabla5[[#This Row],[Id Tarjeta]]&" Tienda "&B3,"") -> Comisión Tarj.2 Tienda 32 | AH3: =IF(E3=2,"IVA Rep. Tienda "&B3,"") -> IVA Rep. Tienda 32 | AI3: =IF(E3=1,"Caja Tienda "&B3,"") ->  | AJ3: =IF(E3=1,"IVA Rep. Tienda "&B3,"") ->  | AK3: =IF(E3=1,"Bancos Efec. Tienda "&B3,"") ->  | AL3: =IF(E3=2,"Venta Tarj. "&Tabla5[[#This Row],[Id Tarjeta]]&" Tienda "&B3&" Producto "&C3,"") -> Venta Tarj. 2 Tienda 32 Producto 121
A4: 4205800.00% | B4: 42 | C4: 122 | D4: 263.98 | E4: 1 | G4: 263.98 | H4: 218.17 | K4: =VLOOKUP(C4,Familias!$A$3:$D$8,3) -> 21.00% | L4: =IF(E4=2,VLOOKUP(C4,Familias!$A$3:$D$8,4),"") ->  | M4: =IF(E4=1,VLOOKUP(C4,Familias!$A$3:$D$8,4),"") -> 4770002100 | O4: 45.81 | Q4: 7000012242 | R4: =IF(E4=2,VLOOKUP(B4,Tiendas!$A$3:$K$28,11),"") ->  | S4: =IF(E4=1,VLOOKUP(B4,Tabla6[[Id Tienda]:[Cta. Banco Efectivo]],10),"") -> 5720010003 | T4: =IF(E4=1,VLOOKUP(B4,Tabla6[[Id Tienda]:[Cta. Caja]],7),"") -> 5700000042 | U4: 263.98 | V4: =IF(E4=2,VLOOKUP(F4,Tarjetas!$A$2:$D$5,3),"") ->  | W4: =IF(V4="","",VLOOKUP(F4,Tarjetas!$A$2:$D$5,4)) ->  | Z4: 263.98 | AA4: Venta Efec. Tienda 42 Producto 122 | AB4: R | AC4: =AC3+1 -> 3 | AD4: E | AE4: =IF(E4=1,A4+VLOOKUP(B4,Tabla6[],12),"") -> 4206100.00% | AF4: =IF(E4=2,"Bancos Tarj. "&Tabla5[[#This Row],[Id Tarjeta]]&" Tienda "&B4,"") ->  | AG4: =IF(E4=2,"Comisión Tarj."&Tabla5[[#This Row],[Id Tarjeta]]&" Tienda "&B4,"") ->  | AI4: Caja Tienda 42 | AJ4: IVA Rep. Tienda 42 | AK4: Bancos Efec. Tienda 42 | AL4: =IF(E4=2,"Venta Tarj. "&Tabla5[[#This Row],[Id Tarjeta]]&" Tienda "&B4&" Producto "&C4,"") -> 
A5: 4205800.00% | B5: 15 | C5: 111 | D5: 685.23 | E5: 2 | F5: 3 | I5: 685.23 | J5: 622.94 | K5: =VLOOKUP(C5,Familias!$A$3:$D$8,3) -> 10.00% | L5: =IF(E5=2,VLOOKUP(C5,Familias!$A$3:$D$8,4),"") -> 4770001000 | M5: =IF(E5=1,VLOOKUP(C5,Familias!$A$3:$D$8,4),"") ->  | N5: 62.29 | P5: 7000011115 | R5: =IF(E5=2,VLOOKUP(B5,Tiendas!$A$3:$K$28,11),"") -> 5720020001 | S5: =IF(E5=1,VLOOKUP(B5,Tabla6[[Id Tienda]:[Cta. Banco Efectivo]],10),"") ->  | T5: =IF(E5=1,VLOOKUP(B5,Tabla6[[Id Tienda]:[Cta. Caja]],7),"") ->  | V5: =IF(E5=2,VLOOKUP(F5,Tarjetas!$A$2:$D$5,3),"") -> 1.50% | W5: =IF(V5="","",VLOOKUP(F5,Tarjetas!$A$2:$D$5,4)) -> 6690000003 | X5: 10.28 | Y5: 674.95 | AB5: R | AC5: 4 | AD5: E | AE5: =IF(E5=1,A5+VLOOKUP(B5,Tabla6[],12),"") ->  | AF5: =IF(E5=2,"Bancos Tarj. "&Tabla5[[#This Row],[Id Tarjeta]]&" Tienda "&B5,"") -> Bancos Tarj. 3 Tienda 15 | AG5: =IF(E5=2,"Comisión Tarj."&Tabla5[[#This Row],[Id Tarjeta]]&" Tienda "&B5,"") -> Comisión Tarj.3 Tienda 15 | AH5: IVA Rep. Tienda 15 | AL5: =IF(E5=2,"Venta Tarj. "&Tabla5[[#This Row],[Id Tarjeta]]&" Tienda "&B5&" Producto "&C5,"") -> Venta Tarj. 3 Tienda 15 Producto 111
A6: 4205800.00% | B6: 33 | C6: 123 | D6: 478 | E6: 2 | F6: 1 | I6: 478 | J6: 395.04 | K6: =VLOOKUP(C6,Familias!$A$3:$D$8,3) -> 21.00% | L6: =IF(E6=2,VLOOKUP(C6,Familias!$A$3:$D$8,4),"") -> 4770002100 | M6: =IF(E6=1,VLOOKUP(C6,Familias!$A$3:$D$8,4),"") ->  | N6: 82.96 | P6: 7000012333 | R6: =IF(E6=2,VLOOKUP(B6,Tiendas!$A$3:$K$28,11),"") -> 5720020001 | S6: =IF(E6=1,VLOOKUP(B6,Tabla6[[Id Tienda]:[Cta. Banco Efectivo]],10),"") ->  | T6: =IF(E6=1,VLOOKUP(B6,Tabla6[[Id Tienda]:[Cta. Caja]],7),"") ->  | V6: =IF(E6=2,VLOOKUP(F6,Tarjetas!$A$2:$D$5,3),"") -> 1.00% | W6: =IF(V6="","",VLOOKUP(F6,Tarjetas!$A$2:$D$5,4)) -> 6690000001 | X6: 4.78 | Y6: 473.22 | AB6: R | AC6: 5 | AD6: E | AE6: =IF(E6=1,A6+VLOOKUP(B6,Tabla6[],12),"") ->  | AF6: =IF(E6=2,"Bancos Tarj. "&Tabla5[[#This Row],[Id Tarjeta]]&" Tienda "&B6,"") -> Bancos Tarj. 1 Tienda 33 | AG6: =IF(E6=2,"Comisión Tarj."&Tabla5[[#This Row],[Id Tarjeta]]&" Tienda "&B6,"") -> Comisión Tarj.1 Tienda 33 | AH6: IVA Rep. Tienda 33 | AL6: =IF(E6=2,"Venta Tarj. "&Tabla5[[#This Row],[Id Tarjeta]]&" Tienda "&B6&" Producto "&C6,"") -> Venta Tarj. 1 Tienda 33 Producto 123
A7: 4205800.00% | B7: 44 | C7: 112 | D7: 256.33 | E7: 2 | F7: 4 | I7: 256.33 | J7: 246.47 | K7: =VLOOKUP(C7,Familias!$A$3:$D$8,3) -> 4.00% | L7: =IF(E7=2,VLOOKUP(C7,Familias!$A$3:$D$8,4),"") -> 4770000400 | M7: =IF(E7=1,VLOOKUP(C7,Familias!$A$3:$D$8,4),"") ->  | N7: 9.86 | P7: 7000011244 | R7: =IF(E7=2,VLOOKUP(B7,Tiendas!$A$3:$K$28,11),"") -> 5720020001 | S7: =IF(E7=1,VLOOKUP(B7,Tabla6[[Id Tienda]:[Cta. Banco Efectivo]],10),"") ->  | T7: =IF(E7=1,VLOOKUP(B7,Tabla6[[Id Tienda]:[Cta. Caja]],7),"") ->  | V7: =IF(E7=2,VLOOKUP(F7,Tarjetas!$A$2:$D$5,3),"") -> 0.85% | W7: =IF(V7="","",VLOOKUP(F7,Tarjetas!$A$2:$D$5,4)) -> 6690000004 | X7: 2.18 | Y7: 254.15 | AB7: R | AC7: 6 | AD7: E | AE7: =IF(E7=1,A7+VLOOKUP(B7,Tabla6[],12),"") ->  | AF7: =IF(E7=2,"Bancos Tarj. "&Tabla5[[#This Row],[Id Tarjeta]]&" Tienda "&B7,"") -> Bancos Tarj. 4 Tienda 44 | AG7: =IF(E7=2,"Comisión Tarj."&Tabla5[[#This Row],[Id Tarjeta]]&" Tienda "&B7,"") -> Comisión Tarj.4 Tienda 44 | AH7: IVA Rep. Tienda 44 | AL7: =IF(E7=2,"Venta Tarj. "&Tabla5[[#This Row],[Id Tarjeta]]&" Tienda "&B7&" Producto "&C7,"") -> Venta Tarj. 4 Tienda 44 Producto 112
A8: 4205800.00% | B8: 42 | C8: 123 | D8: 300.14 | E8: 1 | G8: 300.14 | H8: 248.05 | K8: =VLOOKUP(C8,Familias!$A$3:$D$8,3) -> 21.00% | L8: =IF(E8=2,VLOOKUP(C8,Familias!$A$3:$D$8,4),"") ->  | M8: =IF(E8=1,VLOOKUP(C8,Familias!$A$3:$D$8,4),"") -> 4770002100 | O8: 52.09 | Q8: 7000012342 | R8: =IF(E8=2,VLOOKUP(B8,Tiendas!$A$3:$K$28,11),"") ->  | S8: =IF(E8=1,VLOOKUP(B8,Tabla6[[Id Tienda]:[Cta. Banco Efectivo]],10),"") -> 5720010003 | T8: =IF(E8=1,VLOOKUP(B8,Tabla6[[Id Tienda]:[Cta. Caja]],7),"") -> 5700000042 | U8: 300.14 | V8: =IF(E8=2,VLOOKUP(F8,Tarjetas!$A$2:$D$5,3),"") ->  | W8: =IF(V8="","",VLOOKUP(F8,Tarjetas!$A$2:$D$5,4)) ->  | Z8: 300.14 | AA8: Venta Efec. Tienda 42 Producto 123 | AB8: R | AC8: 7 | AD8: E | AE8: =IF(E8=1,A8+VLOOKUP(B8,Tabla6[],12),"") -> 4206100.00% | AF8: =IF(E8=2,"Bancos Tarj. "&Tabla5[[#This Row],[Id Tarjeta]]&" Tienda "&B8,"") ->  | AG8: =IF(E8=2,"Comisión Tarj."&Tabla5[[#This Row],[Id Tarjeta]]&" Tienda "&B8,"") ->  | AI8: Caja Tienda 42 | AJ8: IVA Rep. Tienda 42 | AK8: Bancos Efec. Tienda 42 | AL8: =IF(E8=2,"Venta Tarj. "&Tabla5[[#This Row],[Id Tarjeta]]&" Tienda "&B8&" Producto "&C8,"") -> 
A9: 4205800.00% | B9: 53 | C9: 112 | D9: 127.09 | E9: 1 | G9: 127.09 | H9: 122.2 | K9: =VLOOKUP(C9,Familias!$A$3:$D$8,3) -> 4.00% | L9: =IF(E9=2,VLOOKUP(C9,Familias!$A$3:$D$8,4),"") ->  | M9: =IF(E9=1,VLOOKUP(C9,Familias!$A$3:$D$8,4),"") -> 4770000400 | O9: 4.89 | Q9: 7000011253 | R9: =IF(E9=2,VLOOKUP(B9,Tiendas!$A$3:$K$28,11),"") ->  | S9: =IF(E9=1,VLOOKUP(B9,Tabla6[[Id Tienda]:[Cta. Banco Efectivo]],10),"") -> 5720010002 | T9: =IF(E9=1,VLOOKUP(B9,Tabla6[[Id Tienda]:[Cta. Caja]],7),"") -> 5700000053 | U9: 127.09 | V9: =IF(E9=2,VLOOKUP(F9,Tarjetas!$A$2:$D$5,3),"") ->  | W9: =IF(V9="","",VLOOKUP(F9,Tarjetas!$A$2:$D$5,4)) ->  | Z9: 127.09 | AA9: Venta Efec. Tienda 53 Producto 112 | AB9: R | AC9: 8 | AD9: E | AE9: =IF(E9=1,A9+VLOOKUP(B9,Tabla6[],12),"") -> 4206100.00% | AF9: =IF(E9=2,"Bancos Tarj. "&Tabla5[[#This Row],[Id Tarjeta]]&" Tienda "&B9,"") ->  | AG9: =IF(E9=2,"Comisión Tarj."&Tabla5[[#This Row],[Id Tarjeta]]&" Tienda "&B9,"") ->  | AI9: Caja Tienda 53 | AJ9: IVA Rep. Tienda 53 | AK9: Bancos Efec. Tienda 53 | AL9: =IF(E9=2,"Venta Tarj. "&Tabla5[[#This Row],[Id Tarjeta]]&" Tienda "&B9&" Producto "&C9,"") -> 
A10: 4205800.00% | B10: 61 | C10: 121 | D10: 111.75 | E10: 1 | G10: 111.75 | H10: 92.36 | K10: =VLOOKUP(C10,Familias!$A$3:$D$8,3) -> 21.00% | L10: =IF(E10=2,VLOOKUP(C10,Familias!$A$3:$D$8,4),"") ->  | M10: =IF(E10=1,VLOOKUP(C10,Familias!$A$3:$D$8,4),"") -> 4770002100 | O10: 19.39 | Q10: 7000012161 | R10: =IF(E10=2,VLOOKUP(B10,Tiendas!$A$3:$K$28,11),"") ->  | S10: =IF(E10=1,VLOOKUP(B10,Tabla6[[Id Tienda]:[Cta. Banco Efectivo]],10),"") -> 5720010006 | T10: =IF(E10=1,VLOOKUP(B10,Tabla6[[Id Tienda]:[Cta. Caja]],7),"") -> 5700000061 | U10: 111.75 | V10: =IF(E10=2,VLOOKUP(F10,Tarjetas!$A$2:$D$5,3),"") ->  | W10: =IF(V10="","",VLOOKUP(F10,Tarjetas!$A$2:$D$5,4)) ->  | Z10: 111.75 | AA10: Venta Efec. Tienda 61 Producto 121 | AB10: R | AC10: 9 | AD10: E | AE10: =IF(E10=1,A10+VLOOKUP(B10,Tabla6[],12),"") -> 4206100.00% | AF10: =IF(E10=2,"Bancos Tarj. "&Tabla5[[#This Row],[Id Tarjeta]]&" Tienda "&B10,"") ->  | AG10: =IF(E10=2,"Comisión Tarj."&Tabla5[[#This Row],[Id Tarjeta]]&" Tienda "&B10,"") ->  | AI10: Caja Tienda 61 | AJ10: IVA Rep. Tienda 61 | AK10: Bancos Efec. Tienda 61 | AL10: =IF(E10=2,"Venta Tarj. "&Tabla5[[#This Row],[Id Tarjeta]]&" Tienda "&B10&" Producto "&C10,"") -> 
A11: 4205800.00% | B11: 63 | C11: 113 | D11: 123.33 | E11: 2 | F11: 2 | I11: 123.33 | J11: 101.93 | K11: =VLOOKUP(C11,Familias!$A$3:$D$8,3) -> 21.00% | L11: =IF(E11=2,VLOOKUP(C11,Familias!$A$3:$D$8,4),"") -> 4770002100 | M11: =IF(E11=1,VLOOKUP(C11,Familias!$A$3:$D$8,4),"") ->  | N11: 21.4 | P11: 7000011363 | R11: =IF(E11=2,VLOOKUP(B11,Tiendas!$A$3:$K$28,11),"") -> 5720020001 | S11: =IF(E11=1,VLOOKUP(B11,Tabla6[[Id Tienda]:[Cta. Banco Efectivo]],10),"") ->  | T11: =IF(E11=1,VLOOKUP(B11,Tabla6[[Id Tienda]:[Cta. Caja]],7),"") ->  | V11: =IF(E11=2,VLOOKUP(F11,Tarjetas!$A$2:$D$5,3),"") -> 1.25% | W11: =IF(V11="","",VLOOKUP(F11,Tarjetas!$A$2:$D$5,4)) -> 6690000002 | X11: 1.54 | Y11: 121.79 | AB11: R | AC11: 10 | AD11: E | AE11: =IF(E11=1,A11+VLOOKUP(B11,Tabla6[],12),"") ->  | AF11: =IF(E11=2,"Bancos Tarj. "&Tabla5[[#This Row],[Id Tarjeta]]&" Tienda "&B11,"") -> Bancos Tarj. 2 Tienda 63 | AG11: =IF(E11=2,"Comisión Tarj."&Tabla5[[#This Row],[Id Tarjeta]]&" Tienda "&B11,"") -> Comisión Tarj.2 Tienda 63 | AH11: IVA Rep. Tienda 63 | AL11: =IF(E11=2,"Venta Tarj. "&Tabla5[[#This Row],[Id Tarjeta]]&" Tienda "&B11&" Producto "&C11,"") -> Venta Tarj. 2 Tienda 63 Producto 113
A12: 4205800.00% | B12: 71 | C12: 111 | D12: 883.22 | E12: 2 | F12: 3 | I12: 883.22 | J12: 802.93 | K12: =VLOOKUP(C12,Familias!$A$3:$D$8,3) -> 10.00% | L12: =IF(E12=2,VLOOKUP(C12,Familias!$A$3:$D$8,4),"") -> 4770001000 | M12: =IF(E12=1,VLOOKUP(C12,Familias!$A$3:$D$8,4),"") ->  | N12: 80.29 | P12: 7000011171 | R12: =IF(E12=2,VLOOKUP(B12,Tiendas!$A$3:$K$28,11),"") -> 5720020001 | S12: =IF(E12=1,VLOOKUP(B12,Tabla6[[Id Tienda]:[Cta. Banco Efectivo]],10),"") ->  | T12: =IF(E12=1,VLOOKUP(B12,Tabla6[[Id Tienda]:[Cta. Caja]],7),"") ->  | V12: =IF(E12=2,VLOOKUP(F12,Tarjetas!$A$2:$D$5,3),"") -> 1.50% | W12: =IF(V12="","",VLOOKUP(F12,Tarjetas!$A$2:$D$5,4)) -> 6690000003 | X12: 13.25 | Y12: 869.97 | AB12: R | AC12: 11 | AD12: E | AE12: =IF(E12=1,A12+VLOOKUP(B12,Tabla6[],12),"") ->  | AF12: =IF(E12=2,"Bancos Tarj. "&Tabla5[[#This Row],[Id Tarjeta]]&" Tienda "&B12,"") -> Bancos Tarj. 3 Tienda 71 | AG12: =IF(E12=2,"Comisión Tarj."&Tabla5[[#This Row],[Id Tarjeta]]&" Tienda "&B12,"") -> Comisión Tarj.3 Tienda 71 | AH12: IVA Rep. Tienda 71 | AL12: =IF(E12=2,"Venta Tarj. "&Tabla5[[#This Row],[Id Tarjeta]]&" Tienda "&B12&" Producto "&C12,"") -> Venta Tarj. 3 Tienda 71 Producto 111
A13: 4205800.00% | B13: 72 | C13: 113 | D13: 69.75 | E13: 2 | F13: 4 | I13: 69.75 | J13: 57.64 | K13: =VLOOKUP(C13,Familias!$A$3:$D$8,3) -> 21.00% | L13: =IF(E13=2,VLOOKUP(C13,Familias!$A$3:$D$8,4),"") -> 4770002100 | M13: =IF(E13=1,VLOOKUP(C13,Familias!$A$3:$D$8,4),"") ->  | N13: 12.11 | P13: 7000011372 | R13: =IF(E13=2,VLOOKUP(B13,Tiendas!$A$3:$K$28,11),"") -> 5720020001 | S13: =IF(E13=1,VLOOKUP(B13,Tabla6[[Id Tienda]:[Cta. Banco Efectivo]],10),"") ->  | T13: =IF(E13=1,VLOOKUP(B13,Tabla6[[Id Tienda]:[Cta. Caja]],7),"") ->  | V13: =IF(E13=2,VLOOKUP(F13,Tarjetas!$A$2:$D$5,3),"") -> 0.85% | W13: =IF(V13="","",VLOOKUP(F13,Tarjetas!$A$2:$D$5,4)) -> 6690000004 | X13: 0.59 | Y13: 69.16 | AB13: R | AC13: 12 | AD13: E | AE13: =IF(E13=1,A13+VLOOKUP(B13,Tabla6[],12),"") ->  | AF13: =IF(E13=2,"Bancos Tarj. "&Tabla5[[#This Row],[Id Tarjeta]]&" Tienda "&B13,"") -> Bancos Tarj. 4 Tienda 72 | AG13: =IF(E13=2,"Comisión Tarj."&Tabla5[[#This Row],[Id Tarjeta]]&" Tienda "&B13,"") -> Comisión Tarj.4 Tienda 72 | AH13: IVA Rep. Tienda 72 | AL13: =IF(E13=2,"Venta Tarj. "&Tabla5[[#This Row],[Id Tarjeta]]&" Tienda "&B13&" Producto "&C13,"") -> Venta Tarj. 4 Tienda 72 Producto 113

Sheet AstosVentasPropias
A1: Diario | B1: Fecha | C1: Asiento | D1: Orden | E1: Cuenta | F1: Importe Pts | G1: Concepto | H1: Documento | I1: Debe | J1: Haber | K1: Moneda | L1: Punteo | M1: TipoIVA | N1: Nº IVA | O1: Depto. | P1: Subdepto. | Q1: Imagen
A2: 1 | B2: 4205800.00% | C2: 1 | D2: 1 | K2: E | M2: R | N2: 1
A3: 1 | B3: 4205800.00% | C3: 1 | D3: 2 | K3: E | M3: R | N3: 1
A4: 1 | B4: 4205800.00% | C4: 1 | D4: 3 | K4: E | M4: R | N4: 1
A5: 1 | B5: 4205800.00% | C5: 1 | D5: 4 | K5: E | M5: R | N5: 1
A6: 1 | B6: 4205800.00% | C6: 2 | D6: 1 | E6: 5700000011 | G6: Caja Tienda 11 | I6: 98.36 | K6: E | L6: 1 | M6: R | N6: 1
A7: 1 | B7: 4205800.00% | C7: 2 | D7: 2 | E7: 7000011311 | G7: Venta Efec. Tienda 11 Producto 113 | J7: 81.29 | K7: E | M7: R | N7: 1
A8: 1 | B8: 4205800.00% | C8: 2 | D8: 3 | E8: 4770002100 | G8: IVA Rep. Tienda 11 | J8: 17.07 | K8: E | M8: R | N8: 1
A9: 1 | B9: 4206100.00% | C9: 3 | D9: 1 | E9: 5720010003 | G9: Bancos Efec. Tienda 11 | I9: 98.36 | K9: E | M9: R | N9: 1
A10: 1 | B10: 4206100.00% | C10: 3 | D10: 2 | E10: 5700000011 | G10: Caja Tienda 11 | J10: 98.36 | K10: E | L10: 1 | M10: R | N10: 1
A11: 1 | B11: 4205800.00% | C11: 4 | D11: 1 | E11: 5720020001 | G11: Bancos Tarj. 2 Tienda 32 | I11: 113.84 | K11: E | M11: R | N11: 2
A12: 1 | B12: 4205800.00% | C12: 4 | D12: 2 | E12: 6690000002 | G12: Comisión Tarj.2 Tienda 32 | I12: 1.44 | K12: E | M12: R | N12: 2
A13: 1 | B13: 4205800.00% | C13: 4 | D13: 3 | E13: 7000012132 | G13: Venta Tarj. 2 Tienda 32 Producto 121 | J13: 95.27 | K13: E | M13: R | N13: 2
A14: 1 | B14: 4205800.00% | C14: 4 | D14: 4 | E14: 4770002100 | G14: IVA Rep. Tienda 32 | J14: 20.01 | K14: E | M14: R | N14: 2
A15: 1 | B15: 4205800.00% | C15: 5 | D15: 1 | K15: E | L15: 1 | M15: R | N15: 2
A16: 1 | B16: 4205800.00% | C16: 5 | D16: 2 | K16: E | M16: R | N16: 2
A17: 1 | B17: 4205800.00% | C17: 5 | D17: 3 | K17: E | M17: R | N17: 2
A18: 1 | C18: 6 | D18: 1 | K18: E | M18: R | N18: 2
A19: 1 | C19: 6 | D19: 2 | K19: E | L19: 1 | M19: R | N19: 2
A20: 1 | B20: 4205800.00% | C20: 7 | D20: 1 | K20: E | M20: R | N20: 3
A21: 1 | B21: 4205800.00% | C21: 7 | D21: 2 | K21: E | M21: R | N21: 3
A22: 1 | B22: 4205800.00% | C22: 7 | D22: 3 | K22: E | M22: R | N22: 3
A23: 1 | B23: 4205800.00% | C23: 7 | D23: 4 | K23: E | M23: R | N23: 3
A24: 1 | B24: 4205800.00% | C24: 8 | D24: 1 | E24: 5700000042 | G24: Caja Tienda 42 | I24: 263.98 | K24: E | L24: 1 | M24: R | N24: 3
A25: 1 | B25: 4205800.00% | C25: 8 | D25: 2 | E25: 7000012242 | G25: Venta Efec. Tienda 42 Producto 122 | J25: 218.17 | K25: E | M25: R | N25: 3
A26: 1 | B26: 4205800.00% | C26: 8 | D26: 3 | E26: 4770002100 | G26: IVA Rep. Tienda 42 | J26: 45.81 | K26: E | M26: R | N26: 3
A27: 1 | B27: 4206100.00% | C27: 9 | D27: 1 | E27: 5720010003 | G27: Bancos Efec. Tienda 42 | I27: 263.98 | K27: E | M27: R | N27: 3
A28: 1 | B28: 4206100.00% | C28: 9 | D28: 2 | E28: 5700000042 | G28: Caja Tienda 42 | J28: 263.98 | K28: E | L28: 1 | M28: R | N28: 3
A29: 1 | B29: 4205800.00% | C29: 10 | D29: 1 | E29: 5720020001 | G29: Bancos Tarj. 3 Tienda 15 | I29: 674.95 | K29: E | M29: R | N29: 4
A30: 1 | B30: 4205800.00% | C30: 10 | D30: 2 | E30: 6690000003 | G30: Comisión Tarj.3 Tienda 15 | I30: 10.28 | K30: E | M30: R | N30: 4
A31: 1 | B31: 4205800.00% | C31: 10 | D31: 3 | E31: 7000011115 | G31: Venta Tarj. 3 Tienda 15 Producto 111 | J31: 622.94 | K31: E | M31: R | N31: 4
A32: 1 | B32: 4205800.00% | C32: 10 | D32: 4 | E32: 4770001000 | G32: IVA Rep. Tienda 15 | J32: 62.29 | K32: E | M32: R | N32: 4
A33: 1 | B33: 4205800.00% | C33: 11 | D33: 1 | K33: E | L33: 1 | M33: R | N33: 4
A34: 1 | B34: 4205800.00% | C34: 11 | D34: 2 | K34: E | M34: R | N34: 4
A35: 1 | B35: 4205800.00% | C35: 11 | D35: 3 | K35: E | M35: R | N35: 4
A36: 1 | C36: 12 | D36: 1 | K36: E | M36: R | N36: 4
A37: 1 | C37: 12 | D37: 2 | K37: E | L37: 1 | M37: R | N37: 4
A38: 1 | B38: 4205800.00% | C38: 13 | D38: 1 | E38: 5720020001 | G38: Bancos Tarj. 1 Tienda 33 | I38: 473.22 | K38: E | M38: R | N38: 5
A39: 1 | B39: 4205800.00% | C39: 13 | D39: 2 | E39: 6690000001 | G39: Comisión Tarj.1 Tienda 33 | I39: 4.78 | K39: E | M39: R | N39: 5
A40: 1 | B40: 4205800.00% | C40: 13 | D40: 3 | E40: 7000012333 | G40: Venta Tarj. 1 Tienda 33 Producto 123 | J40: 395.04 | K40: E | M40: R | N40: 5
A41: 1 | B41: 4205800.00% | C41: 13 | D41: 4 | E41: 4770002100 | G41: IVA Rep. Tienda 33 | J41: 82.96 | K41: E | M41: R | N41: 5
A42: 1 | B42: 4205800.00% | C42: 14 | D42: 1 | K42: E | L42: 1 | M42: R | N42: 5
A43: 1 | B43: 4205800.00% | C43: 14 | D43: 2 | K43: E | M43: R | N43: 5
A44: 1 | B44: 4205800.00% | C44: 14 | D44: 3 | K44: E | M44: R | N44: 5
A45: 1 | C45: 15 | D45: 1 | K45: E | M45: R | N45: 5
A46: 1 | C46: 15 | D46: 2 | K46: E | L46: 1 | M46: R | N46: 5
A47: 1 | B47: 4205800.00% | C47: 16 | D47: 1 | E47: 5720020001 | G47: Bancos Tarj. 4 Tienda 44 | I47: 254.15 | K47: E | M47: R | N47: 6
A48: 1 | B48: 4205800.00% | C48: 16 | D48: 2 | E48: 6690000004 | G48: Comisión Tarj.4 Tienda 44 | I48: 2.18 | K48: E | M48: R | N48: 6
A49: 1 | B49: 4205800.00% | C49: 16 | D49: 3 | E49: 7000011244 | G49: Venta Tarj. 4 Tienda 44 Producto 112 | J49: 246.47 | K49: E | M49: R | N49: 6
A50: 1 | B50: 4205800.00% | C50: 16 | D50: 4 | E50: 4770000400 | G50: IVA Rep. Tienda 44 | J50: 9.86 | K50: E | M50: R | N50: 6
A51: 1 | B51: 4205800.00% | C51: 17 | D51: 1 | K51: E | L51: 1 | M51: R | N51: 6
A52: 1 | B52: 4205800.00% | C52: 17 | D52: 2 | K52: E | M52: R | N52: 6
A53: 1 | B53: 4205800.00% | C53: 17 | D53: 3 | K53: E | M53: R | N53: 6
A54: 1 | C54: 18 | D54: 1 | K54: E | M54: R | N54: 6
A55: 1 | C55: 18 | D55: 2 | K55: E | L55: 1 | M55: R | N55: 6
A56: 1 | B56: 4205800.00% | C56: 19 | D56: 1 | K56: E | M56: R | N56: 7
A57: 1 | B57: 4205800.00% | C57: 19 | D57: 2 | K57: E | M57: R | N57: 7
A58: 1 | B58: 4205800.00% | C58: 19 | D58: 3 | K58: E | M58: R | N58: 7
A59: 1 | B59: 4205800.00% | C59: 19 | D59: 4 | K59: E | M59: R | N59: 7
A60: 1 | B60: 4205800.00% | C60: 20 | D60: 1 | E60: 5700000042 | G60: Caja Tienda 42 | I60: 300.14 | K60: E | L60: 1 | M60: R | N60: 7
A61: 1 | B61: 4205800.00% | C61: 20 | D61: 2 | E61: 7000012342 | G61: Venta Efec. Tienda 42 Producto 123 | J61: 248.05 | K61: E | M61: R | N61: 7
A62: 1 | B62: 4205800.00% | C62: 20 | D62: 3 | E62: 4770002100 | G62: IVA Rep. Tienda 42 | J62: 52.09 | K62: E | M62: R | N62: 7
A63: 1 | B63: 4206100.00% | C63: 21 | D63: 1 | E63: 5720010003 | G63: Bancos Efec. Tienda 42 | I63: 300.14 | K63: E | M63: R | N63: 7
A64: 1 | B64: 4206100.00% | C64: 21 | D64: 2 | E64: 5700000042 | G64: Caja Tienda 42 | J64: 300.14 | K64: E | L64: 1 | M64: R | N64: 7
A65: 1 | B65: 4205800.00% | C65: 22 | D65: 1 | K65: E | M65: R | N65: 8
A66: 1 | B66: 4205800.00% | C66: 22 | D66: 2 | K66: E | M66: R | N66: 8
A67: 1 | B67: 4205800.00% | C67: 22 | D67: 3 | K67: E | M67: R | N67: 8
A68: 1 | B68: 4205800.00% | C68: 22 | D68: 4 | K68: E | M68: R | N68: 8
A69: 1 | B69: 4205800.00% | C69: 23 | D69: 1 | E69: 5700000053 | G69: Caja Tienda 53 | I69: 127.09 | K69: E | L69: 1 | M69: R | N69: 8
A70: 1 | B70: 4205800.00% | C70: 23 | D70: 2 | E70: 7000011253 | G70: Venta Efec. Tienda 53 Producto 112 | J70: 122.2 | K70: E | M70: R | N70: 8
A71: 1 | B71: 4205800.00% | C71: 23 | D71: 3 | E71: 4770000400 | G71: IVA Rep. Tienda 53 | J71: 4.89 | K71: E | M71: R | N71: 8
A72: 1 | B72: 4206100.00% | C72: 24 | D72: 1 | E72: 5720010002 | G72: Bancos Efec. Tienda 53 | I72: 127.09 | K72: E | M72: R | N72: 8
A73: 1 | B73: 4206100.00% | C73: 24 | D73: 2 | E73: 5700000053 | G73: Caja Tienda 53 | J73: 127.09 | K73: E | L73: 1 | M73: R | N73: 8
A74: 1 | B74: 4205800.00% | C74: 25 | D74: 1 | K74: E | M74: R | N74: 9
A75: 1 | B75: 4205800.00% | C75: 25 | D75: 2 | K75: E | M75: R | N75: 9
A76: 1 | B76: 4205800.00% | C76: 25 | D76: 3 | K76: E | M76: R | N76: 9
A77: 1 | B77: 4205800.00% | C77: 25 | D77: 4 | K77: E | M77: R | N77: 9
A78: 1 | B78: 4205800.00% | C78: 26 | D78: 1 | E78: 5700000061 | G78: Caja Tienda 61 | I78: 111.75 | K78: E | L78: 1 | M78: R | N78: 9
A79: 1 | B79: 4205800.00% | C79: 26 | D79: 2 | E79: 7000012161 | G79: Venta Efec. Tienda 61 Producto 121 | J79: 92.36 | K79: E | M79: R | N79: 9
A80: 1 | B80: 4205800.00% | C80: 26 | D80: 3 | E80: 4770002100 | G80: IVA Rep. Tienda 61 | J80: 19.39 | K80: E | M80: R | N80: 9
A81: 1 | B81: 4206100.00% | C81: 27 | D81: 1 | E81: 5720010006 | G81: Bancos Efec. Tienda 61 | I81: 111.75 | K81: E | M81: R | N81: 9
A82: 1 | B82: 4206100.00% | C82: 27 | D82: 2 | E82: 5700000061 | G82: Caja Tienda 61 | J82: 111.75 | K82: E | L82: 1 | M82: R | N82: 9
A83: 1 | B83: 4205800.00% | C83: 28 | D83: 1 | E83: 5720020001 | G83: Bancos Tarj. 2 Tienda 63 | I83: 121.79 | K83: E | M83: R | N83: 10
A84: 1 | B84: 4205800.00% | C84: 28 | D84: 2 | E84: 6690000002 | G84: Comisión Tarj.2 Tienda 63 | I84: 1.54 | K84: E | M84: R | N84: 10
A85: 1 | B85: 4205800.00% | C85: 28 | D85: 3 | E85: 7000011363 | G85: Venta Tarj. 2 Tienda 63 Producto 113 | J85: 101.93 | K85: E | M85: R | N85: 10
A86: 1 | B86: 4205800.00% | C86: 28 | D86: 4 | E86: 4770002100 | G86: IVA Rep. Tienda 63 | J86: 21.4 | K86: E | M86: R | N86: 10
A87: 1 | B87: 4205800.00% | C87: 29 | D87: 1 | K87: E | L87: 1 | M87: R | N87: 10
A88: 1 | B88: 4205800.00% | C88: 29 | D88: 2 | K88: E | M88: R | N88: 10
A89: 1 | B89: 4205800.00% | C89: 29 | D89: 3 | K89: E | M89: R | N89: 10
A90: 1 | C90: 30 | D90: 1 | K90: E | M90: R | N90: 10
A91: 1 | C91: 30 | D91: 2 | K91: E | L91: 1 | M91: R | N91: 10
A92: 1 | B92: 4205800.00% | C92: 31 | D92: 1 | E92: 5720020001 | G92: Bancos Tarj. 3 Tienda 71 | I92: 869.97 | K92: E | M92: R | N92: 11
A93: 1 | B93: 4205800.00% | C93: 31 | D93: 2 | E93: 6690000003 | G93: Comisión Tarj.3 Tienda 71 | I93: 13.25 | K93: E | M93: R | N93: 11
A94: 1 | B94: 4205800.00% | C94: 31 | D94: 3 | E94: 7000011171 | G94: Venta Tarj. 3 Tienda 71 Producto 111 | J94: 802.93 | K94: E | M94: R | N94: 11
A95: 1 | B95: 4205800.00% | C95: 31 | D95: 4 | E95: 4770001000 | G95: IVA Rep. Tienda 71 | J95: 80.29 | K95: E | M95: R | N95: 11
A96: 1 | B96: 4205800.00% | C96: 32 | D96: 1 | K96: E | L96: 1 | M96: R | N96: 11
A97: 1 | B97: 4205800.00% | C97: 32 | D97: 2 | K97: E | M97: R | N97: 11
A98: 1 | B98: 4205800.00% | C98: 32 | D98: 3 | K98: E | M98: R | N98: 11
A99: 1 | C99: 33 | D99: 1 | K99: E | M99: R | N99: 11
A100: 1 | C100: 33 | D100: 2 | K100: E | L100: 1 | M100: R | N100: 11
A101: 1 | B101: 4205800.00% | C101: 34 | D101: 1 | E101: 5720020001 | G101: Bancos Tarj. 4 Tienda 72 | I101: 69.16 | K101: E | M101: R | N101: 12
A102: 1 | B102: 4205800.00% | C102: 34 | D102: 2 | E102: 6690000004 | G102: Comisión Tarj.4 Tienda 72 | I102: 0.59 | K102: E | M102: R | N102: 12
A103: 1 | B103: 4205800.00% | C103: 34 | D103: 3 | E103: 7000011372 | G103: Venta Tarj. 4 Tienda 72 Producto 113 | J103: 57.64 | K103: E | M103: R | N103: 12
A104: 1 | B104: 4205800.00% | C104: 34 | D104: 4 | E104: 4770002100 | G104: IVA Rep. Tienda 72 | J104: 12.11 | K104: E | M104: R | N104: 12
A105: 1 | B105: 4205800.00% | C105: 35 | D105: 1 | K105: E | L105: 1 | M105: R | N105: 12
A106: 1 | B106: 4205800.00% | C106: 35 | D106: 2 | K106: E | M106: R | N106: 12
A107: 1 | B107: 4205800.00% | C107: 35 | D107: 3 | K107: E | M107: R | N107: 12
A108: 1 | C108: 36 | D108: 1 | K108: E | M108: R | N108: 12
A109: 1 | C109: 36 | D109: 2 | K109: E | L109: 1 | M109: R | N109: 12

Sheet ConfigPagosTPV
A1: Hoja con los datos de entrada: | D1: PagosTPV
A2: Datos de salida: | D2: AstosPagosTPV
A3: Primer número de asiento: | D3: 1
A4: Procedimientos a ejecutar previamente: | E4: Macro9 | F4: Macro10
A9: Diario | B9: Fecha | C9: Asiento | D9: Orden | E9: Cuenta | F9: Importe Pts | G9: Concepto | H9: Documento | I9: Debe | J9: Haber | K9: Moneda | L9: Punteo | M9: TipoIVA | N9: Nº IVA | O9: Depto. | P9: Subdepto. | Q9: Imagen
A10: 1 | B10: A | C10: #1 | D10: 1 | E10: M | G10: L | I10: K | K10: AM | M10: AN | N10: AO
A11: 1 | B11: A | C11: #1 | D11: 2 | E11: O | G11: N | J11: K | K11: AM | M11: AN | N11: AO
A12: 1 | B12: A | C12: #2 | D12: 1 | E12: R | G12: Q | I12: P | K12: AM | M12: AN | N12: AO
A13: 1 | B13: A | C13: #2 | D13: 2 | E13: T | G13: S | J13: P | K13: AM | M13: AN | N13: AO
A14: 1 | B14: A | C14: #3 | D14: 1 | E14: X | G14: Y | I14: V | K14: AM | M14: AN | N14: AO
A15: 1 | B15: A | C15: #3 | D15: 2 | E15: I | G15: Z | I15: W | K15: AM | M15: AN | N15: AO
A16: 1 | B16: A | C16: #3 | D16: 3 | E16: AA | G16: AB | J16: U | K16: AM | M16: AN | N16: AO
A17: 1 | B17: A | C17: #4 | D17: 1 | E17: AD | G17: AE | I17: AC | K17: AM | M17: AN | N17: AO
A18: 1 | B18: A | C18: #4 | D18: 2 | E18: AF | G18: AG | J18: AC | K18: AM | M18: AN | N18: AO
A19: 1 | B19: A | C19: #5 | D19: 1 | E19: AI | G19: AJ | I19: AH | K19: AM | M19: AN | N19: AO
A20: 1 | B20: A | C20: #5 | D20: 2 | E20: AK | G20: AL | J20: AH | K20: AM | M20: AN | N20: AO

Sheet PagosTPV
A1: Fecha | B1: ID Pago | C1: Importe | D1: Id Tienda | E1: Id empleado | F1: Nombre gasto/Ing | G1: Cta. Gasto/Ing. | H1: % IVA | I1: Cta. IVA | J1: Cta. Efectivo | K1: Imp. Anticipo | L1: Conc. Anticipo | M1: Cta. Debe Anticipo | N1: Conc. Efectivo Antip. | O1: Cta. Haber Anticipo | P1: Imp. Devolución ant. | Q1: Conc. Devolución | R1: Cta. Debe Devolución | S1: Conc. Gto.Devol. | T1: Cta. Haber Devol. | U1: Imp. Efectivo gastos | V1: Imp. Gastos (Sin IVA) | W1: Imp. IVA Gastos | X1: Cta. Gastos | Y1: Conc. Gastos | Z1: Conc. IVA Gastos | AA1: Cta. Efectivo | AB1: Conc. Efectivo | AC1: Imp. Faltante | AD1: Cta. Pérdida Arque. | AE1: Conc. Pérd. Arque | AF1: Cta. Efectivo Arq. Faltante | AG1: Conc. Efec. Arq. Faltante | AH1: Imp. Arq. Sobrante | AI1: Cta. Efec. Arq. Sobrante | AJ1: Conc. Efec. Arq. Sobrante | AK1: Cta. Ingr. arqueo | AL1: Conc. Ingreso arqueo | AM1: Moneda | AN1: Tipo IVA | AO1: nº IVA
A2: 4205800.00% | B2: 3 | C2: 5.96 | D2: 11 | E2: =IF((OR(B2=1,B2=2)),VLOOKUP(D2,Nóminas!$A$2:$B$22,2),"") ->  | F2: =VLOOKUP(B2,'Pagos tienda'!$A$2:$B$13,2) -> Papelería | G2: =VLOOKUP(B2,'Pagos tienda'!$A$2:$C$13,3)&"00000"&D2 -> 6020000011 | H2: =VLOOKUP(Tabla4[[#This Row],[ID Pago]],Tabla14[[IdPago]:[% IVA]],6) -> 21.00% | I2: =VLOOKUP(B2,'Pagos tienda'!$A$2:$H$13,7) -> 4720002100 | J2: =VLOOKUP(D2,Tiendas!$A$2:$G$27,7) -> 5700000011 | K2: =IF(B2=1,C2,"") ->  | L2: =IF(B2=1,"Anticipo empleado "&E2,"") ->  | M2: =IF(B2=1,G2,"") ->  | N2: =IF(B2=1,"Efectivo empleado "&E2,"") ->  | O2: =IF(B2=1,J2,"") ->  | P2: =IF(B2=2,C2,"") ->  | Q2: =IF(B2=2,"Efectivo Tienda "&Tabla4[[#This Row],[Id Tienda]],"") ->  | R2: =IF(B2=2,J2,"") ->  | S2: =IF(B2=2,"Devolución Anticipo "&E2,"") ->  | T2: =IF(B2=2,G2,"") ->  | U2: =IF(OR(B2=3,B2=4,B2=5,B2=6,B2=7,B2=8,B2=9,B2=10),C2,"") -> 5.96 | V2: =IF(U2="","",IF(U2<6,U2,ROUND(U2/(1+H2),2))) -> 5.96 | W2: =IF(U2="","",IF(U2>6,U2-V2,0)) -> 0 | X2: =IF(OR(B2=3,B2=4,B2=5,B2=6,B2=7,B2=8,B2=9,B2=10),G2,"") -> 6020000011 | Y2: =IF(OR(B2=3,B2=4,B2=5,B2=6,B2=7,B2=8,B2=9,B2=10),"Gasto "&F2&" Tienda "&D2,"") -> Gasto Papelería Tienda 11 | Z2: =IF(OR(U2<6,U2=""),"","IVA soportado Tienda "&Tabla4[[#This Row],[Id Tienda]]) ->  | AA2: =IF(OR(B2=3,B2=4,B2=5,B2=6,B2=7,B2=8,B2=9,B2=10),J2,"") -> 5700000011 | AB2: =IF(OR(B2=3,B2=4,B2=5,B2=6,B2=7,B2=8,B2=9,B2=10),"Efectivo Tienda "&D2,"") -> Efectivo Tienda 11 | AC2: =IF(B2=11,C2,"") ->  | AD2: =IF(B2=11,G2,"") ->  | AE2: =IF(B2=11,"Otras pérdidas en gestión corriente Tienda "&D2,"") ->  | AF2: =IF(B2=11,J2,"") ->  | AG2: =IF(B2=11,"Efectivo Tienda "&D2,"") ->  | AH2: =IF(B2=12,C2,"") ->  | AI2: =IF(B2=12,J2,"") ->  | AJ2: =IF(B2=12,"Efectivo Tienda "&D2,"") ->  | AK2: =IF(B2=12,G2,"") ->  | AL2: =IF(B2=12,"Ingreso por arqueo sobrante Tienda "&D2,"") ->  | AM2: E | AN2: S | AO2: 1
A3: 4205800.00% | B3: 4 | C3: 235.69 | D3: 33 | E3: =IF((OR(B3=1,B3=2)),VLOOKUP(D3,Nóminas!$A$2:$B$22,2),"") ->  | F3: =VLOOKUP(B3,'Pagos tienda'!$A$2:$B$13,2) -> Transportes locales | G3: =VLOOKUP(B3,'Pagos tienda'!$A$2:$C$13,3)&"00000"&D3 -> 6240000033 | H3: =VLOOKUP(Tabla4[[#This Row],[ID Pago]],Tabla14[[IdPago]:[% IVA]],6) -> 21.00% | I3: =VLOOKUP(B3,'Pagos tienda'!$A$2:$H$13,7) -> 4720002100 | J3: =VLOOKUP(D3,Tiendas!$A$2:$G$27,7) -> 5700000033 | K3: =IF(B3=1,C3,"") ->  | L3: =IF(B3=1,"Anticipo empleado "&E3,"") ->  | M3: =IF(B3=1,G3,"") ->  | N3: =IF(B3=1,"Efectivo empleado "&E3,"") ->  | O3: =IF(B3=1,J3,"") ->  | P3: =IF(B3=2,C3,"") ->  | Q3: =IF(B3=2,"Efectivo Tienda "&Tabla4[[#This Row],[Id Tienda]],"") ->  | R3: =IF(B3=2,J3,"") ->  | S3: =IF(B3=2,"Devolución Anticipo "&E3,"") ->  | T3: =IF(B3=2,G3,"") ->  | U3: =IF(OR(B3=3,B3=4,B3=5,B3=6,B3=7,B3=8,B3=9,B3=10),C3,"") -> 235.69 | V3: =IF(U3="","",IF(U3<6,U3,ROUND(U3/(1+H3),2))) -> 194.79 | W3: =IF(U3="","",IF(U3>6,U3-V3,0)) -> 40.9 | X3: =IF(OR(B3=3,B3=4,B3=5,B3=6,B3=7,B3=8,B3=9,B3=10),G3,"") -> 6240000033 | Y3: =IF(OR(B3=3,B3=4,B3=5,B3=6,B3=7,B3=8,B3=9,B3=10),"Gasto "&F3&" Tienda "&D3,"") -> Gasto Transportes locales Tienda 33 | Z3: =IF(OR(U3<6,U3=""),"","IVA soportado Tienda "&Tabla4[[#This Row],[Id Tienda]]) -> IVA soportado Tienda 33 | AA3: =IF(OR(B3=3,B3=4,B3=5,B3=6,B3=7,B3=8,B3=9,B3=10),J3,"") -> 5700000033 | AB3: =IF(OR(B3=3,B3=4,B3=5,B3=6,B3=7,B3=8,B3=9,B3=10),"Efectivo Tienda "&D3,"") -> Efectivo Tienda 33 | AC3: =IF(B3=11,C3,"") ->  | AD3: =IF(B3=11,G3,"") ->  | AE3: =IF(B3=11,"Otras pérdidas en gestión corriente Tienda "&D3,"") ->  | AF3: =IF(B3=11,J3,"") ->  | AG3: =IF(B3=11,"Efectivo Tienda "&D3,"") ->  | AH3: =IF(B3=12,C3,"") ->  | AI3: =IF(B3=12,J3,"") ->  | AJ3: =IF(B3=12,"Efectivo Tienda "&D3,"") ->  | AK3: =IF(B3=12,G3,"") ->  | AL3: =IF(B3=12,"Ingreso por arqueo sobrante Tienda "&D3,"") ->  | AM3: E | AN3: S | AO3: =1+AO2 -> 2
A4: 4205800.00% | B4: 12 | C4: 1.45 | D4: 32 | E4: =IF((OR(B4=1,B4=2)),VLOOKUP(D4,Nóminas!$A$2:$B$22,2),"") ->  | F4: =VLOOKUP(B4,'Pagos tienda'!$A$2:$B$13,2) -> Diferencias de arqueo (sobrante) | G4: =VLOOKUP(B4,'Pagos tienda'!$A$2:$C$13,3)&"00000"&D4 -> 7560000032 | H4: =VLOOKUP(Tabla4[[#This Row],[ID Pago]],Tabla14[[IdPago]:[% IVA]],6) -> 0.00% | I4: =VLOOKUP(B4,'Pagos tienda'!$A$2:$H$13,7) ->  | J4: =VLOOKUP(D4,Tiendas!$A$2:$G$27,7) -> 5700000032 | Q4: =IF(B4=2,"Efectivo Tienda "&Tabla4[[#This Row],[Id Tienda]],"") ->  | Z4: =IF(OR(U4<6,U4=""),"","IVA soportado Tienda "&Tabla4[[#This Row],[Id Tienda]]) ->  | AH4: 1.45 | AI4: 5700000032 | AJ4: Efectivo Tienda 32 | AK4: 7560000032 | AL4: Ingreso por arqueo sobrante Tienda 32 | AM4: E | AN4: S | AO4: =1+AO3 -> 3
A5: 4205800.00% | B5: 8 | C5: 8.25 | D5: 44 | E5: =IF((OR(B5=1,B5=2)),VLOOKUP(D5,Nóminas!$A$2:$B$22,2),"") ->  | F5: =VLOOKUP(B5,'Pagos tienda'!$A$2:$B$13,2) -> Reparaciones básicas | G5: =VLOOKUP(B5,'Pagos tienda'!$A$2:$C$13,3)&"00000"&D5 -> 6220000044 | H5: =VLOOKUP(Tabla4[[#This Row],[ID Pago]],Tabla14[[IdPago]:[% IVA]],6) -> 21.00% | I5: =VLOOKUP(B5,'Pagos tienda'!$A$2:$H$13,7) -> 4720002100 | J5: =VLOOKUP(D5,Tiendas!$A$2:$G$27,7) -> 5700000044 | Q5: =IF(B5=2,"Efectivo Tienda "&Tabla4[[#This Row],[Id Tienda]],"") ->  | U5: 8.25 | V5: 6.82 | W5: 1.43 | X5: 6220000044 | Y5: Gasto Reparaciones básicas Tienda 44 | Z5: =IF(OR(U5<6,U5=""),"","IVA soportado Tienda "&Tabla4[[#This Row],[Id Tienda]]) -> IVA soportado Tienda 44 | AA5: 5700000044 | AB5: Efectivo Tienda 44 | AM5: E | AN5: S | AO5: 4
A6: 4205800.00% | B6: 9 | C6: 365.25 | D6: 62 | E6: =IF((OR(B6=1,B6=2)),VLOOKUP(D6,Nóminas!$A$2:$B$22,2),"") ->  | F6: =VLOOKUP(B6,'Pagos tienda'!$A$2:$B$13,2) -> Impuestos locales | G6: =VLOOKUP(B6,'Pagos tienda'!$A$2:$C$13,3)&"00000"&D6 -> 6310000062 | H6: =VLOOKUP(Tabla4[[#This Row],[ID Pago]],Tabla14[[IdPago]:[% IVA]],6) -> 21.00% | I6: =VLOOKUP(B6,'Pagos tienda'!$A$2:$H$13,7) -> 4720002100 | J6: =VLOOKUP(D6,Tiendas!$A$2:$G$27,7) -> 5700000062 | Q6: =IF(B6=2,"Efectivo Tienda "&Tabla4[[#This Row],[Id Tienda]],"") ->  | U6: 365.25 | V6: 301.86 | W6: 63.39 | X6: 6310000062 | Y6: Gasto Impuestos locales Tienda 62 | Z6: =IF(OR(U6<6,U6=""),"","IVA soportado Tienda "&Tabla4[[#This Row],[Id Tienda]]) -> IVA soportado Tienda 62 | AA6: 5700000062 | AB6: Efectivo Tienda 62 | AM6: E | AN6: S | AO6: 5
A7: 4205800.00% | B7: 4 | C7: 263 | D7: 63 | E7: =IF((OR(B7=1,B7=2)),VLOOKUP(D7,Nóminas!$A$2:$B$22,2),"") ->  | F7: =VLOOKUP(B7,'Pagos tienda'!$A$2:$B$13,2) -> Transportes locales | G7: =VLOOKUP(B7,'Pagos tienda'!$A$2:$C$13,3)&"00000"&D7 -> 6240000063 | H7: =VLOOKUP(Tabla4[[#This Row],[ID Pago]],Tabla14[[IdPago]:[% IVA]],6) -> 21.00% | I7: =VLOOKUP(B7,'Pagos tienda'!$A$2:$H$13,7) -> 4720002100 | J7: =VLOOKUP(D7,Tiendas!$A$2:$G$27,7) -> 5700000063 | Q7: =IF(B7=2,"Efectivo Tienda "&Tabla4[[#This Row],[Id Tienda]],"") ->  | U7: 263 | V7: 217.36 | W7: 45.64 | X7: 6240000063 | Y7: Gasto Transportes locales Tienda 63 | Z7: =IF(OR(U7<6,U7=""),"","IVA soportado Tienda "&Tabla4[[#This Row],[Id Tienda]]) -> IVA soportado Tienda 63 | AA7: 5700000063 | AB7: Efectivo Tienda 63 | AM7: E | AN7: S | AO7: 6
A8: 4205800.00% | B8: 7 | C8: 630 | D8: 72 | E8: =IF((OR(B8=1,B8=2)),VLOOKUP(D8,Nóminas!$A$2:$B$22,2),"") ->  | F8: =VLOOKUP(B8,'Pagos tienda'!$A$2:$B$13,2) -> Alquiler del local | G8: =VLOOKUP(B8,'Pagos tienda'!$A$2:$C$13,3)&"00000"&D8 -> 6210000072 | H8: =VLOOKUP(Tabla4[[#This Row],[ID Pago]],Tabla14[[IdPago]:[% IVA]],6) -> 21.00% | I8: =VLOOKUP(B8,'Pagos tienda'!$A$2:$H$13,7) -> 4720002100 | J8: =VLOOKUP(D8,Tiendas!$A$2:$G$27,7) -> 5700000072 | Q8: =IF(B8=2,"Efectivo Tienda "&Tabla4[[#This Row],[Id Tienda]],"") ->  | U8: 630 | V8: 520.66 | W8: 109.34 | X8: 6210000072 | Y8: Gasto Alquiler del local Tienda 72 | Z8: =IF(OR(U8<6,U8=""),"","IVA soportado Tienda "&Tabla4[[#This Row],[Id Tienda]]) -> IVA soportado Tienda 72 | AA8: 5700000072 | AB8: Efectivo Tienda 72 | AM8: E | AN8: S | AO8: 7
A9: 4205800.00% | B9: 1 | C9: 1050 | D9: 15 | E9: 15 | F9: =VLOOKUP(B9,'Pagos tienda'!$A$2:$B$13,2) -> Anticipos a empleados | G9: =VLOOKUP(B9,'Pagos tienda'!$A$2:$C$13,3)&"00000"&D9 -> 4600000015 | H9: =VLOOKUP(Tabla4[[#This Row],[ID Pago]],Tabla14[[IdPago]:[% IVA]],6) -> 0.00% | I9: =VLOOKUP(B9,'Pagos tienda'!$A$2:$H$13,7) ->  | J9: =VLOOKUP(D9,Tiendas!$A$2:$G$27,7) -> 5700000015 | K9: 1050 | L9: Anticipo empleado 15 | M9: 4600000015 | N9: Efectivo empleado 15 | O9: 5700000015 | Q9: =IF(B9=2,"Efectivo Tienda "&Tabla4[[#This Row],[Id Tienda]],"") ->  | Z9: =IF(OR(U9<6,U9=""),"","IVA soportado Tienda "&Tabla4[[#This Row],[Id Tienda]]) ->  | AM9: E | AN9: S | AO9: 8
A10: 4205800.00% | B10: 2 | C10: 1050 | D10: 72 | E10: 20 | F10: =VLOOKUP(B10,'Pagos tienda'!$A$2:$B$13,2) -> Devolución de anticipos a empleados | G10: =VLOOKUP(B10,'Pagos tienda'!$A$2:$C$13,3)&"00000"&D10 -> 4600000072 | H10: =VLOOKUP(Tabla4[[#This Row],[ID Pago]],Tabla14[[IdPago]:[% IVA]],6) -> 0.00% | I10: =VLOOKUP(B10,'Pagos tienda'!$A$2:$H$13,7) ->  | J10: =VLOOKUP(D10,Tiendas!$A$2:$G$27,7) -> 5700000072 | P10: 1050 | Q10: =IF(B10=2,"Efectivo Tienda "&Tabla4[[#This Row],[Id Tienda]],"") -> Efectivo Tienda 72 | R10: 5700000072 | S10: Devolución Anticipo 20 | T10: 4600000072 | Z10: =IF(OR(U10<6,U10=""),"","IVA soportado Tienda "&Tabla4[[#This Row],[Id Tienda]]) ->  | AM10: E | AN10: S | AO10: 9
A11: 4205800.00% | B11: 10 | C11: 73 | D11: 71 | E11: =IF((OR(B11=1,B11=2)),VLOOKUP(D11,Nóminas!$A$2:$B$22,2),"") ->  | F11: =VLOOKUP(B11,'Pagos tienda'!$A$2:$B$13,2) -> Comunidad de propietarios | G11: =VLOOKUP(B11,'Pagos tienda'!$A$2:$C$13,3)&"00000"&D11 -> 6290000071 | H11: =VLOOKUP(Tabla4[[#This Row],[ID Pago]],Tabla14[[IdPago]:[% IVA]],6) -> 21.00% | I11: =VLOOKUP(B11,'Pagos tienda'!$A$2:$H$13,7) -> 4720002100 | J11: =VLOOKUP(D11,Tiendas!$A$2:$G$27,7) -> 5700000071 | Q11: =IF(B11=2,"Efectivo Tienda "&Tabla4[[#This Row],[Id Tienda]],"") ->  | U11: 73 | V11: 60.33 | W11: 12.67 | X11: 6290000071 | Y11: Gasto Comunidad de propietarios Tienda 71 | Z11: =IF(OR(U11<6,U11=""),"","IVA soportado Tienda "&Tabla4[[#This Row],[Id Tienda]]) -> IVA soportado Tienda 71 | AA11: 5700000071 | AB11: Efectivo Tienda 71 | AM11: E | AN11: S | AO11: 10
A12: 4205800.00% | B12: 11 | C12: 3.54 | D12: 42 | E12: =IF((OR(B12=1,B12=2)),VLOOKUP(D12,Nóminas!$A$2:$B$22,2),"") ->  | F12: =VLOOKUP(B12,'Pagos tienda'!$A$2:$B$13,2) -> Diferencias de arqueo (faltante) | G12: =VLOOKUP(B12,'Pagos tienda'!$A$2:$C$13,3)&"00000"&D12 -> 6590000042 | H12: =VLOOKUP(Tabla4[[#This Row],[ID Pago]],Tabla14[[IdPago]:[% IVA]],6) -> 0.00% | I12: =VLOOKUP(B12,'Pagos tienda'!$A$2:$H$13,7) ->  | J12: =VLOOKUP(D12,Tiendas!$A$2:$G$27,7) -> 5700000042 | Q12: =IF(B12=2,"Efectivo Tienda "&Tabla4[[#This Row],[Id Tienda]],"") ->  | Z12: =IF(OR(U12<6,U12=""),"","IVA soportado Tienda "&Tabla4[[#This Row],[Id Tienda]]) ->  | AC12: 3.54 | AD12: 6590000042 | AE12: Otras pérdidas en gestión corriente Tienda 42 | AF12: 5700000042 | AG12: Efectivo Tienda 42 | AM12: E | AN12: S | AO12: 11
A13: 4205800.00% | B13: 6 | C13: 147.3 | D13: 32 | E13: =IF((OR(B13=1,B13=2)),VLOOKUP(D13,Nóminas!$A$2:$B$22,2),"") ->  | F13: =VLOOKUP(B13,'Pagos tienda'!$A$2:$B$13,2) -> Mantenimiento inmovilizado | G13: =VLOOKUP(B13,'Pagos tienda'!$A$2:$C$13,3)&"00000"&D13 -> 6220000032 | H13: =VLOOKUP(Tabla4[[#This Row],[ID Pago]],Tabla14[[IdPago]:[% IVA]],6) -> 21.00% | I13: =VLOOKUP(B13,'Pagos tienda'!$A$2:$H$13,7) -> 4720002100 | J13: =VLOOKUP(D13,Tiendas!$A$2:$G$27,7) -> 5700000032 | Q13: =IF(B13=2,"Efectivo Tienda "&Tabla4[[#This Row],[Id Tienda]],"") ->  | U13: 147.3 | V13: 121.74 | W13: 25.56 | X13: 6220000032 | Y13: Gasto Mantenimiento inmovilizado Tienda 32 | Z13: =IF(OR(U13<6,U13=""),"","IVA soportado Tienda "&Tabla4[[#This Row],[Id Tienda]]) -> IVA soportado Tienda 32 | AA13: 5700000032 | AB13: Efectivo Tienda 32 | AM13: E | AN13: S | AO13: 12

Sheet AstosPagosTPV
A1: Diario | B1: Fecha | C1: Asiento | D1: Orden | E1: Cuenta | F1: Importe Pts | G1: Concepto | H1: Documento | I1: Debe | J1: Haber | K1: Moneda | L1: Punteo | M1: TipoIVA | N1: Nº IVA | O1: Depto. | P1: Subdepto. | Q1: Imagen
A2: 1 | B2: 4205800.00% | C2: 1 | D2: 1 | K2: E | M2: S | N2: 1
A3: 1 | B3: 4205800.00% | C3: 1 | D3: 2 | K3: E | M3: S | N3: 1
A4: 1 | B4: 4205800.00% | C4: 2 | D4: 1 | K4: E | M4: S | N4: 1
A5: 1 | B5: 4205800.00% | C5: 2 | D5: 2 | K5: E | M5: S | N5: 1
A6: 1 | B6: 4205800.00% | C6: 3 | D6: 1 | E6: 6020000011 | G6: Gasto Papelería Tienda 11 | I6: 5.96 | K6: E | M6: S | N6: 1
A7: 1 | B7: 4205800.00% | C7: 3 | D7: 2 | E7: 4720002100 | I7: 0 | K7: E | M7: S | N7: 1
A8: 1 | B8: 4205800.00% | C8: 3 | D8: 3 | E8: 5700000011 | G8: Efectivo Tienda 11 | J8: 5.96 | K8: E | M8: S | N8: 1
A9: 1 | B9: 4205800.00% | C9: 4 | D9: 1 | K9: E | M9: S | N9: 1
A10: 1 | B10: 4205800.00% | C10: 4 | D10: 2 | K10: E | M10: S | N10: 1
A11: 1 | B11: 4205800.00% | C11: 5 | D11: 1 | K11: E | M11: S | N11: 1
A12: 1 | B12: 4205800.00% | C12: 5 | D12: 2 | K12: E | M12: S | N12: 1
A13: 1 | B13: 4205800.00% | C13: 6 | D13: 1 | K13: E | M13: S | N13: 2
A14: 1 | B14: 4205800.00% | C14: 6 | D14: 2 | K14: E | M14: S | N14: 2
A15: 1 | B15: 4205800.00% | C15: 7 | D15: 1 | K15: E | M15: S | N15: 2
A16: 1 | B16: 4205800.00% | C16: 7 | D16: 2 | K16: E | M16: S | N16: 2
A17: 1 | B17: 4205800.00% | C17: 8 | D17: 1 | E17: 6240000033 | G17: Gasto Transportes locales Tienda 33 | I17: 194.79 | K17: E | M17: S | N17: 2
A18: 1 | B18: 4205800.00% | C18: 8 | D18: 2 | E18: 4720002100 | G18: IVA soportado Tienda 33 | I18: 40.9 | K18: E | M18: S | N18: 2
A19: 1 | B19: 4205800.00% | C19: 8 | D19: 3 | E19: 5700000033 | G19: Efectivo Tienda 33 | J19: 235.69 | K19: E | M19: S | N19: 2
A20: 1 | B20: 4205800.00% | C20: 9 | D20: 1 | K20: E | M20: S | N20: 2
A21: 1 | B21: 4205800.00% | C21: 9 | D21: 2 | K21: E | M21: S | N21: 2
A22: 1 | B22: 4205800.00% | C22: 10 | D22: 1 | K22: E | M22: S | N22: 2
A23: 1 | B23: 4205800.00% | C23: 10 | D23: 2 | K23: E | M23: S | N23: 2
A24: 1 | B24: 4205800.00% | C24: 11 | D24: 1 | K24: E | M24: S | N24: 3
A25: 1 | B25: 4205800.00% | C25: 11 | D25: 2 | K25: E | M25: S | N25: 3
A26: 1 | B26: 4205800.00% | C26: 12 | D26: 1 | K26: E | M26: S | N26: 3
A27: 1 | B27: 4205800.00% | C27: 12 | D27: 2 | K27: E | M27: S | N27: 3
A28: 1 | B28: 4205800.00% | C28: 13 | D28: 1 | K28: E | M28: S | N28: 3
A29: 1 | B29: 4205800.00% | C29: 13 | D29: 2 | K29: E | M29: S | N29: 3
A30: 1 | B30: 4205800.00% | C30: 13 | D30: 3 | K30: E | M30: S | N30: 3
A31: 1 | B31: 4205800.00% | C31: 14 | D31: 1 | K31: E | M31: S | N31: 3
A32: 1 | B32: 4205800.00% | C32: 14 | D32: 2 | K32: E | M32: S | N32: 3
A33: 1 | B33: 4205800.00% | C33: 15 | D33: 1 | E33: 5700000032 | G33: Efectivo Tienda 32 | I33: 1.45 | K33: E | M33: S | N33: 3
A34: 1 | B34: 4205800.00% | C34: 15 | D34: 2 | E34: 7560000032 | G34: Ingreso arqueo sobrante Tienda 32 | J34: 1.45 | K34: E | M34: S | N34: 3
A35: 1 | B35: 4205800.00% | C35: 16 | D35: 1 | K35: E | M35: S | N35: 4
A36: 1 | B36: 4205800.00% | C36: 16 | D36: 2 | K36: E | M36: S | N36: 4
A37: 1 | B37: 4205800.00% | C37: 17 | D37: 1 | K37: E | M37: S | N37: 4
A38: 1 | B38: 4205800.00% | C38: 17 | D38: 2 | K38: E | M38: S | N38: 4
A39: 1 | B39: 4205800.00% | C39: 18 | D39: 1 | E39: 6220000044 | G39: Gasto Reparaciones básicas Tienda 44 | I39: 6.82 | K39: E | M39: S | N39: 4
A40: 1 | B40: 4205800.00% | C40: 18 | D40: 2 | E40: 4720002100 | G40: IVA soportado Tienda 44 | I40: 1.43 | K40: E | M40: S | N40: 4
A41: 1 | B41: 4205800.00% | C41: 18 | D41: 3 | E41: 5700000044 | G41: Efectivo Tienda 44 | J41: 8.25 | K41: E | M41: S | N41: 4
A42: 1 | B42: 4205800.00% | C42: 19 | D42: 1 | K42: E | M42: S | N42: 4
A43: 1 | B43: 4205800.00% | C43: 19 | D43: 2 | K43: E | M43: S | N43: 4
A44: 1 | B44: 4205800.00% | C44: 20 | D44: 1 | K44: E | M44: S | N44: 4
A45: 1 | B45: 4205800.00% | C45: 20 | D45: 2 | K45: E | M45: S | N45: 4
A46: 1 | B46: 4205800.00% | C46: 21 | D46: 1 | K46: E | M46: S | N46: 5
A47: 1 | B47: 4205800.00% | C47: 21 | D47: 2 | K47: E | M47: S | N47: 5
A48: 1 | B48: 4205800.00% | C48: 22 | D48: 1 | K48: E | M48: S | N48: 5
A49: 1 | B49: 4205800.00% | C49: 22 | D49: 2 | K49: E | M49: S | N49: 5
A50: 1 | B50: 4205800.00% | C50: 23 | D50: 1 | E50: 6310000062 | G50: Gasto Impuestos locales Tienda 62 | I50: 301.86 | K50: E | M50: S | N50: 5
A51: 1 | B51: 4205800.00% | C51: 23 | D51: 2 | E51: 4720002100 | G51: IVA soportado Tienda 62 | I51: 63.39 | K51: E | M51: S | N51: 5
A52: 1 | B52: 4205800.00% | C52: 23 | D52: 3 | E52: 5700000062 | G52: Efectivo Tienda 62 | J52: 365.25 | K52: E | M52: S | N52: 5
A53: 1 | B53: 4205800.00% | C53: 24 | D53: 1 | K53: E | M53: S | N53: 5
A54: 1 | B54: 4205800.00% | C54: 24 | D54: 2 | K54: E | M54: S | N54: 5
A55: 1 | B55: 4205800.00% | C55: 25 | D55: 1 | K55: E | M55: S | N55: 5
A56: 1 | B56: 4205800.00% | C56: 25 | D56: 2 | K56: E | M56: S | N56: 5
A57: 1 | B57: 4205800.00% | C57: 26 | D57: 1 | K57: E | M57: S | N57: 6
A58: 1 | B58: 4205800.00% | C58: 26 | D58: 2 | K58: E | M58: S | N58: 6
A59: 1 | B59: 4205800.00% | C59: 27 | D59: 1 | K59: E | M59: S | N59: 6
A60: 1 | B60: 4205800.00% | C60: 27 | D60: 2 | K60: E | M60: S | N60: 6
A61: 1 | B61: 4205800.00% | C61: 28 | D61: 1 | E61: 6240000063 | G61: Gasto Transportes locales Tienda 63 | I61: 217.36 | K61: E | M61: S | N61: 6
A62: 1 | B62: 4205800.00% | C62: 28 | D62: 2 | E62: 4720002100 | G62: IVA soportado Tienda 63 | I62: 45.64 | K62: E | M62: S | N62: 6
A63: 1 | B63: 4205800.00% | C63: 28 | D63: 3 | E63: 5700000063 | G63: Efectivo Tienda 63 | J63: 263 | K63: E | M63: S | N63: 6
A64: 1 | B64: 4205800.00% | C64: 29 | D64: 1 | K64: E | M64: S | N64: 6
A65: 1 | B65: 4205800.00% | C65: 29 | D65: 2 | K65: E | M65: S | N65: 6
A66: 1 | B66: 4205800.00% | C66: 30 | D66: 1 | K66: E | M66: S | N66: 6
A67: 1 | B67: 4205800.00% | C67: 30 | D67: 2 | K67: E | M67: S | N67: 6
A68: 1 | B68: 4205800.00% | C68: 31 | D68: 1 | K68: E | M68: S | N68: 7
A69: 1 | B69: 4205800.00% | C69: 31 | D69: 2 | K69: E | M69: S | N69: 7
A70: 1 | B70: 4205800.00% | C70: 32 | D70: 1 | K70: E | M70: S | N70: 7
A71: 1 | B71: 4205800.00% | C71: 32 | D71: 2 | K71: E | M71: S | N71: 7
A72: 1 | B72: 4205800.00% | C72: 33 | D72: 1 | E72: 6210000072 | G72: Gasto Alquiler del local Tienda 72 | I72: 520.66 | K72: E | M72: S | N72: 7
A73: 1 | B73: 4205800.00% | C73: 33 | D73: 2 | E73: 4720002100 | G73: IVA soportado Tienda 72 | I73: 109.34 | K73: E | M73: S | N73: 7
A74: 1 | B74: 4205800.00% | C74: 33 | D74: 3 | E74: 5700000072 | G74: Efectivo Tienda 72 | J74: 630 | K74: E | M74: S | N74: 7
A75: 1 | B75: 4205800.00% | C75: 34 | D75: 1 | K75: E | M75: S | N75: 7
A76: 1 | B76: 4205800.00% | C76: 34 | D76: 2 | K76: E | M76: S | N76: 7
A77: 1 | B77: 4205800.00% | C77: 35 | D77: 1 | K77: E | M77: S | N77: 7
A78: 1 | B78: 4205800.00% | C78: 35 | D78: 2 | K78: E | M78: S | N78: 7
A79: 1 | B79: 4205800.00% | C79: 36 | D79: 1 | E79: 4600000015 | G79: Anticipo empleado 15 | I79: 1050 | K79: E | M79: S | N79: 8
A80: 1 | B80: 4205800.00% | C80: 36 | D80: 2 | E80: 5700000015 | G80: Efectivo empleado 15 | J80: 1050 | K80: E | M80: S | N80: 8
A81: 1 | B81: 4205800.00% | C81: 37 | D81: 1 | K81: E | M81: S | N81: 8
A82: 1 | B82: 4205800.00% | C82: 37 | D82: 2 | K82: E | M82: S | N82: 8
A83: 1 | B83: 4205800.00% | C83: 38 | D83: 1 | K83: E | M83: S | N83: 8
A84: 1 | B84: 4205800.00% | C84: 38 | D84: 2 | K84: E | M84: S | N84: 8
A85: 1 | B85: 4205800.00% | C85: 38 | D85: 3 | K85: E | M85: S | N85: 8
A86: 1 | B86: 4205800.00% | C86: 39 | D86: 1 | K86: E | M86: S | N86: 8
A87: 1 | B87: 4205800.00% | C87: 39 | D87: 2 | K87: E | M87: S | N87: 8
A88: 1 | B88: 4205800.00% | C88: 40 | D88: 1 | K88: E | M88: S | N88: 8
A89: 1 | B89: 4205800.00% | C89: 40 | D89: 2 | K89: E | M89: S | N89: 8
A90: 1 | B90: 4205800.00% | C90: 41 | D90: 1 | K90: E | M90: S | N90: 9
A91: 1 | B91: 4205800.00% | C91: 41 | D91: 2 | K91: E | M91: S | N91: 9
A92: 1 | B92: 4205800.00% | C92: 42 | D92: 1 | E92: 5700000072 | G92: Efectivo Tienda 72 | I92: 1050 | K92: E | M92: S | N92: 9
A93: 1 | B93: 4205800.00% | C93: 42 | D93: 2 | E93: 4600000072 | G93: Devolución Anticipo 20 | J93: 1050 | K93: E | M93: S | N93: 9
A94: 1 | B94: 4205800.00% | C94: 43 | D94: 1 | K94: E | M94: S | N94: 9
A95: 1 | B95: 4205800.00% | C95: 43 | D95: 2 | K95: E | M95: S | N95: 9
A96: 1 | B96: 4205800.00% | C96: 43 | D96: 3 | K96: E | M96: S | N96: 9
A97: 1 | B97: 4205800.00% | C97: 44 | D97: 1 | K97: E | M97: S | N97: 9
A98: 1 | B98: 4205800.00% | C98: 44 | D98: 2 | K98: E | M98: S | N98: 9
A99: 1 | B99: 4205800.00% | C99: 45 | D99: 1 | K99: E | M99: S | N99: 9
A100: 1 | B100: 4205800.00% | C100: 45 | D100: 2 | K100: E | M100: S | N100: 9
A101: 1 | B101: 4205800.00% | C101: 46 | D101: 1 | K101: E | M101: S | N101: 10
A102: 1 | B102: 4205800.00% | C102: 46 | D102: 2 | K102: E | M102: S | N102: 10
A103: 1 | B103: 4205800.00% | C103: 47 | D103: 1 | K103: E | M103: S | N103: 10
A104: 1 | B104: 4205800.00% | C104: 47 | D104: 2 | K104: E | M104: S | N104: 10
A105: 1 | B105: 4205800.00% | C105: 48 | D105: 1 | E105: 6290000071 | G105: Gasto Comunidad de propietarios Tienda 71 | I105: 60.33 | K105: E | M105: S | N105: 10
A106: 1 | B106: 4205800.00% | C106: 48 | D106: 2 | E106: 4720002100 | G106: IVA soportado Tienda 71 | I106: 12.67 | K106: E | M106: S | N106: 10
A107: 1 | B107: 4205800.00% | C107: 48 | D107: 3 | E107: 5700000071 | G107: Efectivo Tienda 71 | J107: 73 | K107: E | M107: S | N107: 10
A108: 1 | B108: 4205800.00% | C108: 49 | D108: 1 | K108: E | M108: S | N108: 10
A109: 1 | B109: 4205800.00% | C109: 49 | D109: 2 | K109: E | M109: S | N109: 10
A110: 1 | B110: 4205800.00% | C110: 50 | D110: 1 | K110: E | M110: S | N110: 10
A111: 1 | B111: 4205800.00% | C111: 50 | D111: 2 | K111: E | M111: S | N111: 10
A112: 1 | B112: 4205800.00% | C112: 51 | D112: 1 | K112: E | M112: S | N112: 11
A113: 1 | B113: 4205800.00% | C113: 51 | D113: 2 | K113: E | M113: S | N113: 11
A114: 1 | B114: 4205800.00% | C114: 52 | D114: 1 | K114: E | M114: S | N114: 11
A115: 1 | B115: 4205800.00% | C115: 52 | D115: 2 | K115: E | M115: S | N115: 11
A116: 1 | B116: 4205800.00% | C116: 53 | D116: 1 | K116: E | M116: S | N116: 11
A117: 1 | B117: 4205800.00% | C117: 53 | D117: 2 | K117: E | M117: S | N117: 11
A118: 1 | B118: 4205800.00% | C118: 53 | D118: 3 | K118: E | M118: S | N118: 11
A119: 1 | B119: 4205800.00% | C119: 54 | D119: 1 | E119: 6590000042 | G119: Otras pérdidas en gestión corriente Tienda 42 | I119: 3.54 | K119: E | M119: S | N119: 11
A120: 1 | B120: 4205800.00% | C120: 54 | D120: 2 | E120: 5700000042 | G120: Efectivo Tienda 42 | J120: 3.54 | K120: E | M120: S | N120: 11
A121: 1 | B121: 4205800.00% | C121: 55 | D121: 1 | K121: E | M121: S | N121: 11
A122: 1 | B122: 4205800.00% | C122: 55 | D122: 2 | K122: E | M122: S | N122: 11
A123: 1 | B123: 4205800.00% | C123: 56 | D123: 1 | K123: E | M123: S | N123: 12
A124: 1 | B124: 4205800.00% | C124: 56 | D124: 2 | K124: E | M124: S | N124: 12
A125: 1 | B125: 4205800.00% | C125: 57 | D125: 1 | K125: E | M125: S | N125: 12
A126: 1 | B126: 4205800.00% | C126: 57 | D126: 2 | K126: E | M126: S | N126: 12
A127: 1 | B127: 4205800.00% | C127: 58 | D127: 1 | E127: 6220000032 | G127: Gasto Mantenimiento inmovilizado Tienda 32 | I127: 121.74 | K127: E | M127: S | N127: 12
A128: 1 | B128: 4205800.00% | C128: 58 | D128: 2 | E128: 4720002100 | G128: IVA soportado Tienda 32 | I128: 25.56 | K128: E | M128: S | N128: 12
A129: 1 | B129: 4205800.00% | C129: 58 | D129: 3 | E129: 5700000032 | G129: Efectivo Tienda 32 | J129: 147.3 | K129: E | M129: S | N129: 12
A130: 1 | B130: 4205800.00% | C130: 59 | D130: 1 | K130: E | M130: S | N130: 12
A131: 1 | B131: 4205800.00% | C131: 59 | D131: 2 | K131: E | M131: S | N131: 12
A132: 1 | B132: 4205800.00% | C132: 60 | D132: 1 | K132: E | M132: S | N132: 12
A133: 1 | B133: 4205800.00% | C133: 60 | D133: 2 | K133: E | M133: S | N133: 12

Sheet Nóminas
A1: Id Empleado | B1: Nombre | C1: Sueldo | D1: Cta. Salario | E1: Cta.Dietas | F1: Cta. IRPF | G1: Cta. S. Social | H1: Cta.Gasto S.S Empr. | I1: Cta. Remun. Pte | J1: Cta. Anticipo | K1: Cta. Banco | L1: Id Sindicato | M1: Cta. Sindicato | N1: Id Tienda
A2: 1 | B2: Del Río Celorio Carlos | C2: 1050 | D2: ="640000"&N2&TEXT(A2,"00") -> 6400001501 | E2: ="629000"&N2&TEXT(A2,"00") -> 6290001501 | F2: ="475100"&N2&TEXT(A2,"00") -> 4751001501 | G2: ="476000"&N2&TEXT(A2,"00") -> 4760001501 | H2: ="642000"&N2&TEXT(A2,"00") -> 6420001501 | I2: ="465000"&TEXT(N2,"00")&TEXT(A2,"00") -> 4650001501 | J2: ="460000"&N2&TEXT(A2,"00") -> 4600001501 | K2: =VLOOKUP(N2,Tabla6[[Id Tienda]:[Cta. Banco Efectivo]],10) -> 5720010002 | M2: =IF(L2="","",VLOOKUP(L2,Tabla18[],4)&Nóminas!N2&TEXT(Nóminas!A2,"00")) ->  | N2: 15
A3: 2 | B3: Deus Bouzas Beatriz | C3: 1050 | D3: 6400003202 | E3: 6290003202 | F3: 4751003202 | G3: 4760003202 | H3: 6420003202 | I3: 4650003202 | J3: 4600003202 | K3: =VLOOKUP(N3,Tabla6[[Id Tienda]:[Cta. Banco Efectivo]],10) -> 5720010001 | L3: 2 | M3: =IF(L3="","",VLOOKUP(L3,Tabla18[],4)&Nóminas!N3&TEXT(Nóminas!A3,"00")) -> 4120023202 | N3: 32
A4: 3 | B4: Devesa Neira Maria Ester | C4: 1050 | D4: 6400003203 | E4: 6290003203 | F4: 4751003203 | G4: 4760003203 | H4: 6420003203 | I4: 4650003203 | J4: 4600003203 | K4: =VLOOKUP(N4,Tabla6[[Id Tienda]:[Cta. Banco Efectivo]],10) -> 5720010001 | M4: =IF(L4="","",VLOOKUP(L4,Tabla18[],4)&Nóminas!N4&TEXT(Nóminas!A4,"00")) ->  | N4: 32
A5: 4 | B5: Diaz Castro Daniel | C5: 1050 | D5: 6400003304 | E5: 6290003304 | F5: 4751003304 | G5: 4760003304 | H5: 6420003304 | I5: 4650003304 | J5: 4600003304 | K5: =VLOOKUP(N5,Tabla6[[Id Tienda]:[Cta. Banco Efectivo]],10) -> 5720010001 | M5: =IF(L5="","",VLOOKUP(L5,Tabla18[],4)&Nóminas!N5&TEXT(Nóminas!A5,"00")) ->  | N5: 33
A6: 5 | B6: Diaz Diaz De Labra Manuel | C6: 1050 | D6: 6400004405 | E6: 6290004405 | F6: 4751004405 | G6: 4760004405 | H6: 6420004405 | I6: 4650004405 | J6: 4600004405 | K6: =VLOOKUP(N6,Tabla6[[Id Tienda]:[Cta. Banco Efectivo]],10) -> 5720010003 | M6: =IF(L6="","",VLOOKUP(L6,Tabla18[],4)&Nóminas!N6&TEXT(Nóminas!A6,"00")) ->  | N6: 44
A7: 6 | B7: Díaz Gómez Hilda | C7: 1050 | D7: 6400005306 | E7: 6290005306 | F7: 4751005306 | G7: 4760005306 | H7: 6420005306 | I7: 4650005306 | J7: 4600005306 | K7: =VLOOKUP(N7,Tabla6[[Id Tienda]:[Cta. Banco Efectivo]],10) -> 5720010002 | L7: 2 | M7: =IF(L7="","",VLOOKUP(L7,Tabla18[],4)&Nóminas!N7&TEXT(Nóminas!A7,"00")) -> 4120025306 | N7: 53
A8: 7 | B8: Diaz Gonzalez Guadalupe | C8: 1050 | D8: 6400005407 | E8: 6290005407 | F8: 4751005407 | G8: 4760005407 | H8: 6420005407 | I8: 4650005407 | J8: 4600005407 | K8: =VLOOKUP(N8,Tabla6[[Id Tienda]:[Cta. Banco Efectivo]],10) -> 5720010005 | M8: =IF(L8="","",VLOOKUP(L8,Tabla18[],4)&Nóminas!N8&TEXT(Nóminas!A8,"00")) ->  | N8: 54
A9: 8 | B9: Díaz Modroño Carlos | C9: 1050 | D9: 6400006208 | E9: 6290006208 | F9: 4751006208 | G9: 4760006208 | H9: 6420006208 | I9: 4650006208 | J9: 4600006208 | K9: =VLOOKUP(N9,Tabla6[[Id Tienda]:[Cta. Banco Efectivo]],10) -> 5720010006 | M9: =IF(L9="","",VLOOKUP(L9,Tabla18[],4)&Nóminas!N9&TEXT(Nóminas!A9,"00")) ->  | N9: 62
A10: 9 | B10: Diéguez González Rubén | C10: 1050 | D10: 6400006109 | E10: 6290006109 | F10: 4751006109 | G10: 4760006109 | H10: 6420006109 | I10: 4650006109 | J10: 4600006109 | K10: =VLOOKUP(N10,Tabla6[[Id Tienda]:[Cta. Banco Efectivo]],10) -> 5720010006 | L10: 1 | M10: =IF(L10="","",VLOOKUP(L10,Tabla18[],4)&Nóminas!N10&TEXT(Nóminas!A10,"00")) -> 4120016109 | N10: 61
A11: 10 | B11: Domínguez Domínguez Noelia | C11: 1050 | D11: 6400006310 | E11: 6290006310 | F11: 4751006310 | G11: 4760006310 | H11: 6420006310 | I11: 4650006310 | J11: 4600006310 | K11: =VLOOKUP(N11,Tabla6[[Id Tienda]:[Cta. Banco Efectivo]],10) -> 5720010006 | L11: 2 | M11: =IF(L11="","",VLOOKUP(L11,Tabla18[],4)&Nóminas!N11&TEXT(Nóminas!A11,"00")) -> 4120026310 | N11: 63
A12: 11 | B12: Domínguez Froján Pablo | C12: 1050 | D12: 6400001111 | E12: 6290001111 | F12: 4751001111 | G12: 4760001111 | H12: 6420001111 | I12: 4650001111 | J12: 4600001111 | K12: =VLOOKUP(N12,Tabla6[[Id Tienda]:[Cta. Banco Efectivo]],10) -> 5720010003 | M12: =IF(L12="","",VLOOKUP(L12,Tabla18[],4)&Nóminas!N12&TEXT(Nóminas!A12,"00")) ->  | N12: 11
A13: 12 | B13: Domínguez Ribes Borja | C13: 1050 | D13: 6400004212 | E13: 6290004212 | F13: 4751004212 | G13: 4760004212 | H13: 6420004212 | I13: 4650004212 | J13: 4600004212 | K13: =VLOOKUP(N13,Tabla6[[Id Tienda]:[Cta. Banco Efectivo]],10) -> 5720010003 | M13: =IF(L13="","",VLOOKUP(L13,Tabla18[],4)&Nóminas!N13&TEXT(Nóminas!A13,"00")) ->  | N13: 42
A14: 13 | B14: Domínguez Soutullo Raquel | C14: 1050 | D14: 6400001113 | E14: 6290001113 | F14: 4751001113 | G14: 4760001113 | H14: 6420001113 | I14: 4650001113 | J14: 4600001113 | K14: =VLOOKUP(N14,Tabla6[[Id Tienda]:[Cta. Banco Efectivo]],10) -> 5720010003 | M14: =IF(L14="","",VLOOKUP(L14,Tabla18[],4)&Nóminas!N14&TEXT(Nóminas!A14,"00")) ->  | N14: 11
A15: 14 | B15: Domínguez Vigo Cristina | C15: 1050 | D15: 6400004214 | E15: 6290004214 | F15: 4751004214 | G15: 4760004214 | H15: 6420004214 | I15: 4650004214 | J15: 4600004214 | K15: =VLOOKUP(N15,Tabla6[[Id Tienda]:[Cta. Banco Efectivo]],10) -> 5720010003 | M15: =IF(L15="","",VLOOKUP(L15,Tabla18[],4)&Nóminas!N15&TEXT(Nóminas!A15,"00")) ->  | N15: 42
A16: 15 | B16: Dopereiro García Alba | C16: 1050 | D16: 6400007115 | E16: 6290007115 | F16: 4751007115 | G16: 4760007115 | H16: 6420007115 | I16: 4650007115 | J16: 4600007115 | K16: =VLOOKUP(N16,Tabla6[[Id Tienda]:[Cta. Banco Efectivo]],10) -> 5720010004 | M16: =IF(L16="","",VLOOKUP(L16,Tabla18[],4)&Nóminas!N16&TEXT(Nóminas!A16,"00")) ->  | N16: 71
A17: 16 | B17: Dopico Diaz Pedro | C17: 1050 | D17: 6400007216 | E17: 6290007216 | F17: 4751007216 | G17: 4760007216 | H17: 6420007216 | I17: 4650007216 | J17: 4600007216 | K17: =VLOOKUP(N17,Tabla6[[Id Tienda]:[Cta. Banco Efectivo]],10) -> 5720010004 | L17: 1 | M17: =IF(L17="","",VLOOKUP(L17,Tabla18[],4)&Nóminas!N17&TEXT(Nóminas!A17,"00")) -> 4120017216 | N17: 72
A18: 17 | B18: Dopico Saavedra Paula | C18: 1050 | D18: 6400007217 | E18: 6290007217 | F18: 4751007217 | G18: 4760007217 | H18: 6420007217 | I18: 4650007217 | J18: 4600007217 | K18: =VLOOKUP(N18,Tabla6[[Id Tienda]:[Cta. Banco Efectivo]],10) -> 5720010004 | M18: =IF(L18="","",VLOOKUP(L18,Tabla18[],4)&Nóminas!N18&TEXT(Nóminas!A18,"00")) ->  | N18: 72
A19: 18 | B19: Dorribo Martínez Tomás | C19: 1050 | D19: 6400004418 | E19: 6290004418 | F19: 4751004418 | G19: 4760004418 | H19: 6420004418 | I19: 4650004418 | J19: 4600004418 | K19: =VLOOKUP(N19,Tabla6[[Id Tienda]:[Cta. Banco Efectivo]],10) -> 5720010003 | M19: =IF(L19="","",VLOOKUP(L19,Tabla18[],4)&Nóminas!N19&TEXT(Nóminas!A19,"00")) ->  | N19: 44
A20: 19 | B20: Dozo Duarte María | C20: 1050 | D20: 6400005319 | E20: 6290005319 | F20: 4751005319 | G20: 4760005319 | H20: 6420005319 | I20: 4650005319 | J20: 4600005319 | K20: =VLOOKUP(N20,Tabla6[[Id Tienda]:[Cta. Banco Efectivo]],10) -> 5720010002 | M20: =IF(L20="","",VLOOKUP(L20,Tabla18[],4)&Nóminas!N20&TEXT(Nóminas!A20,"00")) ->  | N20: 53
A21: 20 | B21: Duran Casares Alvaro | C21: 1050 | D21: 6400006120 | E21: 6290006120 | F21: 4751006120 | G21: 4760006120 | H21: 6420006120 | I21: 4650006120 | J21: 4600006120 | K21: =VLOOKUP(N21,Tabla6[[Id Tienda]:[Cta. Banco Efectivo]],10) -> 5720010006 | M21: =IF(L21="","",VLOOKUP(L21,Tabla18[],4)&Nóminas!N21&TEXT(Nóminas!A21,"00")) ->  | N21: 61
A22: 21 | B22: Duran Luaces Nuria | C22: 1050 | D22: 6400001521 | E22: 6290001521 | F22: 4751001521 | G22: 4760001521 | H22: 6420001521 | I22: 4650001521 | J22: 4600001521 | K22: =VLOOKUP(N22,Tabla6[[Id Tienda]:[Cta. Banco Efectivo]],10) -> 5720010002 | M22: =IF(L22="","",VLOOKUP(L22,Tabla18[],4)&Nóminas!N22&TEXT(Nóminas!A22,"00")) ->  | N22: 15

Sheet Sindicatos
A1: Id Sindicato | B1: Nombre | C1: Cuota sindicato | D1: Cuenta Acreedora
A2: 1 | B2: CCOO | C2: 52.5 | D2: ="41200"&Tabla18[[#This Row],[Id Sindicato]] -> 412001
A3: 2 | B3: UGT | C3: 84 | D3: ="41200"&Tabla18[[#This Row],[Id Sindicato]] -> 412002

Sheet ContabilizaciónNómina
A1: Fecha | B1: Id Empleado | C1: Salario | D1: Dietas | E1: Retención IRPF | F1: S.Social Trabajador | G1: S.Social Empresa | H1: Anticipo | I1: Cuota Sind. | J1: Id Sindicato | K1: Cta. Salario | L1: Cta. IRPF | M1: Cta. S. Social | N1: Cta. Dieta | O1: Cta. Anticipo | P1: Cta. Sindicato | Q1: Cta. Remun. Pte | R1: Cta. Banco | S1: Cta Gasto. SS Empresa | T1: Remune. Pte | U1: Remu. Pte. Pago nómina | V1: Pago retenciones Hacienda | W1: Conc. Salarios | X1: Conc. IRPF | Y1: Conc. S.Social | Z1: Conc. Anticipo | AA1: Conc. Sindicato | AB1: Conc. Remun. Ptes | AC1: Conc. Dietas | AD1: Id Tienda | AE1: Conc. Banco | AF1: Conc. SS Empresa | AG1: Moneda
A2: 31/04/2015 | B2: 5 | C2: =VLOOKUP(Tabla20[[#This Row],[Id Empleado]],Nóminas!$A$2:$C$22,3) -> 1050 | D2: 0 | E2: 245.28 | F2: 66.68 | G2: 315 | H2: 600 | I2: 0 | K2: =VLOOKUP(Tabla20[[#This Row],[Id Empleado]],Nóminas!$A$2:$D$22,4) -> 6400004405 | L2: =VLOOKUP(B2,Nóminas!$A$1:$F$22,6) -> 4751004405 | M2: =VLOOKUP(Tabla20[[#This Row],[Id Empleado]],Nóminas!$A$2:$G$22,7) -> 4760004405 | N2: =VLOOKUP(Tabla20[[#This Row],[Id Empleado]],Nóminas!$A$2:$E$22,5) -> 6290004405 | O2: =VLOOKUP(Tabla20[[#This Row],[Id Empleado]],Nóminas!$A$2:$J$22,10) -> 4600004405 | P2: =VLOOKUP(Tabla20[[#This Row],[Id Empleado]],Nóminas!$A$2:$M$22,13) ->  | Q2: =VLOOKUP(Tabla20[[#This Row],[Id Empleado]],Nóminas!$A$1:$I$22,9) -> 4650004405 | R2: =VLOOKUP(Tabla20[[#This Row],[Id Empleado]],Nóminas!$A$2:$K$22,11) -> 5720010003 | S2: =VLOOKUP(Tabla20[[#This Row],[Id Empleado]],Nóminas!$A$2:$H$22,8) -> 6420004405 | T2: =ROUND(Tabla20[[#This Row],[Salario]]-Tabla20[[#This Row],[Retención IRPF]]-Tabla20[[#This Row],[S.Social Trabajador]]-Tabla20[[#This Row],[Anticipo]]-Tabla20[[#This Row],[Cuota Sind.]],2) -> 138.04 | U2: =ROUND(T2+Tabla20[[#This Row],[Dietas]],2) -> 138.04 | V2: =ROUND(Tabla20[[#This Row],[Retención IRPF]]+Tabla20[[#This Row],[S.Social Trabajador]]+Tabla20[[#This Row],[S.Social Empresa]]+Tabla20[[#This Row],[Cuota Sind.]],2) -> 626.96 | W2: ="Sueldos y salarios "&B2 -> Sueldos y salarios 5 | X2: ="H.P acreedora por retenciones practicadas "&B2 -> H.P acreedora por retenciones practicadas 5 | Y2: ="Org. SS, acreedores "&B2 -> Org. SS, acreedores 5 | Z2: ="Anticipo de renumeraciones "&B2 -> Anticipo de renumeraciones 5 | AA2: ="Cuota sindicato "&B2 -> Cuota sindicato 5 | AB2: ="Renumeraciones ptes de pago "&B2 -> Renumeraciones ptes de pago 5 | AC2: ="Dietas "&B2 -> Dietas 5 | AD2: =MID(S2,7,2) -> 44 | AE2: ="Bancos Tienda "&AD2 -> Bancos Tienda 44 | AF2: ="S.S empresa empleado "&B2 -> S.S empresa empleado 5 | AG2: E
A3: 31/04/2015 | B3: 6 | C3: =VLOOKUP(Tabla20[[#This Row],[Id Empleado]],Nóminas!$A$2:$C$22,3) -> 1050 | D3: 18.3 | E3: 225.96 | F3: 66.68 | G3: 315 | H3: 0 | I3: 84 | J3: 2 | K3: =VLOOKUP(Tabla20[[#This Row],[Id Empleado]],Nóminas!$A$2:$D$22,4) -> 6400005306 | L3: =VLOOKUP(B3,Nóminas!$A$1:$F$22,6) -> 4751005306 | M3: =VLOOKUP(Tabla20[[#This Row],[Id Empleado]],Nóminas!$A$2:$G$22,7) -> 4760005306 | N3: =VLOOKUP(Tabla20[[#This Row],[Id Empleado]],Nóminas!$A$2:$E$22,5) -> 6290005306 | O3: =VLOOKUP(Tabla20[[#This Row],[Id Empleado]],Nóminas!$A$2:$J$22,10) -> 4600005306 | P3: =VLOOKUP(Tabla20[[#This Row],[Id Empleado]],Nóminas!$A$2:$M$22,13) -> 4120025306 | Q3: =VLOOKUP(Tabla20[[#This Row],[Id Empleado]],Nóminas!$A$1:$I$22,9) -> 4650005306 | R3: =VLOOKUP(Tabla20[[#This Row],[Id Empleado]],Nóminas!$A$2:$K$22,11) -> 5720010002 | S3: =VLOOKUP(Tabla20[[#This Row],[Id Empleado]],Nóminas!$A$2:$H$22,8) -> 6420005306 | T3: =ROUND(Tabla20[[#This Row],[Salario]]-Tabla20[[#This Row],[Retención IRPF]]-Tabla20[[#This Row],[S.Social Trabajador]]-Tabla20[[#This Row],[Anticipo]]-Tabla20[[#This Row],[Cuota Sind.]],2) -> 673.36 | U3: =ROUND(T3+Tabla20[[#This Row],[Dietas]],2) -> 691.66 | V3: =ROUND(Tabla20[[#This Row],[Retención IRPF]]+Tabla20[[#This Row],[S.Social Trabajador]]+Tabla20[[#This Row],[S.Social Empresa]]+Tabla20[[#This Row],[Cuota Sind.]],2) -> 691.64 | W3: ="Sueldos y salarios "&B3 -> Sueldos y salarios 6 | X3: ="H.P acreedora por retenciones practicadas "&B3 -> H.P acreedora por retenciones practicadas 6 | Y3: ="Org. SS, acreedores "&B3 -> Org. SS, acreedores 6 | Z3: ="Anticipo de renumeraciones "&B3 -> Anticipo de renumeraciones 6 | AA3: ="Cuota sindicato "&B3 -> Cuota sindicato 6 | AB3: ="Renumeraciones ptes de pago "&B3 -> Renumeraciones ptes de pago 6 | AC3: ="Dietas "&B3 -> Dietas 6 | AD3: =MID(S3,7,2) -> 53 | AE3: ="Bancos Tienda "&AD3 -> Bancos Tienda 53 | AF3: ="S.S empresa empleado "&B3 -> S.S empresa empleado 6 | AG3: E
A4: 31/04/2015 | B4: 7 | C4: =VLOOKUP(Tabla20[[#This Row],[Id Empleado]],Nóminas!$A$2:$C$22,3) -> 1050 | D4: 0 | E4: 232.47 | F4: 66.68 | G4: 315 | H4: 300 | I4: 0 | K4: =VLOOKUP(Tabla20[[#This Row],[Id Empleado]],Nóminas!$A$2:$D$22,4) -> 6400005407 | L4: =VLOOKUP(B4,Nóminas!$A$1:$F$22,6) -> 4751005407 | M4: =VLOOKUP(Tabla20[[#This Row],[Id Empleado]],Nóminas!$A$2:$G$22,7) -> 4760005407 | N4: =VLOOKUP(Tabla20[[#This Row],[Id Empleado]],Nóminas!$A$2:$E$22,5) -> 6290005407 | O4: =VLOOKUP(Tabla20[[#This Row],[Id Empleado]],Nóminas!$A$2:$J$22,10) -> 4600005407 | P4: =VLOOKUP(Tabla20[[#This Row],[Id Empleado]],Nóminas!$A$2:$M$22,13) ->  | Q4: =VLOOKUP(Tabla20[[#This Row],[Id Empleado]],Nóminas!$A$1:$I$22,9) -> 4650005407 | R4: =VLOOKUP(Tabla20[[#This Row],[Id Empleado]],Nóminas!$A$2:$K$22,11) -> 5720010005 | S4: =VLOOKUP(Tabla20[[#This Row],[Id Empleado]],Nóminas!$A$2:$H$22,8) -> 6420005407 | T4: =ROUND(Tabla20[[#This Row],[Salario]]-Tabla20[[#This Row],[Retención IRPF]]-Tabla20[[#This Row],[S.Social Trabajador]]-Tabla20[[#This Row],[Anticipo]]-Tabla20[[#This Row],[Cuota Sind.]],2) -> 450.85 | U4: =ROUND(T4+Tabla20[[#This Row],[Dietas]],2) -> 450.85 | V4: =ROUND(Tabla20[[#This Row],[Retención IRPF]]+Tabla20[[#This Row],[S.Social Trabajador]]+Tabla20[[#This Row],[S.Social Empresa]]+Tabla20[[#This Row],[Cuota Sind.]],2) -> 614.15 | W4: Sueldos y salarios 7 | X4: H.P acreedora por retenciones practicadas 7 | Y4: Org. SS, acreedores 7 | Z4: Anticipo de renumeraciones 7 | AA4: Cuota sindicato 7 | AB4: Renumeraciones ptes de pago 7 | AC4: Dietas 7 | AD4: 54 | AE4: Bancos Tienda 54 | AF4: S.S empresa empleado 7 | AG4: E
A5: 31/04/2015 | B5: 8 | C5: =VLOOKUP(Tabla20[[#This Row],[Id Empleado]],Nóminas!$A$2:$C$22,3) -> 1050 | D5: 0 | E5: 232.79 | F5: 66.68 | G5: 315 | H5: 0 | I5: 0 | K5: =VLOOKUP(Tabla20[[#This Row],[Id Empleado]],Nóminas!$A$2:$D$22,4) -> 6400006208 | L5: =VLOOKUP(B5,Nóminas!$A$1:$F$22,6) -> 4751006208 | M5: =VLOOKUP(Tabla20[[#This Row],[Id Empleado]],Nóminas!$A$2:$G$22,7) -> 4760006208 | N5: =VLOOKUP(Tabla20[[#This Row],[Id Empleado]],Nóminas!$A$2:$E$22,5) -> 6290006208 | O5: =VLOOKUP(Tabla20[[#This Row],[Id Empleado]],Nóminas!$A$2:$J$22,10) -> 4600006208 | P5: =VLOOKUP(Tabla20[[#This Row],[Id Empleado]],Nóminas!$A$2:$M$22,13) ->  | Q5: =VLOOKUP(Tabla20[[#This Row],[Id Empleado]],Nóminas!$A$1:$I$22,9) -> 4650006208 | R5: =VLOOKUP(Tabla20[[#This Row],[Id Empleado]],Nóminas!$A$2:$K$22,11) -> 5720010006 | S5: =VLOOKUP(Tabla20[[#This Row],[Id Empleado]],Nóminas!$A$2:$H$22,8) -> 6420006208 | T5: =ROUND(Tabla20[[#This Row],[Salario]]-Tabla20[[#This Row],[Retención IRPF]]-Tabla20[[#This Row],[S.Social Trabajador]]-Tabla20[[#This Row],[Anticipo]]-Tabla20[[#This Row],[Cuota Sind.]],2) -> 750.53 | U5: =ROUND(T5+Tabla20[[#This Row],[Dietas]],2) -> 750.53 | V5: =ROUND(Tabla20[[#This Row],[Retención IRPF]]+Tabla20[[#This Row],[S.Social Trabajador]]+Tabla20[[#This Row],[S.Social Empresa]]+Tabla20[[#This Row],[Cuota Sind.]],2) -> 614.47 | W5: Sueldos y salarios 8 | X5: H.P acreedora por retenciones practicadas 8 | Y5: Org. SS, acreedores 8 | Z5: Anticipo de renumeraciones 8 | AA5: Cuota sindicato 8 | AB5: Renumeraciones ptes de pago 8 | AC5: Dietas 8 | AD5: 62 | AE5: Bancos Tienda 62 | AF5: S.S empresa empleado 8 | AG5: E
A6: 31/04/2015 | B6: 9 | C6: =VLOOKUP(Tabla20[[#This Row],[Id Empleado]],Nóminas!$A$2:$C$22,3) -> 1050 | D6: 0 | E6: 242.97 | F6: 66.68 | G6: 315 | H6: 0 | I6: 52.5 | J6: 1 | K6: =VLOOKUP(Tabla20[[#This Row],[Id Empleado]],Nóminas!$A$2:$D$22,4) -> 6400006109 | L6: =VLOOKUP(B6,Nóminas!$A$1:$F$22,6) -> 4751006109 | M6: =VLOOKUP(Tabla20[[#This Row],[Id Empleado]],Nóminas!$A$2:$G$22,7) -> 4760006109 | N6: =VLOOKUP(Tabla20[[#This Row],[Id Empleado]],Nóminas!$A$2:$E$22,5) -> 6290006109 | O6: =VLOOKUP(Tabla20[[#This Row],[Id Empleado]],Nóminas!$A$2:$J$22,10) -> 4600006109 | P6: =VLOOKUP(Tabla20[[#This Row],[Id Empleado]],Nóminas!$A$2:$M$22,13) -> 4120016109 | Q6: =VLOOKUP(Tabla20[[#This Row],[Id Empleado]],Nóminas!$A$1:$I$22,9) -> 4650006109 | R6: =VLOOKUP(Tabla20[[#This Row],[Id Empleado]],Nóminas!$A$2:$K$22,11) -> 5720010006 | S6: =VLOOKUP(Tabla20[[#This Row],[Id Empleado]],Nóminas!$A$2:$H$22,8) -> 6420006109 | T6: =ROUND(Tabla20[[#This Row],[Salario]]-Tabla20[[#This Row],[Retención IRPF]]-Tabla20[[#This Row],[S.Social Trabajador]]-Tabla20[[#This Row],[Anticipo]]-Tabla20[[#This Row],[Cuota Sind.]],2) -> 687.85 | U6: =ROUND(T6+Tabla20[[#This Row],[Dietas]],2) -> 687.85 | V6: =ROUND(Tabla20[[#This Row],[Retención IRPF]]+Tabla20[[#This Row],[S.Social Trabajador]]+Tabla20[[#This Row],[S.Social Empresa]]+Tabla20[[#This Row],[Cuota Sind.]],2) -> 677.15 | W6: Sueldos y salarios 9 | X6: H.P acreedora por retenciones practicadas 9 | Y6: Org. SS, acreedores 9 | Z6: Anticipo de renumeraciones 9 | AA6: Cuota sindicato 9 | AB6: Renumeraciones ptes de pago 9 | AC6: Dietas 9 | AD6: 61 | AE6: Bancos Tienda 61 | AF6: S.S empresa empleado 9 | AG6: E
A7: 31/04/2015 | B7: 10 | C7: =VLOOKUP(Tabla20[[#This Row],[Id Empleado]],Nóminas!$A$2:$C$22,3) -> 1050 | D7: 21.56 | E7: 208.43 | F7: 66.68 | G7: 315 | H7: 0 | I7: 84 | J7: 2 | K7: =VLOOKUP(Tabla20[[#This Row],[Id Empleado]],Nóminas!$A$2:$D$22,4) -> 6400006310 | L7: =VLOOKUP(B7,Nóminas!$A$1:$F$22,6) -> 4751006310 | M7: =VLOOKUP(Tabla20[[#This Row],[Id Empleado]],Nóminas!$A$2:$G$22,7) -> 4760006310 | N7: =VLOOKUP(Tabla20[[#This Row],[Id Empleado]],Nóminas!$A$2:$E$22,5) -> 6290006310 | O7: =VLOOKUP(Tabla20[[#This Row],[Id Empleado]],Nóminas!$A$2:$J$22,10) -> 4600006310 | P7: =VLOOKUP(Tabla20[[#This Row],[Id Empleado]],Nóminas!$A$2:$M$22,13) -> 4120026310 | Q7: =VLOOKUP(Tabla20[[#This Row],[Id Empleado]],Nóminas!$A$1:$I$22,9) -> 4650006310 | R7: =VLOOKUP(Tabla20[[#This Row],[Id Empleado]],Nóminas!$A$2:$K$22,11) -> 5720010006 | S7: =VLOOKUP(Tabla20[[#This Row],[Id Empleado]],Nóminas!$A$2:$H$22,8) -> 6420006310 | T7: =ROUND(Tabla20[[#This Row],[Salario]]-Tabla20[[#This Row],[Retención IRPF]]-Tabla20[[#This Row],[S.Social Trabajador]]-Tabla20[[#This Row],[Anticipo]]-Tabla20[[#This Row],[Cuota Sind.]],2) -> 690.89 | U7: =ROUND(T7+Tabla20[[#This Row],[Dietas]],2) -> 712.45 | V7: =ROUND(Tabla20[[#This Row],[Retención IRPF]]+Tabla20[[#This Row],[S.Social Trabajador]]+Tabla20[[#This Row],[S.Social Empresa]]+Tabla20[[#This Row],[Cuota Sind.]],2) -> 674.11 | W7: Sueldos y salarios 10 | X7: H.P acreedora por retenciones practicadas 10 | Y7: Org. SS, acreedores 10 | Z7: Anticipo de renumeraciones 10 | AA7: Cuota sindicato 10 | AB7: Renumeraciones ptes de pago 10 | AC7: Dietas 10 | AD7: 63 | AE7: Bancos Tienda 63 | AF7: S.S empresa empleado 10 | AG7: E
A8: 31/04/2015 | B8: 11 | C8: =VLOOKUP(Tabla20[[#This Row],[Id Empleado]],Nóminas!$A$2:$C$22,3) -> 1050 | D8: 0 | E8: 243.08 | F8: 66.68 | G8: 315 | H8: 0 | I8: 0 | K8: =VLOOKUP(Tabla20[[#This Row],[Id Empleado]],Nóminas!$A$2:$D$22,4) -> 6400001111 | L8: =VLOOKUP(B8,Nóminas!$A$1:$F$22,6) -> 4751001111 | M8: =VLOOKUP(Tabla20[[#This Row],[Id Empleado]],Nóminas!$A$2:$G$22,7) -> 4760001111 | N8: =VLOOKUP(Tabla20[[#This Row],[Id Empleado]],Nóminas!$A$2:$E$22,5) -> 6290001111 | O8: =VLOOKUP(Tabla20[[#This Row],[Id Empleado]],Nóminas!$A$2:$J$22,10) -> 4600001111 | P8: =VLOOKUP(Tabla20[[#This Row],[Id Empleado]],Nóminas!$A$2:$M$22,13) ->  | Q8: =VLOOKUP(Tabla20[[#This Row],[Id Empleado]],Nóminas!$A$1:$I$22,9) -> 4650001111 | R8: =VLOOKUP(Tabla20[[#This Row],[Id Empleado]],Nóminas!$A$2:$K$22,11) -> 5720010003 | S8: =VLOOKUP(Tabla20[[#This Row],[Id Empleado]],Nóminas!$A$2:$H$22,8) -> 6420001111 | T8: =ROUND(Tabla20[[#This Row],[Salario]]-Tabla20[[#This Row],[Retención IRPF]]-Tabla20[[#This Row],[S.Social Trabajador]]-Tabla20[[#This Row],[Anticipo]]-Tabla20[[#This Row],[Cuota Sind.]],2) -> 740.24 | U8: =ROUND(T8+Tabla20[[#This Row],[Dietas]],2) -> 740.24 | V8: =ROUND(Tabla20[[#This Row],[Retención IRPF]]+Tabla20[[#This Row],[S.Social Trabajador]]+Tabla20[[#This Row],[S.Social Empresa]]+Tabla20[[#This Row],[Cuota Sind.]],2) -> 624.76 | W8: Sueldos y salarios 11 | X8: H.P acreedora por retenciones practicadas 11 | Y8: Org. SS, acreedores 11 | Z8: Anticipo de renumeraciones 11 | AA8: Cuota sindicato 11 | AB8: Renumeraciones ptes de pago 11 | AC8: Dietas 11 | AD8: 11 | AE8: Bancos Tienda 11 | AF8: S.S empresa empleado 11 | AG8: E
A9: 31/04/2015 | B9: 2 | C9: =VLOOKUP(Tabla20[[#This Row],[Id Empleado]],Nóminas!$A$2:$C$22,3) -> 1050 | D9: 0 | E9: 210 | F9: 66.68 | G9: 315 | H9: 0 | I9: 84 | J9: 2 | K9: =VLOOKUP(Tabla20[[#This Row],[Id Empleado]],Nóminas!$A$2:$D$22,4) -> 6400003202 | L9: =VLOOKUP(B9,Nóminas!$A$1:$F$22,6) -> 4751003202 | M9: =VLOOKUP(Tabla20[[#This Row],[Id Empleado]],Nóminas!$A$2:$G$22,7) -> 4760003202 | N9: =VLOOKUP(Tabla20[[#This Row],[Id Empleado]],Nóminas!$A$2:$E$22,5) -> 6290003202 | O9: =VLOOKUP(Tabla20[[#This Row],[Id Empleado]],Nóminas!$A$2:$J$22,10) -> 4600003202 | P9: =VLOOKUP(Tabla20[[#This Row],[Id Empleado]],Nóminas!$A$2:$M$22,13) -> 4120023202 | Q9: =VLOOKUP(Tabla20[[#This Row],[Id Empleado]],Nóminas!$A$1:$I$22,9) -> 4650003202 | R9: =VLOOKUP(Tabla20[[#This Row],[Id Empleado]],Nóminas!$A$2:$K$22,11) -> 5720010001 | S9: =VLOOKUP(Tabla20[[#This Row],[Id Empleado]],Nóminas!$A$2:$H$22,8) -> 6420003202 | T9: =ROUND(Tabla20[[#This Row],[Salario]]-Tabla20[[#This Row],[Retención IRPF]]-Tabla20[[#This Row],[S.Social Trabajador]]-Tabla20[[#This Row],[Anticipo]]-Tabla20[[#This Row],[Cuota Sind.]],2) -> 689.32 | U9: =ROUND(T9+Tabla20[[#This Row],[Dietas]],2) -> 689.32 | V9: =ROUND(Tabla20[[#This Row],[Retención IRPF]]+Tabla20[[#This Row],[S.Social Trabajador]]+Tabla20[[#This Row],[S.Social Empresa]]+Tabla20[[#This Row],[Cuota Sind.]],2) -> 675.68 | W9: Sueldos y salarios 2 | X9: H.P acreedora por retenciones practicadas 2 | Y9: Org. SS, acreedores 2 | Z9: Anticipo de renumeraciones 2 | AA9: Cuota sindicato 2 | AB9: Renumeraciones ptes de pago 2 | AC9: Dietas 2 | AD9: 32 | AE9: Bancos Tienda 32 | AF9: S.S empresa empleado 2 | AG9: E
A10: 31/04/2015 | B10: 13 | C10: =VLOOKUP(Tabla20[[#This Row],[Id Empleado]],Nóminas!$A$2:$C$22,3) -> 1050 | D10: 0 | E10: 225.44 | F10: 66.68 | G10: 315 | H10: 450 | I10: 0 | K10: =VLOOKUP(Tabla20[[#This Row],[Id Empleado]],Nóminas!$A$2:$D$22,4) -> 6400001113 | L10: =VLOOKUP(B10,Nóminas!$A$1:$F$22,6) -> 4751001113 | M10: =VLOOKUP(Tabla20[[#This Row],[Id Empleado]],Nóminas!$A$2:$G$22,7) -> 4760001113 | N10: =VLOOKUP(Tabla20[[#This Row],[Id Empleado]],Nóminas!$A$2:$E$22,5) -> 6290001113 | O10: =VLOOKUP(Tabla20[[#This Row],[Id Empleado]],Nóminas!$A$2:$J$22,10) -> 4600001113 | P10: =VLOOKUP(Tabla20[[#This Row],[Id Empleado]],Nóminas!$A$2:$M$22,13) ->  | Q10: =VLOOKUP(Tabla20[[#This Row],[Id Empleado]],Nóminas!$A$1:$I$22,9) -> 4650001113 | R10: =VLOOKUP(Tabla20[[#This Row],[Id Empleado]],Nóminas!$A$2:$K$22,11) -> 5720010003 | S10: =VLOOKUP(Tabla20[[#This Row],[Id Empleado]],Nóminas!$A$2:$H$22,8) -> 6420001113 | T10: =ROUND(Tabla20[[#This Row],[Salario]]-Tabla20[[#This Row],[Retención IRPF]]-Tabla20[[#This Row],[S.Social Trabajador]]-Tabla20[[#This Row],[Anticipo]]-Tabla20[[#This Row],[Cuota Sind.]],2) -> 307.88 | U10: =ROUND(T10+Tabla20[[#This Row],[Dietas]],2) -> 307.88 | V10: =ROUND(Tabla20[[#This Row],[Retención IRPF]]+Tabla20[[#This Row],[S.Social Trabajador]]+Tabla20[[#This Row],[S.Social Empresa]]+Tabla20[[#This Row],[Cuota Sind.]],2) -> 607.12 | W10: Sueldos y salarios 13 | X10: H.P acreedora por retenciones practicadas 13 | Y10: Org. SS, acreedores 13 | Z10: Anticipo de renumeraciones 13 | AA10: Cuota sindicato 13 | AB10: Renumeraciones ptes de pago 13 | AC10: Dietas 13 | AD10: 11 | AE10: Bancos Tienda 11 | AF10: S.S empresa empleado 13 | AG10: E
A11: 31/04/2015 | B11: 14 | C11: =VLOOKUP(Tabla20[[#This Row],[Id Empleado]],Nóminas!$A$2:$C$22,3) -> 1050 | D11: 0 | E11: 210.32 | F11: 66.68 | G11: 315 | H11: 0 | I11: 0 | K11: =VLOOKUP(Tabla20[[#This Row],[Id Empleado]],Nóminas!$A$2:$D$22,4) -> 6400004214 | L11: =VLOOKUP(B11,Nóminas!$A$1:$F$22,6) -> 4751004214 | M11: =VLOOKUP(Tabla20[[#This Row],[Id Empleado]],Nóminas!$A$2:$G$22,7) -> 4760004214 | N11: =VLOOKUP(Tabla20[[#This Row],[Id Empleado]],Nóminas!$A$2:$E$22,5) -> 6290004214 | O11: =VLOOKUP(Tabla20[[#This Row],[Id Empleado]],Nóminas!$A$2:$J$22,10) -> 4600004214 | P11: =VLOOKUP(Tabla20[[#This Row],[Id Empleado]],Nóminas!$A$2:$M$22,13) ->  | Q11: =VLOOKUP(Tabla20[[#This Row],[Id Empleado]],Nóminas!$A$1:$I$22,9) -> 4650004214 | R11: =VLOOKUP(Tabla20[[#This Row],[Id Empleado]],Nóminas!$A$2:$K$22,11) -> 5720010003 | S11: =VLOOKUP(Tabla20[[#This Row],[Id Empleado]],Nóminas!$A$2:$H$22,8) -> 6420004214 | T11: =ROUND(Tabla20[[#This Row],[Salario]]-Tabla20[[#This Row],[Retención IRPF]]-Tabla20[[#This Row],[S.Social Trabajador]]-Tabla20[[#This Row],[Anticipo]]-Tabla20[[#This Row],[Cuota Sind.]],2) -> 773 | U11: =ROUND(T11+Tabla20[[#This Row],[Dietas]],2) -> 773 | V11: =ROUND(Tabla20[[#This Row],[Retención IRPF]]+Tabla20[[#This Row],[S.Social Trabajador]]+Tabla20[[#This Row],[S.Social Empresa]]+Tabla20[[#This Row],[Cuota Sind.]],2) -> 592 | W11: Sueldos y salarios 14 | X11: H.P acreedora por retenciones practicadas 14 | Y11: Org. SS, acreedores 14 | Z11: Anticipo de renumeraciones 14 | AA11: Cuota sindicato 14 | AB11: Renumeraciones ptes de pago 14 | AC11: Dietas 14 | AD11: 42 | AE11: Bancos Tienda 42 | AF11: S.S empresa empleado 14 | AG11: E
A12: 31/04/2015 | B12: 21 | C12: =VLOOKUP(Tabla20[[#This Row],[Id Empleado]],Nóminas!$A$2:$C$22,3) -> 1050 | D12: 9 | E12: 225.75 | F12: 66.68 | G12: 315 | H12: 0 | I12: 0 | K12: =VLOOKUP(Tabla20[[#This Row],[Id Empleado]],Nóminas!$A$2:$D$22,4) -> 6400001521 | L12: =VLOOKUP(B12,Nóminas!$A$1:$F$22,6) -> 4751001521 | M12: =VLOOKUP(Tabla20[[#This Row],[Id Empleado]],Nóminas!$A$2:$G$22,7) -> 4760001521 | N12: =VLOOKUP(Tabla20[[#This Row],[Id Empleado]],Nóminas!$A$2:$E$22,5) -> 6290001521 | O12: =VLOOKUP(Tabla20[[#This Row],[Id Empleado]],Nóminas!$A$2:$J$22,10) -> 4600001521 | P12: =VLOOKUP(Tabla20[[#This Row],[Id Empleado]],Nóminas!$A$2:$M$22,13) ->  | Q12: =VLOOKUP(Tabla20[[#This Row],[Id Empleado]],Nóminas!$A$1:$I$22,9) -> 4650001521 | R12: =VLOOKUP(Tabla20[[#This Row],[Id Empleado]],Nóminas!$A$2:$K$22,11) -> 5720010002 | S12: =VLOOKUP(Tabla20[[#This Row],[Id Empleado]],Nóminas!$A$2:$H$22,8) -> 6420001521 | T12: =ROUND(Tabla20[[#This Row],[Salario]]-Tabla20[[#This Row],[Retención IRPF]]-Tabla20[[#This Row],[S.Social Trabajador]]-Tabla20[[#This Row],[Anticipo]]-Tabla20[[#This Row],[Cuota Sind.]],2) -> 757.57 | U12: =ROUND(T12+Tabla20[[#This Row],[Dietas]],2) -> 766.57 | V12: =ROUND(Tabla20[[#This Row],[Retención IRPF]]+Tabla20[[#This Row],[S.Social Trabajador]]+Tabla20[[#This Row],[S.Social Empresa]]+Tabla20[[#This Row],[Cuota Sind.]],2) -> 607.43 | W12: Sueldos y salarios 21 | X12: H.P acreedora por retenciones practicadas 21 | Y12: Org. SS, acreedores 21 | Z12: Anticipo de renumeraciones 21 | AA12: Cuota sindicato 21 | AB12: Renumeraciones ptes de pago 21 | AC12: Dietas 21 | AD12: 15 | AE12: Bancos Tienda 15 | AF12: S.S empresa empleado 21 | AG12: E
A13: 31/04/2015 | B13: 20 | C13: =VLOOKUP(Tabla20[[#This Row],[Id Empleado]],Nóminas!$A$2:$C$22,3) -> 1050 | D13: 0 | E13: 220.29 | F13: 66.68 | G13: 315 | H13: 0 | I13: 0 | K13: =VLOOKUP(Tabla20[[#This Row],[Id Empleado]],Nóminas!$A$2:$D$22,4) -> 6400006120 | L13: =VLOOKUP(B13,Nóminas!$A$1:$F$22,6) -> 4751006120 | M13: =VLOOKUP(Tabla20[[#This Row],[Id Empleado]],Nóminas!$A$2:$G$22,7) -> 4760006120 | N13: =VLOOKUP(Tabla20[[#This Row],[Id Empleado]],Nóminas!$A$2:$E$22,5) -> 6290006120 | O13: =VLOOKUP(Tabla20[[#This Row],[Id Empleado]],Nóminas!$A$2:$J$22,10) -> 4600006120 | P13: =VLOOKUP(Tabla20[[#This Row],[Id Empleado]],Nóminas!$A$2:$M$22,13) ->  | Q13: =VLOOKUP(Tabla20[[#This Row],[Id Empleado]],Nóminas!$A$1:$I$22,9) -> 4650006120 | R13: =VLOOKUP(Tabla20[[#This Row],[Id Empleado]],Nóminas!$A$2:$K$22,11) -> 5720010006 | S13: =VLOOKUP(Tabla20[[#This Row],[Id Empleado]],Nóminas!$A$2:$H$22,8) -> 6420006120 | T13: =ROUND(Tabla20[[#This Row],[Salario]]-Tabla20[[#This Row],[Retención IRPF]]-Tabla20[[#This Row],[S.Social Trabajador]]-Tabla20[[#This Row],[Anticipo]]-Tabla20[[#This Row],[Cuota Sind.]],2) -> 763.03 | U13: =ROUND(T13+Tabla20[[#This Row],[Dietas]],2) -> 763.03 | V13: =ROUND(Tabla20[[#This Row],[Retención IRPF]]+Tabla20[[#This Row],[S.Social Trabajador]]+Tabla20[[#This Row],[S.Social Empresa]]+Tabla20[[#This Row],[Cuota Sind.]],2) -> 601.97 | W13: Sueldos y salarios 20 | X13: H.P acreedora por retenciones practicadas 20 | Y13: Org. SS, acreedores 20 | Z13: Anticipo de renumeraciones 20 | AA13: Cuota sindicato 20 | AB13: Renumeraciones ptes de pago 20 | AC13: Dietas 20 | AD13: 61 | AE13: Bancos Tienda 61 | AF13: S.S empresa empleado 20 | AG13: E

Sheet ConfigNómina
A1: Hoja con los datos de entrada: | D1: ContabilizaciónNómina
A2: Datos de salida: | D2: AstosNómina
A3: Primer número de asiento: | D3: 1
A4: Procedimientos a ejecutar previamente: | E4: Macro11 | F4: Macro12
A9: Diario | B9: Fecha | C9: Asiento | D9: Orden | E9: Cuenta | F9: Importe Pts | G9: Concepto | H9: Documento | I9: Debe | J9: Haber | K9: Moneda | L9: Punteo | M9: TipoIVA | N9: Nº IVA | O9: Depto. | P9: Subdepto. | Q9: Imagen
A10: 1 | B10: A | C10: #1 | D10: 1 | E10: K | G10: W | I10: C | K10: AG
A11: 1 | B11: A | C11: #1 | D11: 2 | E11: L | G11: X | J11: E | K11: AG
A12: 1 | B12: A | C12: #1 | D12: 3 | E12: M | G12: Y | J12: F | K12: AG
A13: 1 | B13: A | C13: #1 | D13: 4 | E13: O | G13: Z | J13: H | K13: AG
A14: 1 | B14: A | C14: #1 | D14: 5 | E14: P | G14: AA | J14: I | K14: AG
A15: 1 | B15: A | C15: #1 | D15: 6 | E15: Q | G15: AB | J15: T | K15: AG
A16: 1 | B16: A | C16: #2 | D16: 1 | E16: N | G16: AC | I16: D | K16: AG
A17: 1 | B17: A | C17: #2 | D17: 2 | E17: Q | G17: AB | J17: D | K17: AG
A18: 1 | B18: A | C18: #3 | D18: 1 | E18: Q | G18: AB | I18: U | K18: AG
A19: 1 | B19: A | C19: #3 | D19: 2 | E19: R | G19: AE | J19: U | K19: AG
A20: 1 | B20: A | C20: #4 | D20: 1 | E20: S | G20: AF | I20: G | K20: AG
A21: 1 | B21: A | C21: #4 | D21: 2 | E21: M | G21: Y | J21: G | K21: AG
A22: 1 | B22: A | C22: #5 | D22: 1 | E22: L | G22: X | I22: E | K22: AG
A23: 1 | B23: A | C23: #5 | D23: 2 | E23: M | G23: Y | I23: F | K23: AG
A24: 1 | B24: A | C24: #5 | D24: 3 | E24: P | G24: AA | I24: I | K24: AG
A25: 1 | B25: A | C25: #5 | D25: 4 | E25: M | G25: Y | I25: G | K25: AG
A26: 1 | B26: A | C26: #5 | D26: 5 | E26: R | G26: AE | J26: V | K26: AG

Sheet AstosNómina
A1: Diario | B1: Fecha | C1: Asiento | D1: Orden | E1: Cuenta | F1: Importe Pts | G1: Concepto | H1: Documento | I1: Debe | J1: Haber | K1: Moneda | L1: Punteo | M1: TipoIVA | N1: Nº IVA | O1: Depto. | P1: Subdepto. | Q1: Imagen
A2: 1 | B2: 31/04/2015 | C2: 1 | D2: 1 | E2: 6400004405 | G2: Sueldos y salarios 5 | I2: 1050 | K2: E
A3: 1 | B3: 31/04/2015 | C3: 1 | D3: 2 | E3: 4751004405 | G3: H.P acreedora por retenciones practicadas 5 | J3: 245.28 | K3: E
A4: 1 | B4: 31/04/2015 | C4: 1 | D4: 3 | E4: 4760004405 | G4: Org. SS, acreedores 5 | J4: 66.68 | K4: E
A5: 1 | B5: 31/04/2015 | C5: 1 | D5: 4 | E5: 4600004405 | G5: Anticipo de renumeraciones 5 | J5: 600 | K5: E
A6: 1 | B6: 31/04/2015 | C6: 1 | D6: 5 | G6: Cuota sindicato 5 | J6: 0 | K6: E
A7: 1 | B7: 31/04/2015 | C7: 1 | D7: 6 | E7: 4650004405 | G7: Renumeraciones ptes de pago 5 | J7: 138.04 | K7: E
A8: 1 | B8: 31/04/2015 | C8: 2 | D8: 1 | E8: 6290004405 | G8: Dietas 5 | I8: 0 | K8: E
A9: 1 | B9: 31/04/2015 | C9: 2 | D9: 2 | E9: 4650004405 | G9: Renumeraciones ptes de pago 5 | J9: 0 | K9: E
A10: 1 | B10: 31/04/2015 | C10: 3 | D10: 1 | E10: 4650004405 | G10: Renumeraciones ptes de pago 5 | I10: 138.04 | K10: E
A11: 1 | B11: 31/04/2015 | C11: 3 | D11: 2 | E11: 5720010003 | G11: Bancos Tienda 44 | J11: 138.04 | K11: E
A12: 1 | B12: 31/04/2015 | C12: 4 | D12: 1 | E12: 6420004405 | G12: S.S empresa empleado 5 | I12: 315 | K12: E
A13: 1 | B13: 31/04/2015 | C13: 4 | D13: 2 | E13: 4760004405 | G13: Org. SS, acreedores 5 | J13: 315 | K13: E
A14: 1 | B14: 31/04/2015 | C14: 5 | D14: 1 | E14: 4751004405 | G14: H.P acreedora por retenciones practicadas 5 | I14: 245.28 | K14: E
A15: 1 | B15: 31/04/2015 | C15: 5 | D15: 2 | E15: 4760004405 | G15: Org. SS, acreedores 5 | I15: 66.68 | K15: E
A16: 1 | B16: 31/04/2015 | C16: 5 | D16: 3 | G16: Cuota sindicato 5 | I16: 0 | K16: E
A17: 1 | B17: 31/04/2015 | C17: 5 | D17: 4 | E17: 4760004405 | G17: Org. SS, acreedores 5 | I17: 315 | K17: E
A18: 1 | B18: 31/04/2015 | C18: 5 | D18: 5 | E18: 5720010003 | G18: Bancos Tienda 44 | J18: 626.96 | K18: E
A19: 1 | B19: 31/04/2015 | C19: 6 | D19: 1 | E19: 6400005306 | G19: Sueldos y salarios 6 | I19: 1050 | K19: E
A20: 1 | B20: 31/04/2015 | C20: 6 | D20: 2 | E20: 4751005306 | G20: H.P acreedora por retenciones practicadas 6 | J20: 225.96 | K20: E
A21: 1 | B21: 31/04/2015 | C21: 6 | D21: 3 | E21: 4760005306 | G21: Org. SS, acreedores 6 | J21: 66.68 | K21: E
A22: 1 | B22: 31/04/2015 | C22: 6 | D22: 4 | E22: 4600005306 | G22: Anticipo de renumeraciones 6 | J22: 0 | K22: E
A23: 1 | B23: 31/04/2015 | C23: 6 | D23: 5 | E23: 4120025306 | G23: Cuota sindicato 6 | J23: 84 | K23: E
A24: 1 | B24: 31/04/2015 | C24: 6 | D24: 6 | E24: 4650005306 | G24: Renumeraciones ptes de pago 6 | J24: 673.36 | K24: E
A25: 1 | B25: 31/04/2015 | C25: 7 | D25: 1 | E25: 6290005306 | G25: Dietas 6 | I25: 18.3 | K25: E
A26: 1 | B26: 31/04/2015 | C26: 7 | D26: 2 | E26: 4650005306 | G26: Renumeraciones ptes de pago 6 | J26: 18.3 | K26: E
A27: 1 | B27: 31/04/2015 | C27: 8 | D27: 1 | E27: 4650005306 | G27: Renumeraciones ptes de pago 6 | I27: 691.66 | K27: E
A28: 1 | B28: 31/04/2015 | C28: 8 | D28: 2 | E28: 5720010002 | G28: Bancos Tienda 53 | J28: 691.66 | K28: E
A29: 1 | B29: 31/04/2015 | C29: 9 | D29: 1 | E29: 6420005306 | G29: S.S empresa empleado 6 | I29: 315 | K29: E
A30: 1 | B30: 31/04/2015 | C30: 9 | D30: 2 | E30: 4760005306 | G30: Org. SS, acreedores 6 | J30: 315 | K30: E
A31: 1 | B31: 31/04/2015 | C31: 10 | D31: 1 | E31: 4751005306 | G31: H.P acreedora por retenciones practicadas 6 | I31: 225.96 | K31: E
A32: 1 | B32: 31/04/2015 | C32: 10 | D32: 2 | E32: 4760005306 | G32: Org. SS, acreedores 6 | I32: 66.68 | K32: E
A33: 1 | B33: 31/04/2015 | C33: 10 | D33: 3 | E33: 4120025306 | G33: Cuota sindicato 6 | I33: 84 | K33: E
A34: 1 | B34: 31/04/2015 | C34: 10 | D34: 4 | E34: 4760005306 | G34: Org. SS, acreedores 6 | I34: 315 | K34: E
A35: 1 | B35: 31/04/2015 | C35: 10 | D35: 5 | E35: 5720010002 | G35: Bancos Tienda 53 | J35: 691.64 | K35: E
A36: 1 | B36: 31/04/2015 | C36: 11 | D36: 1 | E36: 6400005407 | G36: Sueldos y salarios 7 | I36: 1050 | K36: E
A37: 1 | B37: 31/04/2015 | C37: 11 | D37: 2 | E37: 4751005407 | G37: H.P acreedora por retenciones practicadas 7 | J37: 232.47 | K37: E
A38: 1 | B38: 31/04/2015 | C38: 11 | D38: 3 | E38: 4760005407 | G38: Org. SS, acreedores 7 | J38: 66.68 | K38: E
A39: 1 | B39: 31/04/2015 | C39: 11 | D39: 4 | E39: 4600005407 | G39: Anticipo de renumeraciones 7 | J39: 300 | K39: E
A40: 1 | B40: 31/04/2015 | C40: 11 | D40: 5 | G40: Cuota sindicato 7 | J40: 0 | K40: E
A41: 1 | B41: 31/04/2015 | C41: 11 | D41: 6 | E41: 4650005407 | G41: Renumeraciones ptes de pago 7 | J41: 450.85 | K41: E
A42: 1 | B42: 31/04/2015 | C42: 12 | D42: 1 | E42: 6290005407 | G42: Dietas 7 | I42: 0 | K42: E
A43: 1 | B43: 31/04/2015 | C43: 12 | D43: 2 | E43: 4650005407 | G43: Renumeraciones ptes de pago 7 | J43: 0 | K43: E
A44: 1 | B44: 31/04/2015 | C44: 13 | D44: 1 | E44: 4650005407 | G44: Renumeraciones ptes de pago 7 | I44: 450.85 | K44: E
A45: 1 | B45: 31/04/2015 | C45: 13 | D45: 2 | E45: 5720010005 | G45: Bancos Tienda 54 | J45: 450.85 | K45: E
A46: 1 | B46: 31/04/2015 | C46: 14 | D46: 1 | E46: 6420005407 | G46: S.S empresa empleado 7 | I46: 315 | K46: E
A47: 1 | B47: 31/04/2015 | C47: 14 | D47: 2 | E47: 4760005407 | G47: Org. SS, acreedores 7 | J47: 315 | K47: E
A48: 1 | B48: 31/04/2015 | C48: 15 | D48: 1 | E48: 4751005407 | G48: H.P acreedora por retenciones practicadas 7 | I48: 232.47 | K48: E
A49: 1 | B49: 31/04/2015 | C49: 15 | D49: 2 | E49: 4760005407 | G49: Org. SS, acreedores 7 | I49: 66.68 | K49: E
A50: 1 | B50: 31/04/2015 | C50: 15 | D50: 3 | G50: Cuota sindicato 7 | I50: 0 | K50: E
A51: 1 | B51: 31/04/2015 | C51: 15 | D51: 4 | E51: 4760005407 | G51: Org. SS, acreedores 7 | I51: 315 | K51: E
A52: 1 | B52: 31/04/2015 | C52: 15 | D52: 5 | E52: 5720010005 | G52: Bancos Tienda 54 | J52: 614.15 | K52: E
A53: 1 | B53: 31/04/2015 | C53: 16 | D53: 1 | E53: 6400006208 | G53: Sueldos y salarios 8 | I53: 1050 | K53: E
A54: 1 | B54: 31/04/2015 | C54: 16 | D54: 2 | E54: 4751006208 | G54: H.P acreedora por retenciones practicadas 8 | J54: 232.79 | K54: E
A55: 1 | B55: 31/04/2015 | C55: 16 | D55: 3 | E55: 4760006208 | G55: Org. SS, acreedores 8 | J55: 66.68 | K55: E
A56: 1 | B56: 31/04/2015 | C56: 16 | D56: 4 | E56: 4600006208 | G56: Anticipo de renumeraciones 8 | J56: 0 | K56: E
A57: 1 | B57: 31/04/2015 | C57: 16 | D57: 5 | G57: Cuota sindicato 8 | J57: 0 | K57: E
A58: 1 | B58: 31/04/2015 | C58: 16 | D58: 6 | E58: 4650006208 | G58: Renumeraciones ptes de pago 8 | J58: 750.53 | K58: E
A59: 1 | B59: 31/04/2015 | C59: 17 | D59: 1 | E59: 6290006208 | G59: Dietas 8 | I59: 0 | K59: E
A60: 1 | B60: 31/04/2015 | C60: 17 | D60: 2 | E60: 4650006208 | G60: Renumeraciones ptes de pago 8 | J60: 0 | K60: E
A61: 1 | B61: 31/04/2015 | C61: 18 | D61: 1 | E61: 4650006208 | G61: Renumeraciones ptes de pago 8 | I61: 750.53 | K61: E
A62: 1 | B62: 31/04/2015 | C62: 18 | D62: 2 | E62: 5720010006 | G62: Bancos Tienda 62 | J62: 750.53 | K62: E
A63: 1 | B63: 31/04/2015 | C63: 19 | D63: 1 | E63: 6420006208 | G63: S.S empresa empleado 8 | I63: 315 | K63: E
A64: 1 | B64: 31/04/2015 | C64: 19 | D64: 2 | E64: 4760006208 | G64: Org. SS, acreedores 8 | J64: 315 | K64: E
A65: 1 | B65: 31/04/2015 | C65: 20 | D65: 1 | E65: 4751006208 | G65: H.P acreedora por retenciones practicadas 8 | I65: 232.79 | K65: E
A66: 1 | B66: 31/04/2015 | C66: 20 | D66: 2 | E66: 4760006208 | G66: Org. SS, acreedores 8 | I66: 66.68 | K66: E
A67: 1 | B67: 31/04/2015 | C67: 20 | D67: 3 | G67: Cuota sindicato 8 | I67: 0 | K67: E
A68: 1 | B68: 31/04/2015 | C68: 20 | D68: 4 | E68: 4760006208 | G68: Org. SS, acreedores 8 | I68: 315 | K68: E
A69: 1 | B69: 31/04/2015 | C69: 20 | D69: 5 | E69: 5720010006 | G69: Bancos Tienda 62 | J69: 614.47 | K69: E
A70: 1 | B70: 31/04/2015 | C70: 21 | D70: 1 | E70: 6400006109 | G70: Sueldos y salarios 9 | I70: 1050 | K70: E
A71: 1 | B71: 31/04/2015 | C71: 21 | D71: 2 | E71: 4751006109 | G71: H.P acreedora por retenciones practicadas 9 | J71: 242.97 | K71: E
A72: 1 | B72: 31/04/2015 | C72: 21 | D72: 3 | E72: 4760006109 | G72: Org. SS, acreedores 9 | J72: 66.68 | K72: E
A73: 1 | B73: 31/04/2015 | C73: 21 | D73: 4 | E73: 4600006109 | G73: Anticipo de renumeraciones 9 | J73: 0 | K73: E
A74: 1 | B74: 31/04/2015 | C74: 21 | D74: 5 | E74: 4120016109 | G74: Cuota sindicato 9 | J74: 52.5 | K74: E
A75: 1 | B75: 31/04/2015 | C75: 21 | D75: 6 | E75: 4650006109 | G75: Renumeraciones ptes de pago 9 | J75: 687.85 | K75: E
A76: 1 | B76: 31/04/2015 | C76: 22 | D76: 1 | E76: 6290006109 | G76: Dietas 9 | I76: 0 | K76: E
A77: 1 | B77: 31/04/2015 | C77: 22 | D77: 2 | E77: 4650006109 | G77: Renumeraciones ptes de pago 9 | J77: 0 | K77: E
A78: 1 | B78: 31/04/2015 | C78: 23 | D78: 1 | E78: 4650006109 | G78: Renumeraciones ptes de pago 9 | I78: 687.85 | K78: E
A79: 1 | B79: 31/04/2015 | C79: 23 | D79: 2 | E79: 5720010006 | G79: Bancos Tienda 61 | J79: 687.85 | K79: E
A80: 1 | B80: 31/04/2015 | C80: 24 | D80: 1 | E80: 6420006109 | G80: S.S empresa empleado 9 | I80: 315 | K80: E
A81: 1 | B81: 31/04/2015 | C81: 24 | D81: 2 | E81: 4760006109 | G81: Org. SS, acreedores 9 | J81: 315 | K81: E
A82: 1 | B82: 31/04/2015 | C82: 25 | D82: 1 | E82: 4751006109 | G82: H.P acreedora por retenciones practicadas 9 | I82: 242.97 | K82: E
A83: 1 | B83: 31/04/2015 | C83: 25 | D83: 2 | E83: 4760006109 | G83: Org. SS, acreedores 9 | I83: 66.68 | K83: E
A84: 1 | B84: 31/04/2015 | C84: 25 | D84: 3 | E84: 4120016109 | G84: Cuota sindicato 9 | I84: 52.5 | K84: E
A85: 1 | B85: 31/04/2015 | C85: 25 | D85: 4 | E85: 4760006109 | G85: Org. SS, acreedores 9 | I85: 315 | K85: E
A86: 1 | B86: 31/04/2015 | C86: 25 | D86: 5 | E86: 5720010006 | G86: Bancos Tienda 61 | J86: 677.15 | K86: E
A87: 1 | B87: 31/04/2015 | C87: 26 | D87: 1 | E87: 6400006310 | G87: Sueldos y salarios 10 | I87: 1050 | K87: E
A88: 1 | B88: 31/04/2015 | C88: 26 | D88: 2 | E88: 4751006310 | G88: H.P acreedora por retenciones practicadas 10 | J88: 208.43 | K88: E
A89: 1 | B89: 31/04/2015 | C89: 26 | D89: 3 | E89: 4760006310 | G89: Org. SS, acreedores 10 | J89: 66.68 | K89: E
A90: 1 | B90: 31/04/2015 | C90: 26 | D90: 4 | E90: 4600006310 | G90: Anticipo de renumeraciones 10 | J90: 0 | K90: E
A91: 1 | B91: 31/04/2015 | C91: 26 | D91: 5 | E91: 4120026310 | G91: Cuota sindicato 10 | J91: 84 | K91: E
A92: 1 | B92: 31/04/2015 | C92: 26 | D92: 6 | E92: 4650006310 | G92: Renumeraciones ptes de pago 10 | J92: 690.89 | K92: E
A93: 1 | B93: 31/04/2015 | C93: 27 | D93: 1 | E93: 6290006310 | G93: Dietas 10 | I93: 21.56 | K93: E
A94: 1 | B94: 31/04/2015 | C94: 27 | D94: 2 | E94: 4650006310 | G94: Renumeraciones ptes de pago 10 | J94: 21.56 | K94: E
A95: 1 | B95: 31/04/2015 | C95: 28 | D95: 1 | E95: 4650006310 | G95: Renumeraciones ptes de pago 10 | I95: 712.45 | K95: E
A96: 1 | B96: 31/04/2015 | C96: 28 | D96: 2 | E96: 5720010006 | G96: Bancos Tienda 63 | J96: 712.45 | K96: E
A97: 1 | B97: 31/04/2015 | C97: 29 | D97: 1 | E97: 6420006310 | G97: S.S empresa empleado 10 | I97: 315 | K97: E
A98: 1 | B98: 31/04/2015 | C98: 29 | D98: 2 | E98: 4760006310 | G98: Org. SS, acreedores 10 | J98: 315 | K98: E
A99: 1 | B99: 31/04/2015 | C99: 30 | D99: 1 | E99: 4751006310 | G99: H.P acreedora por retenciones practicadas 10 | I99: 208.43 | K99: E
A100: 1 | B100: 31/04/2015 | C100: 30 | D100: 2 | E100: 4760006310 | G100: Org. SS, acreedores 10 | I100: 66.68 | K100: E
A101: 1 | B101: 31/04/2015 | C101: 30 | D101: 3 | E101: 4120026310 | G101: Cuota sindicato 10 | I101: 84 | K101: E
A102: 1 | B102: 31/04/2015 | C102: 30 | D102: 4 | E102: 4760006310 | G102: Org. SS, acreedores 10 | I102: 315 | K102: E
A103: 1 | B103: 31/04/2015 | C103: 30 | D103: 5 | E103: 5720010006 | G103: Bancos Tienda 63 | J103: 674.11 | K103: E
A104: 1 | B104: 31/04/2015 | C104: 31 | D104: 1 | E104: 6400001111 | G104: Sueldos y salarios 11 | I104: 1050 | K104: E
A105: 1 | B105: 31/04/2015 | C105: 31 | D105: 2 | E105: 4751001111 | G105: H.P acreedora por retenciones practicadas 11 | J105: 243.08 | K105: E
A106: 1 | B106: 31/04/2015 | C106: 31 | D106: 3 | E106: 4760001111 | G106: Org. SS, acreedores 11 | J106: 66.68 | K106: E
A107: 1 | B107: 31/04/2015 | C107: 31 | D107: 4 | E107: 4600001111 | G107: Anticipo de renumeraciones 11 | J107: 0 | K107: E
A108: 1 | B108: 31/04/2015 | C108: 31 | D108: 5 | G108: Cuota sindicato 11 | J108: 0 | K108: E
A109: 1 | B109: 31/04/2015 | C109: 31 | D109: 6 | E109: 4650001111 | G109: Renumeraciones ptes de pago 11 | J109: 740.24 | K109: E
A110: 1 | B110: 31/04/2015 | C110: 32 | D110: 1 | E110: 6290001111 | G110: Dietas 11 | I110: 0 | K110: E
A111: 1 | B111: 31/04/2015 | C111: 32 | D111: 2 | E111: 4650001111 | G111: Renumeraciones ptes de pago 11 | J111: 0 | K111: E
A112: 1 | B112: 31/04/2015 | C112: 33 | D112: 1 | E112: 4650001111 | G112: Renumeraciones ptes de pago 11 | I112: 740.24 | K112: E
A113: 1 | B113: 31/04/2015 | C113: 33 | D113: 2 | E113: 5720010003 | G113: Bancos Tienda 11 | J113: 740.24 | K113: E
A114: 1 | B114: 31/04/2015 | C114: 34 | D114: 1 | E114: 6420001111 | G114: S.S empresa empleado 11 | I114: 315 | K114: E
A115: 1 | B115: 31/04/2015 | C115: 34 | D115: 2 | E115: 4760001111 | G115: Org. SS, acreedores 11 | J115: 315 | K115: E
A116: 1 | B116: 31/04/2015 | C116: 35 | D116: 1 | E116: 4751001111 | G116: H.P acreedora por retenciones practicadas 11 | I116: 243.08 | K116: E
A117: 1 | B117: 31/04/2015 | C117: 35 | D117: 2 | E117: 4760001111 | G117: Org. SS, acreedores 11 | I117: 66.68 | K117: E
A118: 1 | B118: 31/04/2015 | C118: 35 | D118: 3 | G118: Cuota sindicato 11 | I118: 0 | K118: E
A119: 1 | B119: 31/04/2015 | C119: 35 | D119: 4 | E119: 4760001111 | G119: Org. SS, acreedores 11 | I119: 315 | K119: E
A120: 1 | B120: 31/04/2015 | C120: 35 | D120: 5 | E120: 5720010003 | G120: Bancos Tienda 11 | J120: 624.76 | K120: E
A121: 1 | B121: 31/04/2015 | C121: 36 | D121: 1 | E121: 6400003202 | G121: Sueldos y salarios 2 | I121: 1050 | K121: E
A122: 1 | B122: 31/04/2015 | C122: 36 | D122: 2 | E122: 4751003202 | G122: H.P acreedora por retenciones practicadas 2 | J122: 210 | K122: E
A123: 1 | B123: 31/04/2015 | C123: 36 | D123: 3 | E123: 4760003202 | G123: Org. SS, acreedores 2 | J123: 66.68 | K123: E
A124: 1 | B124: 31/04/2015 | C124: 36 | D124: 4 | E124: 4600003202 | G124: Anticipo de renumeraciones 2 | J124: 0 | K124: E
A125: 1 | B125: 31/04/2015 | C125: 36 | D125: 5 | E125: 4120023202 | G125: Cuota sindicato 2 | J125: 84 | K125: E
A126: 1 | B126: 31/04/2015 | C126: 36 | D126: 6 | E126: 4650003202 | G126: Renumeraciones ptes de pago 2 | J126: 689.32 | K126: E
A127: 1 | B127: 31/04/2015 | C127: 37 | D127: 1 | E127: 6290003202 | G127: Dietas 2 | I127: 0 | K127: E
A128: 1 | B128: 31/04/2015 | C128: 37 | D128: 2 | E128: 4650003202 | G128: Renumeraciones ptes de pago 2 | J128: 0 | K128: E
A129: 1 | B129: 31/04/2015 | C129: 38 | D129: 1 | E129: 4650003202 | G129: Renumeraciones ptes de pago 2 | I129: 689.32 | K129: E
A130: 1 | B130: 31/04/2015 | C130: 38 | D130: 2 | E130: 5720010001 | G130: Bancos Tienda 32 | J130: 689.32 | K130: E
A131: 1 | B131: 31/04/2015 | C131: 39 | D131: 1 | E131: 6420003202 | G131: S.S empresa empleado 2 | I131: 315 | K131: E
A132: 1 | B132: 31/04/2015 | C132: 39 | D132: 2 | E132: 4760003202 | G132: Org. SS, acreedores 2 | J132: 315 | K132: E
A133: 1 | B133: 31/04/2015 | C133: 40 | D133: 1 | E133: 4751003202 | G133: H.P acreedora por retenciones practicadas 2 | I133: 210 | K133: E
A134: 1 | B134: 31/04/2015 | C134: 40 | D134: 2 | E134: 4760003202 | G134: Org. SS, acreedores 2 | I134: 66.68 | K134: E
A135: 1 | B135: 31/04/2015 | C135: 40 | D135: 3 | E135: 4120023202 | G135: Cuota sindicato 2 | I135: 84 | K135: E
A136: 1 | B136: 31/04/2015 | C136: 40 | D136: 4 | E136: 4760003202 | G136: Org. SS, acreedores 2 | I136: 315 | K136: E
A137: 1 | B137: 31/04/2015 | C137: 40 | D137: 5 | E137: 5720010001 | G137: Bancos Tienda 32 | J137: 675.68 | K137: E
A138: 1 | B138: 31/04/2015 | C138: 41 | D138: 1 | E138: 6400001113 | G138: Sueldos y salarios 13 | I138: 1050 | K138: E
A139: 1 | B139: 31/04/2015 | C139: 41 | D139: 2 | E139: 4751001113 | G139: H.P acreedora por retenciones practicadas 13 | J139: 225.44 | K139: E
A140: 1 | B140: 31/04/2015 | C140: 41 | D140: 3 | E140: 4760001113 | G140: Org. SS, acreedores 13 | J140: 66.68 | K140: E
A141: 1 | B141: 31/04/2015 | C141: 41 | D141: 4 | E141: 4600001113 | G141: Anticipo de renumeraciones 13 | J141: 450 | K141: E
A142: 1 | B142: 31/04/2015 | C142: 41 | D142: 5 | G142: Cuota sindicato 13 | J142: 0 | K142: E
A143: 1 | B143: 31/04/2015 | C143: 41 | D143: 6 | E143: 4650001113 | G143: Renumeraciones ptes de pago 13 | J143: 307.88 | K143: E
A144: 1 | B144: 31/04/2015 | C144: 42 | D144: 1 | E144: 6290001113 | G144: Dietas 13 | I144: 0 | K144: E
A145: 1 | B145: 31/04/2015 | C145: 42 | D145: 2 | E145: 4650001113 | G145: Renumeraciones ptes de pago 13 | J145: 0 | K145: E
A146: 1 | B146: 31/04/2015 | C146: 43 | D146: 1 | E146: 4650001113 | G146: Renumeraciones ptes de pago 13 | I146: 307.88 | K146: E
A147: 1 | B147: 31/04/2015 | C147: 43 | D147: 2 | E147: 5720010003 | G147: Bancos Tienda 11 | J147: 307.88 | K147: E
A148: 1 | B148: 31/04/2015 | C148: 44 | D148: 1 | E148: 6420001113 | G148: S.S empresa empleado 13 | I148: 315 | K148: E
A149: 1 | B149: 31/04/2015 | C149: 44 | D149: 2 | E149: 4760001113 | G149: Org. SS, acreedores 13 | J149: 315 | K149: E
A150: 1 | B150: 31/04/2015 | C150: 45 | D150: 1 | E150: 4751001113 | G150: H.P acreedora por retenciones practicadas 13 | I150: 225.44 | K150: E
A151: 1 | B151: 31/04/2015 | C151: 45 | D151: 2 | E151: 4760001113 | G151: Org. SS, acreedores 13 | I151: 66.68 | K151: E
A152: 1 | B152: 31/04/2015 | C152: 45 | D152: 3 | G152: Cuota sindicato 13 | I152: 0 | K152: E
A153: 1 | B153: 31/04/2015 | C153: 45 | D153: 4 | E153: 4760001113 | G153: Org. SS, acreedores 13 | I153: 315 | K153: E
A154: 1 | B154: 31/04/2015 | C154: 45 | D154: 5 | E154: 5720010003 | G154: Bancos Tienda 11 | J154: 607.12 | K154: E
A155: 1 | B155: 31/04/2015 | C155: 46 | D155: 1 | E155: 6400004214 | G155: Sueldos y salarios 14 | I155: 1050 | K155: E
A156: 1 | B156: 31/04/2015 | C156: 46 | D156: 2 | E156: 4751004214 | G156: H.P acreedora por retenciones practicadas 14 | J156: 210.32 | K156: E
A157: 1 | B157: 31/04/2015 | C157: 46 | D157: 3 | E157: 4760004214 | G157: Org. SS, acreedores 14 | J157: 66.68 | K157: E
A158: 1 | B158: 31/04/2015 | C158: 46 | D158: 4 | E158: 4600004214 | G158: Anticipo de renumeraciones 14 | J158: 0 | K158: E
A159: 1 | B159: 31/04/2015 | C159: 46 | D159: 5 | G159: Cuota sindicato 14 | J159: 0 | K159: E
A160: 1 | B160: 31/04/2015 | C160: 46 | D160: 6 | E160: 4650004214 | G160: Renumeraciones ptes de pago 14 | J160: 773 | K160: E
A161: 1 | B161: 31/04/2015 | C161: 47 | D161: 1 | E161: 6290004214 | G161: Dietas 14 | I161: 0 | K161: E
A162: 1 | B162: 31/04/2015 | C162: 47 | D162: 2 | E162: 4650004214 | G162: Renumeraciones ptes de pago 14 | J162: 0 | K162: E
A163: 1 | B163: 31/04/2015 | C163: 48 | D163: 1 | E163: 4650004214 | G163: Renumeraciones ptes de pago 14 | I163: 773 | K163: E
A164: 1 | B164: 31/04/2015 | C164: 48 | D164: 2 | E164: 5720010003 | G164: Bancos Tienda 42 | J164: 773 | K164: E
A165: 1 | B165: 31/04/2015 | C165: 49 | D165: 1 | E165: 6420004214 | G165: S.S empresa empleado 14 | I165: 315 | K165: E
A166: 1 | B166: 31/04/2015 | C166: 49 | D166: 2 | E166: 4760004214 | G166: Org. SS, acreedores 14 | J166: 315 | K166: E
A167: 1 | B167: 31/04/2015 | C167: 50 | D167: 1 | E167: 4751004214 | G167: H.P acreedora por retenciones practicadas 14 | I167: 210.32 | K167: E
A168: 1 | B168: 31/04/2015 | C168: 50 | D168: 2 | E168: 4760004214 | G168: Org. SS, acreedores 14 | I168: 66.68 | K168: E
A169: 1 | B169: 31/04/2015 | C169: 50 | D169: 3 | G169: Cuota sindicato 14 | I169: 0 | K169: E
A170: 1 | B170: 31/04/2015 | C170: 50 | D170: 4 | E170: 4760004214 | G170: Org. SS, acreedores 14 | I170: 315 | K170: E
A171: 1 | B171: 31/04/2015 | C171: 50 | D171: 5 | E171: 5720010003 | G171: Bancos Tienda 42 | J171: 592 | K171: E
A172: 1 | B172: 31/04/2015 | C172: 51 | D172: 1 | E172: 6400001521 | G172: Sueldos y salarios 21 | I172: 1050 | K172: E
A173: 1 | B173: 31/04/2015 | C173: 51 | D173: 2 | E173: 4751001521 | G173: H.P acreedora por retenciones practicadas 21 | J173: 225.75 | K173: E
A174: 1 | B174: 31/04/2015 | C174: 51 | D174: 3 | E174: 4760001521 | G174: Org. SS, acreedores 21 | J174: 66.68 | K174: E
A175: 1 | B175: 31/04/2015 | C175: 51 | D175: 4 | E175: 4600001521 | G175: Anticipo de renumeraciones 21 | J175: 0 | K175: E
A176: 1 | B176: 31/04/2015 | C176: 51 | D176: 5 | G176: Cuota sindicato 21 | J176: 0 | K176: E
A177: 1 | B177: 31/04/2015 | C177: 51 | D177: 6 | E177: 4650001521 | G177: Renumeraciones ptes de pago 21 | J177: 757.57 | K177: E
A178: 1 | B178: 31/04/2015 | C178: 52 | D178: 1 | E178: 6290001521 | G178: Dietas 21 | I178: 9 | K178: E
A179: 1 | B179: 31/04/2015 | C179: 52 | D179: 2 | E179: 4650001521 | G179: Renumeraciones ptes de pago 21 | J179: 9 | K179: E
A180: 1 | B180: 31/04/2015 | C180: 53 | D180: 1 | E180: 4650001521 | G180: Renumeraciones ptes de pago 21 | I180: 766.57 | K180: E
A181: 1 | B181: 31/04/2015 | C181: 53 | D181: 2 | E181: 5720010002 | G181: Bancos Tienda 15 | J181: 766.57 | K181: E
A182: 1 | B182: 31/04/2015 | C182: 54 | D182: 1 | E182: 6420001521 | G182: S.S empresa empleado 21 | I182: 315 | K182: E
A183: 1 | B183: 31/04/2015 | C183: 54 | D183: 2 | E183: 4760001521 | G183: Org. SS, acreedores 21 | J183: 315 | K183: E
A184: 1 | B184: 31/04/2015 | C184: 55 | D184: 1 | E184: 4751001521 | G184: H.P acreedora por retenciones practicadas 21 | I184: 225.75 | K184: E
A185: 1 | B185: 31/04/2015 | C185: 55 | D185: 2 | E185: 4760001521 | G185: Org. SS, acreedores 21 | I185: 66.68 | K185: E
A186: 1 | B186: 31/04/2015 | C186: 55 | D186: 3 | G186: Cuota sindicato 21 | I186: 0 | K186: E
A187: 1 | B187: 31/04/2015 | C187: 55 | D187: 4 | E187: 4760001521 | G187: Org. SS, acreedores 21 | I187: 315 | K187: E
A188: 1 | B188: 31/04/2015 | C188: 55 | D188: 5 | E188: 5720010002 | G188: Bancos Tienda 15 | J188: 607.43 | K188: E
A189: 1 | B189: 31/04/2015 | C189: 56 | D189: 1 | E189: 6400006120 | G189: Sueldos y salarios 20 | I189: 1050 | K189: E
A190: 1 | B190: 31/04/2015 | C190: 56 | D190: 2 | E190: 4751006120 | G190: H.P acreedora por retenciones practicadas 20 | J190: 220.29 | K190: E
A191: 1 | B191: 31/04/2015 | C191: 56 | D191: 3 | E191: 4760006120 | G191: Org. SS, acreedores 20 | J191: 66.68 | K191: E
A192: 1 | B192: 31/04/2015 | C192: 56 | D192: 4 | E192: 4600006120 | G192: Anticipo de renumeraciones 20 | J192: 0 | K192: E
A193: 1 | B193: 31/04/2015 | C193: 56 | D193: 5 | G193: Cuota sindicato 20 | J193: 0 | K193: E
A194: 1 | B194: 31/04/2015 | C194: 56 | D194: 6 | E194: 4650006120 | G194: Renumeraciones ptes de pago 20 | J194: 763.03 | K194: E
A195: 1 | B195: 31/04/2015 | C195: 57 | D195: 1 | E195: 6290006120 | G195: Dietas 20 | I195: 0 | K195: E
A196: 1 | B196: 31/04/2015 | C196: 57 | D196: 2 | E196: 4650006120 | G196: Renumeraciones ptes de pago 20 | J196: 0 | K196: E
A197: 1 | B197: 31/04/2015 | C197: 58 | D197: 1 | E197: 4650006120 | G197: Renumeraciones ptes de pago 20 | I197: 763.03 | K197: E
A198: 1 | B198: 31/04/2015 | C198: 58 | D198: 2 | E198: 5720010006 | G198: Bancos Tienda 61 | J198: 763.03 | K198: E
A199: 1 | B199: 31/04/2015 | C199: 59 | D199: 1 | E199: 6420006120 | G199: S.S empresa empleado 20 | I199: 315 | K199: E
A200: 1 | B200: 31/04/2015 | C200: 59 | D200: 2 | E200: 4760006120 | G200: Org. SS, acreedores 20 | J200: 315 | K200: E
... 5 more rows
